{"text_format":"1","workbook":"xlsx","n_sheets":4,"sheets":["PR1","PR2","Расчет цены PR1","Расчет цены PR2 "],"not_rendered":{"charts":0,"images":4,"macros":1,"external_links":0,"defined_names":2,"comments":0,"pivot_tables":0},"unopened":[],"bounds":{"document_bytes":16777216,"sheet_cells":100000,"rows_first":2000,"rows_last":500,"rows_between":2000,"halvings":0,"cell_chars":16384,"cell_head_chars":4096},"cells_cut":0,"cells_raw":0,"read":"whole","date_system":"1900"}

{"sheet":"PR1","index":0,"n_rows":613,"n_cols":24,"rows_kept":613,"cut":false,"hidden":false,"merged":[[39,0,39,1],[43,0,43,1],[29,1,29,3],[7,5,7,7],[7,2,7,3],[8,2,8,3],[8,5,8,7],[19,1,19,2],[20,1,20,2],[21,1,21,2],[9,4,9,5],[9,6,9,7],[10,6,10,7]]}
[]
["№ заказа:"]
[null,null,null,null,null,null,null,null,"PR1",null,null,null,null,null,"изделия",null,null,null,{"$f":"P3","v":0}]
[null,"Ширина:",0,"мм.",null,null,null,null,null,null,null,null,null,null,"проема",null,"угол",{"$f":"ATAN((C6-G6)/C4)","v":{"$error":"#DIV/0!"}},"Кронштейн потолочный",null,0,0,0,0]
[null,{"$f":"IF(AND(C4<200,C4>0),\"ВНИМАНИЕ!!!Минимальная ширина 200 мм\",IF(C4>1200,\"ВНИМАНИЕ!!!Максимальная ширина 1200 мм\",0))","v":0},null,null,null,null,null,null,null,null,null,null,null,null,null,{"$f":"VLOOKUP(F8,$U$4:$V$615,2,0)","v":0},"длина наклона",{"$f":"ROUND(SQRT(((C6-G6)^2)+(C4^2)),3)","v":0},"Кронштейн на штапик",null,"Акапулько 4300 терракота, 235см","плиссе","Акапулько 4300 терракота, 235см","Оранжевый"]
[null,"Высота:",0,"мм.",null,null,null,null,null,null,null,null,null,null,null,null,"угол танг.",{"$f":"(90-C10)*3.14/180","v":1.57},null,null,"Акапулько 5173 голубой, 235 см","плиссе","Акапулько 5173 голубой, 235 см","Зеленый"]
[null,{"$f":"IF(C6>1500,\"ВНИМАНИЕ!!!Максимальная высота 1500 мм\",0)","v":0},null,null,null,null,null,null,null,null,null,null,null,null,null,null,"betta",{"$f":"34/TAN(R6)","v":2.7075116749588547E-2},"Кронштейн подоконный",null,"Акварель 1608 св.серый, 235см","плиссе","Акварель 1608 св.серый, 235см","Белый"]
[null,"Кронштейн:",null,null,"Ткань:",0,null,null,null,null,null,null,null,null,null,null,null,null,"Кронштейн на штапик",null,"Акварель 2259 св.бежевый, 235см","плиссе","Акварель 2259 св.бежевый, 235см","Белый"]
[null,null,"выбрать из списка",null,null,"выбрать из списка",null,null,null,null,null,null,null,null,null,null,null,null,null,null,"Аллегро 0225 белый, 238 см","плиссе","Аллегро 0225 белый, 238 см","Белый"]
[null,"кол-во:",0,"шт.","Размеры:",null,null,null,null,null,null,null,null,null,null,null,null,null,0,null,"Базилик 5864 зеленый 200 см","плиссе","Базилик 5864 зеленый 200 см","Белый"]
[null,0,null,null,null,null,"выбрать из списка",null,null,null,null,null,null,null,null,null,null,null,"плиссе",null,"Батик 1608 серый 235см","плиссе","Батик 1608 серый 235см","Белый"]
[null,null,null,null,null,null,null,null,null,null,null,null,null,null,null,null,null,null,"гофре",null,"Батик 2261 бежевый 200 см","плиссе","Батик 2261 бежевый 200 см","Белый"]
[null,null,null,null,null,null,null,null,null,null,null,null,null,null,null,null,null,null,0,null,"Батик 2261 бежевый 235 см","плиссе","Батик 2261 бежевый 235 см","Белый"]
[null,null,null,null,null,null,null,null,null,null,null,null,null,null,null,null,null,null,"Потолочный/подоконный",null,"Бланш 0225 белый, 235см","плиссе","Бланш 0225 белый, 235см","Белый"]
["Оборудование",null,null,null,null,null,null,null,null,null,null,null,null,null,null,null,null,null,"Пластиковый",null,"Бланш 2261 св.бежевый, 230см","плиссе","Бланш 2261 св.бежевый, 230см","Бежевый"]
[null,null,null,null,null,null,null,null,null,null,null,null,null,null,null,null,null,null,null,null,"Бон Вояж 1608 серый 235 см","плиссе","Бон Вояж 1608 серый 235 см","Белый"]
[null,null,null,null,null,null,null,null,null,null,null,null,null,null,null,null,null,null,null,null,"Валента 0225 белый, 240 см","плиссе","Валента 0225 белый, 240 см","Белый"]
[null,null,null,null,null,null,null,null,null,null,null,null,null,null,null,null,null,null,null,null,"Валента 2261 св. бежевый, 240 см","плиссе","Валента 2261 св. бежевый, 240 см","Бежевый"]
[null,null,null,null,null,null,null,null,null,null,null,null,null,null,null,null,null,null,null,null,"Венесуэла 4068 медь, 225 см","плиссе","Венесуэла 4068 медь, 225 см","Бежевый"]
[null,null,null,null,null,null,null,null,null,null,null,null,null,null,null,null,null,null,null,null,"Венесуэла 7013 серебро, 225 см","плиссе","Венесуэла 7013 серебро, 225 см","Св. серый"]
[null,null,null,null,null,null,null,null,null,null,null,null,null,null,null,null,null,null,null,null,"Веранда 2261 бежевый, 230 см","плиссе","Веранда 2261 бежевый, 230 см","Бежевый"]
[null,null,null,null,null,null,null,null,null,null,null,null,null,null,null,null,null,null,null,null,"Веранда 3499 оранжевый, 230 см","плиссе","Веранда 3499 оранжевый, 230 см","Оранжевый"]
[null,null,null,null,null,null,null,null,null,null,null,null,null,null,null,null,null,null,null,null,"Веранда 5849 светло-зеленый, 230 см","плиссе","Веранда 5849 светло-зеленый, 230 см","Песочный"]
[null,null,null,null,null,null,null,null,null,null,null,null,null,null,null,null,null,null,null,null,"Виндзор 0225 белый 200 см","плиссе","Виндзор 0225 белый 200 см","Белый"]
["Комплектующие",null,null,null,null,null,null,null,null,null,null,null,null,null,null,null,null,null,null,null,"Виндзор 1881 серый 200 см","плиссе","Виндзор 1881 серый 200 см","Черный"]
[null,null,null,null,null,null,null,null,null,null,null,null,null,null,null,null,null,null,null,null,"Виндзор 2259 бежевый 200 см","плиссе","Виндзор 2259 бежевый 200 см","Бежевый"]
[null,null,null,null,null,null,null,null,null,null,null,null,null,null,null,null,null,null,null,null,"Виола 3204 желтый  235 см","плиссе","Виола 3204 желтый  235 см","Песочный"]
[null,null,null,null,null,null,null,null,null,null,null,null,null,null,null,null,null,null,null,null,"Виола 4858 темно-лиловый, 235см","плиссе","Виола 4858 темно-лиловый, 235см","Белый"]
[null,null,null,null,null,null,null,null,null,null,null,null,null,null,null,null,null,null,null,null,"Вита 0225 белый 240см","плиссе","Вита 0225 белый 240см","Белый"]
[null,null,null,null,null,null,null,null,null,null,null,null,null,null,null,null,null,null,null,null,"Вита 1608 св. серый 240см","плиссе","Вита 1608 св. серый 240см","св. серый"]
[null,null,null,null,null,null,null,null,null,null,null,null,null,null,null,null,null,null,null,null,"Вита 1852 серый 240см","плиссе","Вита 1852 серый 240см","Серый"]
[null,null,null,null,null,null,null,null,null,null,null,null,null,null,null,null,null,null,null,null,"Вита 1881 т. серый 240см","плиссе","Вита 1881 т. серый 240см","Серый"]
[null,null,null,null,null,null,null,null,null,null,null,null,null,null,null,null,null,null,null,null,"Вита 2406 бежевый 240см","плиссе","Вита 2406 бежевый 240см","Бежевый"]
[null,null,null,null,null,null,null,null,null,null,null,null,null,null,null,null,null,null,null,null,"Вита 2552 кремовый 240см","плиссе","Вита 2552 кремовый 240см","Бежевый"]
[null,null,null,null,null,null,null,null,null,null,null,null,null,null,null,null,null,null,null,null,"Гинко 2406 бежевый, 230 см","плиссе","Гинко 2406 бежевый, 230 см","Бежевый"]
[null,null,null,null,null,null,null,null,null,null,null,null,null,null,null,null,null,null,null,null,"Гинко 3210 желтый, 230 см","плиссе","Гинко 3210 желтый, 230 см","Оранжевый"]
[null,null,null,null,null,null,null,null,null,null,null,null,null,null,null,null,null,null,null,null,"Гинко 4075 красный, 230 см","плиссе","Гинко 4075 красный, 230 см","Абрикос"]
[null,null,null,null,null,null,null,null,null,null,null,null,null,null,null,null,null,null,null,null,"Гинко 5853 зеленый, 230 см","плиссе","Гинко 5853 зеленый, 230 см","Св.зеленый"]
[null,null,null,null,null,null,null,null,null,null,null,null,null,null,null,null,null,null,null,null,"Гофре Классик 0225 белый, 300 см","гофре","Гофре Классик 0225 белый, 300 см","Белый"]
[null,null,null,null,null,null,null,null,null,null,null,null,null,null,null,null,null,null,null,null,"Гофре Классик 1608 св. серый, 300 см","гофре","Гофре Классик 1608 св. серый, 300 см","Св. серый"]
[null,null,null,null,null,null,null,null,null,null,null,null,null,null,null,null,null,null,null,null,"Гофре Классик 2259 магнолия, 300 см","гофре","Гофре Классик 2259 магнолия, 300 см","Бежевый"]
[null,null,null,null,null,null,null,null,null,null,null,null,null,null,null,null,null,null,null,null,"Гофре Классик 2261 св. бежевый, 300 см","гофре","Гофре Классик 2261 св. бежевый, 300 см","Бежевый"]
[null,null,null,null,null,null,null,null,null,null,null,null,null,null,null,null,null,null,null,null,"Гофре Креп 0225 белый, 220 см","Гофре","Гофре Креп 0225 белый, 220 см","Белый"]
[null,null,null,null,null,null,null,null,null,null,null,null,null,null,null,null,null,null,null,null,"Гофре Креп 1608 св. серый, 220см","гофре","Гофре Креп 1608 св. серый, 220см","Серый"]
[null,null,null,null,null,null,null,null,null,null,null,null,null,null,null,null,null,null,null,null,"Гофре Креп 1881 т.серый, 220см","гофре","Гофре Креп 1881 т.серый, 220см","Серый"]
[null,null,null,null,null,null,null,null,null,null,null,null,null,null,null,null,null,null,null,null,"Гофре Креп 2259 магнолия, 220 см","Гофре","Гофре Креп 2259 магнолия, 220 см","Белый"]
[null,null,null,null,null,null,null,null,null,null,null,null,null,null,null,null,null,null,null,null,"Гофре Креп 2261 бежевый, 220см","Гофре","Гофре Креп 2261 бежевый, 220см","Бежевый"]
[null,null,null,null,null,null,null,null,null,null,null,null,null,null,null,null,null,null,null,null,"Гофре Креп 2550 кремовый, 220см","Гофре","Гофре Креп 2550 кремовый, 220см","Песочный"]
[null,null,null,null,null,null,null,null,null,null,null,null,null,null,null,null,null,null,null,null,"Гофре Креп 2870 коричневый, 220см","гофре","Гофре Креп 2870 коричневый, 220см","Коричневый"]
[null,null,null,null,null,null,null,null,null,null,null,null,null,null,null,null,null,null,null,null,"Гофре Креп 3465 желтый, 220см","гофре","Гофре Креп 3465 желтый, 220см","Песочный"]
[null,null,null,null,null,null,null,null,null,null,null,null,null,null,null,null,null,null,null,null,"Гофре Креп 3499 оранжевый, 220см","гофре","Гофре Креп 3499 оранжевый, 220см","Оранжевый"]
[null,null,null,null,null,null,null,null,null,null,null,null,null,null,null,null,null,null,null,null,"Гофре Креп 4066 абрикос, 220см","гофре","Гофре Креп 4066 абрикос, 220см","Оранжевый"]
[null,null,null,null,null,null,null,null,null,null,null,null,null,null,null,null,null,null,null,null,"Гофре Креп 4075 красный, 220см","гофре","Гофре Креп 4075 красный, 220см","Розовый"]
[null,null,null,null,null,null,null,null,null,null,null,null,null,null,null,null,null,null,null,null,"Гофре Креп 5173 голубой, 220см","гофре","Гофре Креп 5173 голубой, 220см","Св.синий"]
[null,null,null,null,null,null,null,null,null,null,null,null,null,null,null,null,null,null,null,null,"Гофре Креп 5470 т. синий, 220см","гофре","Гофре Креп 5470 т. синий, 220см","Синий"]
[null,null,null,null,null,null,null,null,null,null,null,null,null,null,null,null,null,null,null,null,"Гофре Креп 5540 св. зеленый, 220см","гофре","Гофре Креп 5540 св. зеленый, 220см","Желто-зеленый"]
[null,null,null,null,null,null,null,null,null,null,null,null,null,null,null,null,null,null,null,null,"Гофре Креп 7005 металлик, 220см","Гофре","Гофре Креп 7005 металлик, 220см","Белый"]
[null,null,null,null,null,null,null,null,null,null,null,null,null,null,null,null,null,null,null,null,"Гофре Креп Перл 0225 белый, 220 см","гофре","Гофре Креп Перл 0225 белый, 220 см","Белый"]
[null,null,null,null,null,null,null,null,null,null,null,null,null,null,null,null,null,null,null,null,"Гофре Креп Перл 1608 св. серый, 220 см","гофре","Гофре Креп Перл 1608 св. серый, 220 см","Св. серый"]
[null,null,null,null,null,null,null,null,null,null,null,null,null,null,null,null,null,null,null,null,"Гофре Креп Перл 2259 магнолия, 220 см","гофре","Гофре Креп Перл 2259 магнолия, 220 см","Бежевый"]
[null,null,null,null,null,null,null,null,null,null,null,null,null,null,null,null,null,null,null,null,"Гофре Папирус 0225 белый 360 см","Гофре","Гофре Папирус 0225 белый 360 см","Белый"]
[null,null,null,null,null,null,null,null,null,null,null,null,null,null,null,null,null,null,null,null,"Гофре Папирус 1608 светло-серый 360 см","Гофре","Гофре Папирус 1608 светло-серый 360 см","Св. серый"]
[null,null,null,null,null,null,null,null,null,null,null,null,null,null,null,null,null,null,null,null,"Гофре Папирус 2261 светло-бежевый","Гофре","Гофре Папирус 2261 светло-бежевый","Песочный"]
[null,null,null,null,null,null,null,null,null,null,null,null,null,null,null,null,null,null,null,null,"Гофре Папирус 2870 коричневый 360 см","Гофре","Гофре Папирус 2870 коричневый 360 см","Коричневый"]
[null,null,null,null,null,null,null,null,null,null,null,null,null,null,null,null,null,null,null,null,"Гофре Папирус 4096 розовый 360 см","Гофре","Гофре Папирус 4096 розовый 360 см","Розовый"]
[null,null,null,null,null,null,null,null,null,null,null,null,null,null,null,null,null,null,null,null,"Гофре Папирус 4290 терракота 360 см","Гофре","Гофре Папирус 4290 терракота 360 см","Коричневый"]
[null,null,null,null,null,null,null,null,null,null,null,null,null,null,null,null,null,null,null,null,"Гофре Папирус 4469 лиловый 360 см","Гофре","Гофре Папирус 4469 лиловый 360 см","Лиловый"]
[null,null,null,null,null,null,null,null,null,null,null,null,null,null,null,null,null,null,null,null,"Гофре Папирус 5150 светло-голубой 360 см","Гофре","Гофре Папирус 5150 светло-голубой 360 см","Св.зеленый"]
[null,null,null,null,null,null,null,null,null,null,null,null,null,null,null,null,null,null,null,null,"Гофре Папирус 5540 светло-зеленый 360 см","Гофре","Гофре Папирус 5540 светло-зеленый 360 см","Желто-зеленый"]
[null,null,null,null,null,null,null,null,null,null,null,null,null,null,null,null,null,null,null,null,"Гофре Папирус БО 0224 снежно-белый 450 см","гофре","Гофре Папирус БО 0224 снежно-белый 450 см","Белый"]
[null,null,null,null,null,null,null,null,null,null,null,null,null,null,null,null,null,null,null,null,"Гофре Папирус БО 0225 белый 360 см","Гофре","Гофре Папирус БО 0225 белый 360 см","Белый"]
[null,null,null,null,null,null,null,null,null,null,null,null,null,null,null,null,null,null,null,null,"Гофре Папирус БО 1608 светло-серый 360 см","Гофре","Гофре Папирус БО 1608 светло-серый 360 см","Св. серый"]
[null,null,null,null,null,null,null,null,null,null,null,null,null,null,null,null,null,null,null,null,"Гофре Папирус БО 1852 серый, 450см","гофре","Гофре Папирус БО 1852 серый, 450см","Св. серый"]
[null,null,null,null,null,null,null,null,null,null,null,null,null,null,null,null,null,null,null,null,"Гофре Папирус БО 2260 слоновая кость, 450см","гофре","Гофре Папирус БО 2260 слоновая кость, 450см","Бежевый"]
[null,null,null,null,null,null,null,null,null,null,null,null,null,null,null,null,null,null,null,null,"Гофре Папирус БО 2407 бежевый 360 см","Гофре","Гофре Папирус БО 2407 бежевый 360 см","Песочный"]
[null,null,null,null,null,null,null,null,null,null,null,null,null,null,null,null,null,null,null,null,"Гофре Перфект 0225 белый, 300 см","гофре","Гофре Перфект 0225 белый, 300 см","Белый"]
[null,null,null,null,null,null,null,null,null,null,null,null,null,null,null,null,null,null,null,null,"Гофре Перфект 1608 св. серый, 300 см","гофре","Гофре Перфект 1608 св. серый, 300 см","Св. серый"]
[null,null,null,null,null,null,null,null,null,null,null,null,null,null,null,null,null,null,null,null,"Гофре Перфект 1852 серый, 300 см","гофре","Гофре Перфект 1852 серый, 300 см","Серый"]
[null,null,null,null,null,null,null,null,null,null,null,null,null,null,null,null,null,null,null,null,"Гофре Перфект 2259 магнолия, 300 см","гофре","Гофре Перфект 2259 магнолия, 300 см","Бежевый"]
[null,null,null,null,null,null,null,null,null,null,null,null,null,null,null,null,null,null,null,null,"Гофре Перфект 5879 оливковый, 300 см","гофре","Гофре Перфект 5879 оливковый, 300 см","Св.зеленый"]
[null,null,null,null,null,null,null,null,null,null,null,null,null,null,null,null,null,null,null,null,"Гофре Перфект BO 0225 белый, 300 см","гофре","Гофре Перфект BO 0225 белый, 300 см","Белый"]
[null,null,null,null,null,null,null,null,null,null,null,null,null,null,null,null,null,null,null,null,"Гофре Перфект BO 1608 св. серый, 300 см","гофре","Гофре Перфект BO 1608 св. серый, 300 см","Св. серый"]
[null,null,null,null,null,null,null,null,null,null,null,null,null,null,null,null,null,null,null,null,"Гофре Перфект BO 1852 серый, 300 см","гофре","Гофре Перфект BO 1852 серый, 300 см","Серый"]
[null,null,null,null,null,null,null,null,null,null,null,null,null,null,null,null,null,null,null,null,"Гофре Перфект BO 2259 магнолия, 300 см","гофре","Гофре Перфект BO 2259 магнолия, 300 см","Бежевый"]
[null,null,null,null,null,null,null,null,null,null,null,null,null,null,null,null,null,null,null,null,"Гофре Сатин 0225 белый, 365 см","гофре","Гофре Сатин 0225 белый, 365 см","Белый"]
[null,null,null,null,null,null,null,null,null,null,null,null,null,null,null,null,null,null,null,null,"Гофре Сатин 0225 белый, 45 мм, 365 см","гофре","Гофре Сатин 0225 белый, 45 мм, 365 см","Белый"]
[null,null,null,null,null,null,null,null,null,null,null,null,null,null,null,null,null,null,null,null,"Гофре Сатин 1608 св. серый, 365 см","гофре","Гофре Сатин 1608 св. серый, 365 см","Св. серый"]
[null,null,null,null,null,null,null,null,null,null,null,null,null,null,null,null,null,null,null,null,"Гофре Сатин 1608 св. серый, 45 мм, 365 см","гофре","Гофре Сатин 1608 св. серый, 45 мм, 365 см","Св. серый"]
[null,null,null,null,null,null,null,null,null,null,null,null,null,null,null,null,null,null,null,null,"Гофре Сатин 1881 т. серый, 365 см","гофре","Гофре Сатин 1881 т. серый, 365 см","Серый"]
[null,null,null,null,null,null,null,null,null,null,null,null,null,null,null,null,null,null,null,null,"Гофре Сатин 1881 т. серый, 45 мм, 365 см","гофре","Гофре Сатин 1881 т. серый, 45 мм, 365 см","Серый"]
[null,null,null,null,null,null,null,null,null,null,null,null,null,null,null,null,null,null,null,null,"Гофре Сатин 2261 св. бежевый, 365 см","гофре","Гофре Сатин 2261 св. бежевый, 365 см","Бежевый"]
[null,null,null,null,null,null,null,null,null,null,null,null,null,null,null,null,null,null,null,null,"Гофре Сатин 2406 бежевый, 365 см","гофре","Гофре Сатин 2406 бежевый, 365 см","Бежевый"]
[null,null,null,null,null,null,null,null,null,null,null,null,null,null,null,null,null,null,null,null,"Гофре Сатин 2406 бежевый, 45 мм, 365 см","гофре","Гофре Сатин 2406 бежевый, 45 мм, 365 см","Бежевый"]
[null,null,null,null,null,null,null,null,null,null,null,null,null,null,null,null,null,null,null,null,"Гофре Сатин 2746 т. бежевый, 365 см","гофре","Гофре Сатин 2746 т. бежевый, 365 см","Песочный"]
[null,null,null,null,null,null,null,null,null,null,null,null,null,null,null,null,null,null,null,null,"Гофре Сатин 2746 т. бежевый, 45 мм, 365 см","гофре","Гофре Сатин 2746 т. бежевый, 45 мм, 365 см","Песочный"]
[null,null,null,null,null,null,null,null,null,null,null,null,null,null,null,null,null,null,null,null,"Гофре Сатин 2871 т. коричневый, 365 см","гофре","Гофре Сатин 2871 т. коричневый, 365 см","Коричневый"]
[null,null,null,null,null,null,null,null,null,null,null,null,null,null,null,null,null,null,null,null,"Гофре Сатин 2871 т. коричневый, 45 мм, 365 см","гофре","Гофре Сатин 2871 т. коричневый, 45 мм, 365 см","Коричневый"]
[null,null,null,null,null,null,null,null,null,null,null,null,null,null,null,null,null,null,null,null,"Гофре Сатин 3209 св. желтый, 45 мм, 365 см","гофре","Гофре Сатин 3209 св. желтый, 45 мм, 365 см","Песочный"]
[null,null,null,null,null,null,null,null,null,null,null,null,null,null,null,null,null,null,null,null,"Гофре Сатин 4096 розовый, 45 мм, 365 см","гофре","Гофре Сатин 4096 розовый, 45 мм, 365 см","Розовый"]
[null,null,null,null,null,null,null,null,null,null,null,null,null,null,null,null,null,null,null,null,"Гофре Сатин 4858 бордо, 45 мм, 365 см","гофре","Гофре Сатин 4858 бордо, 45 мм, 365 см","Бордо"]
[null,null,null,null,null,null,null,null,null,null,null,null,null,null,null,null,null,null,null,null,"Гофре Сатин 5470 т. синий, 45 мм, 365 см","гофре","Гофре Сатин 5470 т. синий, 45 мм, 365 см","Св.синий"]
[null,null,null,null,null,null,null,null,null,null,null,null,null,null,null,null,null,null,null,null,"Гофре Сатин 5879 оливковый, 45 мм, 365 см","гофре","Гофре Сатин 5879 оливковый, 45 мм, 365 см","Желто-зеленый"]
[null,null,null,null,null,null,null,null,null,null,null,null,null,null,null,null,null,null,null,null,"Гофре Сатин 5992 т. бирюзовый, 45 мм, 365 см","гофре","Гофре Сатин 5992 т. бирюзовый, 45 мм, 365 см","Желто-зеленый"]
[null,null,null,null,null,null,null,null,null,null,null,null,null,null,null,null,null,null,null,null,"Гофре Сатин ВО 0225 белый, 365 см","гофре","Гофре Сатин ВО 0225 белый, 365 см","Белый"]
[null,null,null,null,null,null,null,null,null,null,null,null,null,null,null,null,null,null,null,null,"Гофре Сатин ВО 0225 белый, 45 мм, 365 см","гофре","Гофре Сатин ВО 0225 белый, 45 мм, 365 см","Белый"]
[null,null,null,null,null,null,null,null,null,null,null,null,null,null,null,null,null,null,null,null,"Гофре Сатин ВО 1608 св. серый, 365 см","гофре","Гофре Сатин ВО 1608 св. серый, 365 см","Св. серый"]
[null,null,null,null,null,null,null,null,null,null,null,null,null,null,null,null,null,null,null,null,"Гофре Сатин ВО 1608 св. серый, 45 мм, 365 см","гофре","Гофре Сатин ВО 1608 св. серый, 45 мм, 365 см","light-grey"]
[null,null,null,null,null,null,null,null,null,null,null,null,null,null,null,null,null,null,null,null,"Гофре Сатин ВО 2406 бежевый, 365 см","гофре","Гофре Сатин ВО 2406 бежевый, 365 см","Бежевый"]
[null,null,null,null,null,null,null,null,null,null,null,null,null,null,null,null,null,null,null,null,"Гофре Сатин ВО 2406 бежевый, 45 мм, 365 см","гофре","Гофре Сатин ВО 2406 бежевый, 45 мм, 365 см","Бежевый"]
[null,null,null,null,null,null,null,null,null,null,null,null,null,null,null,null,null,null,null,null,"Гофре Сатин ВО 2870 коричневый, 365 см","гофре","Гофре Сатин ВО 2870 коричневый, 365 см","Коричневый"]
[null,null,null,null,null,null,null,null,null,null,null,null,null,null,null,null,null,null,null,null,"Гофре Экошик 0225 белый 300 см","Гофре","Гофре Экошик 0225 белый 300 см","Белый"]
[null,null,null,null,null,null,null,null,null,null,null,null,null,null,null,null,null,null,null,null,"Гофре Экошик 2259 магнолия 300 см","Гофре","Гофре Экошик 2259 магнолия 300 см","Бежевый"]
[null,null,null,null,null,null,null,null,null,null,null,null,null,null,null,null,null,null,null,null,"Гофре Экошик 2868 светло-коричневый 300 см","Гофре","Гофре Экошик 2868 светло-коричневый 300 см","Коричневый"]
[null,null,null,null,null,null,null,null,null,null,null,null,null,null,null,null,null,null,null,null,"Гофре Экошик 3144 ваниль 300 см","Гофре","Гофре Экошик 3144 ваниль 300 см","Песочный"]
[null,null,null,null,null,null,null,null,null,null,null,null,null,null,null,null,null,null,null,null,"Девон 1852 серый, 240 см","плиссе","Девон 1852 серый, 240 см","Серый"]
[null,null,null,null,null,null,null,null,null,null,null,null,null,null,null,null,null,null,null,null,"Девон 2259 магнолия, 240 см","плиссе","Девон 2259 магнолия, 240 см","Бежевый"]
[null,null,null,null,null,null,null,null,null,null,null,null,null,null,null,null,null,null,null,null,"Девон 2406 бежевый, 240 см","плиссе","Девон 2406 бежевый, 240 см","Серый"]
[null,null,null,null,null,null,null,null,null,null,null,null,null,null,null,null,null,null,null,null,"Джакарта 1881 черно-коричневый, 235см","плиссе","Джакарта 1881 черно-коричневый, 235см","Черный"]
[null,null,null,null,null,null,null,null,null,null,null,null,null,null,null,null,null,null,null,null,"Джакарта 2872 коричневый 235 см","плиссе","Джакарта 2872 коричневый 235 см","Коричневый"]
[null,null,null,null,null,null,null,null,null,null,null,null,null,null,null,null,null,null,null,null,"Дикий Шелк 0225 белый, 200 см","плиссе","Дикий Шелк 0225 белый, 200 см","Бежевый"]
[null,null,null,null,null,null,null,null,null,null,null,null,null,null,null,null,null,null,null,null,"Дикий Шелк 2261 светло-бежевый , 200 см","плиссе","Дикий Шелк 2261 светло-бежевый , 200 см","Бежевый"]
[null,null,null,null,null,null,null,null,null,null,null,null,null,null,null,null,null,null,null,null,"Дикий Шелк 2406 бежевый , 200 см","плиссе","Дикий Шелк 2406 бежевый , 200 см","Бежевый"]
[null,null,null,null,null,null,null,null,null,null,null,null,null,null,null,null,null,null,null,null,"Дикий Шелк 2870 коричневый, 200 см","плиссе","Дикий Шелк 2870 коричневый, 200 см","Бежевый"]
[null,null,null,null,null,null,null,null,null,null,null,null,null,null,null,null,null,null,null,null,"Дикий Шелк 3209 желтый , 200 см","плиссе","Дикий Шелк 3209 желтый , 200 см","Песочный"]
[null,null,null,null,null,null,null,null,null,null,null,null,null,null,null,null,null,null,null,null,"Жемчуг 0225 белый, 230см","плиссе","Жемчуг 0225 белый, 230см","Белый"]
[null,null,null,null,null,null,null,null,null,null,null,null,null,null,null,null,null,null,null,null,"Жемчуг 1908 серый, 230см","плиссе","Жемчуг 1908 серый, 230см","Св. серый"]
[null,null,null,null,null,null,null,null,null,null,null,null,null,null,null,null,null,null,null,null,"Жемчуг 2406 бежевый, 230см","плиссе","Жемчуг 2406 бежевый, 230см","Бежевый"]
[null,null,null,null,null,null,null,null,null,null,null,null,null,null,null,null,null,null,null,null,"Жемчуг 4221 желтый, 230см","плиссе","Жемчуг 4221 желтый, 230см","Песочный"]
[null,null,null,null,null,null,null,null,null,null,null,null,null,null,null,null,null,null,null,null,"Жемчуг 4284 лиловый, 230см","плиссе","Жемчуг 4284 лиловый, 230см","Лиловый"]
[null,null,null,null,null,null,null,null,null,null,null,null,null,null,null,null,null,null,null,null,"Жемчуг 4290 оранжевый, 230см","плиссе","Жемчуг 4290 оранжевый, 230см","Оранжевый"]
[null,null,null,null,null,null,null,null,null,null,null,null,null,null,null,null,null,null,null,null,"Жемчуг 4454 красный, 230см","плиссе","Жемчуг 4454 красный, 230см","Розовый"]
[null,null,null,null,null,null,null,null,null,null,null,null,null,null,null,null,null,null,null,null,"Жемчуг 5540 оливковый, 230см","плиссе","Жемчуг 5540 оливковый, 230см","Бежевый"]
[null,null,null,null,null,null,null,null,null,null,null,null,null,null,null,null,null,null,null,null,"Импала 2261 светло-бежевый 240 см","плиссе","Импала 2261 светло-бежевый 240 см","Белый"]
[null,null,null,null,null,null,null,null,null,null,null,null,null,null,null,null,null,null,null,null,"Импала 2746 бежевый 240 см","плиссе","Импала 2746 бежевый 240 см","Бежевый"]
[null,null,null,null,null,null,null,null,null,null,null,null,null,null,null,null,null,null,null,null,"Импала 2868 светло-коричневый 240 см","плиссе","Импала 2868 светло-коричневый 240 см","Бежевый"]
[null,null,null,null,null,null,null,null,null,null,null,null,null,null,null,null,null,null,null,null,"Импала 2870 коричневый, 240см","плиссе","Импала 2870 коричневый, 240см","Коричневый"]
[null,null,null,null,null,null,null,null,null,null,null,null,null,null,null,null,null,null,null,null,"Исфахан 1608 св.серый, 235см","плиссе","Исфахан 1608 св.серый, 235см","Белый"]
[null,null,null,null,null,null,null,null,null,null,null,null,null,null,null,null,null,null,null,null,"Исфахан 2406 бежевый, 235см","плиссе","Исфахан 2406 бежевый, 235см","Песочный"]
[null,null,null,null,null,null,null,null,null,null,null,null,null,null,null,null,null,null,null,null,"Исфахан 2746 св.коричневый, 235см","плиссе","Исфахан 2746 св.коричневый, 235см","Песочный"]
[null,null,null,null,null,null,null,null,null,null,null,null,null,null,null,null,null,null,null,null,"Исфахан 2872 коричневый 235 см","плиссе","Исфахан 2872 коричневый 235 см","Коричневый"]
[null,null,null,null,null,null,null,null,null,null,null,null,null,null,null,null,null,null,null,null,"Исфахан 4200 розовый, 235см","плиссе","Исфахан 4200 розовый, 235см","Розовый"]
[null,null,null,null,null,null,null,null,null,null,null,null,null,null,null,null,null,null,null,null,"Исфахан 4210 св.бежевый, 235см","плиссе","Исфахан 4210 св.бежевый, 235см","Песочный"]
[null,null,null,null,null,null,null,null,null,null,null,null,null,null,null,null,null,null,null,null,"Йорк 0225 белый, 235см","плиссе","Йорк 0225 белый, 235см","Белый"]
[null,null,null,null,null,null,null,null,null,null,null,null,null,null,null,null,null,null,null,null,"Йорк 2406 бежевый, 235см","плиссе","Йорк 2406 бежевый, 235см","Бежевый"]
[null,null,null,null,null,null,null,null,null,null,null,null,null,null,null,null,null,null,null,null,"Йорк 4858 черный/роза, 235см","плиссе","Йорк 4858 черный/роза, 235см","Лиловый"]
[null,null,null,null,null,null,null,null,null,null,null,null,null,null,null,null,null,null,null,null,"Капри 0225 белый, 235-240см","плиссе","Капри 0225 белый, 235-240см","Белый"]
[null,null,null,null,null,null,null,null,null,null,null,null,null,null,null,null,null,null,null,null,"Капри 1608 серый, 235-240см","плиссе","Капри 1608 серый, 235-240см","Серый"]
[null,null,null,null,null,null,null,null,null,null,null,null,null,null,null,null,null,null,null,null,"Капри 2549 кремовый , 230 см","плиссе","Капри 2549 кремовый , 230 см","Бежевый"]
[null,null,null,null,null,null,null,null,null,null,null,null,null,null,null,null,null,null,null,null,"Капри 3209 желтый, 235-240см","плиссе","Капри 3209 желтый, 235-240см","Песочный"]
[null,null,null,null,null,null,null,null,null,null,null,null,null,null,null,null,null,null,null,null,"Капри 3499 оранжевый, 240см","плиссе","Капри 3499 оранжевый, 240см","Оранжевый"]
[null,null,null,null,null,null,null,null,null,null,null,null,null,null,null,null,null,null,null,null,"Капри 4075 красный, 240см","плиссе","Капри 4075 красный, 240см","Розовый"]
[null,null,null,null,null,null,null,null,null,null,null,null,null,null,null,null,null,null,null,null,"Капри 4096 розовый, 240см","плиссе","Капри 4096 розовый, 240см","Розовый"]
[null,null,null,null,null,null,null,null,null,null,null,null,null,null,null,null,null,null,null,null,"Капри 4831 лаванда, 235-240см","плиссе","Капри 4831 лаванда, 235-240см","Лиловый"]
[null,null,null,null,null,null,null,null,null,null,null,null,null,null,null,null,null,null,null,null,"Капри 5102 голубой, 235-240см","плиссе","Капри 5102 голубой, 235-240см","Св.синий"]
[null,null,null,null,null,null,null,null,null,null,null,null,null,null,null,null,null,null,null,null,"Капри 5302 синий, 240см","плиссе","Капри 5302 синий, 240см","Синий"]
[null,null,null,null,null,null,null,null,null,null,null,null,null,null,null,null,null,null,null,null,"Капри 5586 фисташковый, 240см","плиссе","Капри 5586 фисташковый, 240см","Желто-зеленый"]
[null,null,null,null,null,null,null,null,null,null,null,null,null,null,null,null,null,null,null,null,"Капри 5612 бирюзовый, 240см","плиссе","Капри 5612 бирюзовый, 240см","Св.синий"]
[null,null,null,null,null,null,null,null,null,null,null,null,null,null,null,null,null,null,null,null,"Капри Дотс 0225 белый 240 см","плиссе","Капри Дотс 0225 белый 240 см","Белый"]
[null,null,null,null,null,null,null,null,null,null,null,null,null,null,null,null,null,null,null,null,"Капри Дотс 4803 лиловый 240 см","плиссе","Капри Дотс 4803 лиловый 240 см","Лиловый"]
[null,null,null,null,null,null,null,null,null,null,null,null,null,null,null,null,null,null,null,null,"Капри Дотс 5102 голубой 240 см","плиссе","Капри Дотс 5102 голубой 240 см","Св.зеленый"]
[null,null,null,null,null,null,null,null,null,null,null,null,null,null,null,null,null,null,null,null,"Капри Перла 0225 белый 240 см","плиссе","Капри Перла 0225 белый 240 см","Белый"]
[null,null,null,null,null,null,null,null,null,null,null,null,null,null,null,null,null,null,null,null,"Капри Перла 1608 светло-серый 240 см","плиссе","Капри Перла 1608 светло-серый 240 см","Серый"]
[null,null,null,null,null,null,null,null,null,null,null,null,null,null,null,null,null,null,null,null,"Капри Перла 2261 светло-бежевый 240 см","плиссе","Капри Перла 2261 светло-бежевый 240 см","Бежевый"]
[null,null,null,null,null,null,null,null,null,null,null,null,null,null,null,null,null,null,null,null,"Капри Перла 2406 бежевый 240 см","плиссе","Капри Перла 2406 бежевый 240 см","Бежевый"]
[null,null,null,null,null,null,null,null,null,null,null,null,null,null,null,null,null,null,null,null,"Капри Перла 2872 бронза 240 см","плиссе","Капри Перла 2872 бронза 240 см","Коричневый"]
[null,null,null,null,null,null,null,null,null,null,null,null,null,null,null,null,null,null,null,null,"Капри Перла 3465 желтый 240 см","плиссе","Капри Перла 3465 желтый 240 см","Песочный"]
[null,null,null,null,null,null,null,null,null,null,null,null,null,null,null,null,null,null,null,null,"Капри Перла 4240 персиковый 240 см","плиссе","Капри Перла 4240 персиковый 240 см","Абрикос"]
[null,null,null,null,null,null,null,null,null,null,null,null,null,null,null,null,null,null,null,null,"Капри Перла 4803 лиловый 240 см","плиссе","Капри Перла 4803 лиловый 240 см","Лиловый"]
[null,null,null,null,null,null,null,null,null,null,null,null,null,null,null,null,null,null,null,null,"Капри Перла 5102 голубой 240 см","плиссе","Капри Перла 5102 голубой 240 см","Св.синий"]
[null,null,null,null,null,null,null,null,null,null,null,null,null,null,null,null,null,null,null,null,"Капри Перла 5586 салатовый 240 см","плиссе","Капри Перла 5586 салатовый 240 см","Св.зеленый"]
[null,null,null,null,null,null,null,null,null,null,null,null,null,null,null,null,null,null,null,null,"Кент 0225 белый, 235см","плиссе","Кент 0225 белый, 235см","Белый"]
[null,null,null,null,null,null,null,null,null,null,null,null,null,null,null,null,null,null,null,null,"Кент 1881 черный, 235см","плиссе","Кент 1881 черный, 235см","Черный"]
[null,null,null,null,null,null,null,null,null,null,null,null,null,null,null,null,null,null,null,null,"Кент 2406 бежевый, 235см","плиссе","Кент 2406 бежевый, 235см","Бежевый"]
[null,null,null,null,null,null,null,null,null,null,null,null,null,null,null,null,null,null,null,null,"Классик Перла 0225 белый, 240см","плиссе","Классик Перла 0225 белый, 240см","Белый"]
[null,null,null,null,null,null,null,null,null,null,null,null,null,null,null,null,null,null,null,null,"Классик Перла 1608 св. серый, 240см","плиссе","Классик Перла 1608 св. серый, 240см","св. серый"]
[null,null,null,null,null,null,null,null,null,null,null,null,null,null,null,null,null,null,null,null,"Классик Перла 1852 серый, 240см","плиссе","Классик Перла 1852 серый, 240см","Серый"]
[null,null,null,null,null,null,null,null,null,null,null,null,null,null,null,null,null,null,null,null,"Классик Перла 2261 св. бежевый, 240см","плиссе","Классик Перла 2261 св. бежевый, 240см","Бежевый"]
[null,null,null,null,null,null,null,null,null,null,null,null,null,null,null,null,null,null,null,null,"Классик Перла 2270 песочный, 240см","плиссе","Классик Перла 2270 песочный, 240см","Песочный"]
[null,null,null,null,null,null,null,null,null,null,null,null,null,null,null,null,null,null,null,null,"Классик Перла 2406 бежевый, 240см","плиссе","Классик Перла 2406 бежевый, 240см","Бежевый"]
[null,null,null,null,null,null,null,null,null,null,null,null,null,null,null,null,null,null,null,null,"Клео 1852 серый, 240 см","плиссе","Клео 1852 серый, 240 см","Серый"]
[null,null,null,null,null,null,null,null,null,null,null,null,null,null,null,null,null,null,null,null,"Клео 2259 магнолия, 240 см","плиссе","Клео 2259 магнолия, 240 см","Бежевый"]
[null,null,null,null,null,null,null,null,null,null,null,null,null,null,null,null,null,null,null,null,"Конго 2871 кофе 235 см","плиссе","Конго 2871 кофе 235 см","Коричневый"]
[null,null,null,null,null,null,null,null,null,null,null,null,null,null,null,null,null,null,null,null,"Космо 0225 белый, 205см","плиссе","Космо 0225 белый, 205см","Белый"]
[null,null,null,null,null,null,null,null,null,null,null,null,null,null,null,null,null,null,null,null,"Космо 1608 серебристо-серый, 205см","плиссе","Космо 1608 серебристо-серый, 205см","Белый"]
[null,null,null,null,null,null,null,null,null,null,null,null,null,null,null,null,null,null,null,null,"Космо 3210 желтый, 205см","плиссе","Космо 3210 желтый, 205см","Песочный"]
[null,null,null,null,null,null,null,null,null,null,null,null,null,null,null,null,null,null,null,null,"Космо 3499 оранжевый, 205см","плиссе","Космо 3499 оранжевый, 205см","Оранжевый"]
[null,null,null,null,null,null,null,null,null,null,null,null,null,null,null,null,null,null,null,null,"Краш 0225 белый, 225см","плиссе","Краш 0225 белый, 225см","Белый"]
[null,null,null,null,null,null,null,null,null,null,null,null,null,null,null,null,null,null,null,null,"Краш 5501 светло-зеленый, 225см","плиссе","Краш 5501 светло-зеленый, 225см","Св.зеленый"]
[null,null,null,null,null,null,null,null,null,null,null,null,null,null,null,null,null,null,null,null,"Краш металл 1881 т.серый, 225см","плиссе","Краш металл 1881 т.серый, 225см","Серый"]
[null,null,null,null,null,null,null,null,null,null,null,null,null,null,null,null,null,null,null,null,"Краш металл 4068 медь, 230 см","плиссе","Краш металл 4068 медь, 230 см","Абрикос"]
[null,null,null,null,null,null,null,null,null,null,null,null,null,null,null,null,null,null,null,null,"Краш перла 0225 белый,  225см","плиссе","Краш перла 0225 белый,  225см","Белый"]
[null,null,null,null,null,null,null,null,null,null,null,null,null,null,null,null,null,null,null,null,"Краш Перла 0225 белый, 15 мм, 230 см","плиссе","Краш Перла 0225 белый, 15 мм, 230 см","Белый"]
[null,null,null,null,null,null,null,null,null,null,null,null,null,null,null,null,null,null,null,null,"Краш перла 1710 серый, 225см","плиссе","Краш перла 1710 серый, 225см","Серый"]
[null,null,null,null,null,null,null,null,null,null,null,null,null,null,null,null,null,null,null,null,"Краш Перла 1852 серый, 15 мм, 230 см","плиссе","Краш Перла 1852 серый, 15 мм, 230 см","Серый"]
[null,null,null,null,null,null,null,null,null,null,null,null,null,null,null,null,null,null,null,null,"Краш перла 1908 черный, 225см","плиссе","Краш перла 1908 черный, 225см","Черный"]
[null,null,null,null,null,null,null,null,null,null,null,null,null,null,null,null,null,null,null,null,"Краш Перла 2259 магнолия, 15 мм, 230 см","плиссе","Краш Перла 2259 магнолия, 15 мм, 230 см","Белый"]
[null,null,null,null,null,null,null,null,null,null,null,null,null,null,null,null,null,null,null,null,"Краш перла 2259 магнолия, 225см","плиссе","Краш перла 2259 магнолия, 225см","Бежевый"]
[null,null,null,null,null,null,null,null,null,null,null,null,null,null,null,null,null,null,null,null,"Краш перла 2270 песочный,  230 см","плиссе","Краш перла 2270 песочный,  230 см","Песочный"]
[null,null,null,null,null,null,null,null,null,null,null,null,null,null,null,null,null,null,null,null,"Краш перла 2406 бежевый, 225см","плиссе","Краш перла 2406 бежевый, 225см","Бежевый"]
[null,null,null,null,null,null,null,null,null,null,null,null,null,null,null,null,null,null,null,null,"Краш перла 2746 т.бежевый, 225см","плиссе","Краш перла 2746 т.бежевый, 225см","Бежевый"]
[null,null,null,null,null,null,null,null,null,null,null,null,null,null,null,null,null,null,null,null,"Краш Перла 2868 св. коричневый, 15 мм, 230 см","плиссе","Краш Перла 2868 св. коричневый, 15 мм, 230 см","Бежевый"]
[null,null,null,null,null,null,null,null,null,null,null,null,null,null,null,null,null,null,null,null,"Краш перла 2868 св.коричневый,  225см","плиссе","Краш перла 2868 св.коричневый,  225см","Бежевый"]
[null,null,null,null,null,null,null,null,null,null,null,null,null,null,null,null,null,null,null,null,"Краш перла 2870 коричневый, 225см","плиссе","Краш перла 2870 коричневый, 225см","Коричневый"]
[null,null,null,null,null,null,null,null,null,null,null,null,null,null,null,null,null,null,null,null,"Краш перла 3210 св.желтый,  225см","плиссе","Краш перла 3210 св.желтый,  225см","Песочный"]
[null,null,null,null,null,null,null,null,null,null,null,null,null,null,null,null,null,null,null,null,"Краш перла 3499 шафран, 225см","плиссе","Краш перла 3499 шафран, 225см","Оранжевый"]
[null,null,null,null,null,null,null,null,null,null,null,null,null,null,null,null,null,null,null,null,"Краш перла 4063 св.бежевый, 225см","плиссе","Краш перла 4063 св.бежевый, 225см","Бежевый"]
[null,null,null,null,null,null,null,null,null,null,null,null,null,null,null,null,null,null,null,null,"Краш перла 4064 т. красный,  230 см","плиссе","Краш перла 4064 т. красный,  230 см","Бордо"]
[null,null,null,null,null,null,null,null,null,null,null,null,null,null,null,null,null,null,null,null,"Краш перла 4077 томат, 225см","плиссе","Краш перла 4077 томат, 225см","Розовый"]
[null,null,null,null,null,null,null,null,null,null,null,null,null,null,null,null,null,null,null,null,"Краш перла 4091 т. пурпур,  230 см","плиссе","Краш перла 4091 т. пурпур,  230 см","Бордо"]
[null,null,null,null,null,null,null,null,null,null,null,null,null,null,null,null,null,null,null,null,"Краш перла 4158 розовый, 225см","плиссе","Краш перла 4158 розовый, 225см","Розовый"]
[null,null,null,null,null,null,null,null,null,null,null,null,null,null,null,null,null,null,null,null,"Краш перла 4202 малина, 225см","плиссе","Краш перла 4202 малина, 225см","Розовый"]
[null,null,null,null,null,null,null,null,null,null,null,null,null,null,null,null,null,null,null,null,"Краш перла 4221 бледно-желтый, 225см","плиссе","Краш перла 4221 бледно-желтый, 225см","Песочный"]
[null,null,null,null,null,null,null,null,null,null,null,null,null,null,null,null,null,null,null,null,"Краш перла 4284 лиловый,  230 см","плиссе","Краш перла 4284 лиловый,  230 см","Лиловый"]
[null,null,null,null,null,null,null,null,null,null,null,null,null,null,null,null,null,null,null,null,"Краш перла 4292 терракота, 225см","плиссе","Краш перла 4292 терракота, 225см","Оранжевый"]
[null,null,null,null,null,null,null,null,null,null,null,null,null,null,null,null,null,null,null,null,"Краш перла 4523 красный, 225см","плиссе","Краш перла 4523 красный, 225см","Розовый"]
[null,null,null,null,null,null,null,null,null,null,null,null,null,null,null,null,null,null,null,null,"Краш перла 4858 лиловый, 225см","плиссе","Краш перла 4858 лиловый, 225см","Лиловый"]
[null,null,null,null,null,null,null,null,null,null,null,null,null,null,null,null,null,null,null,null,"Краш перла 5173 голубой, 225см","плиссе","Краш перла 5173 голубой, 225см","Св.синий"]
[null,null,null,null,null,null,null,null,null,null,null,null,null,null,null,null,null,null,null,null,"Краш перла 5302 синий, 225см","плиссе","Краш перла 5302 синий, 225см","Синий"]
[null,null,null,null,null,null,null,null,null,null,null,null,null,null,null,null,null,null,null,null,"Краш перла 5501 св.зеленый, 225см","плиссе","Краш перла 5501 св.зеленый, 225см","Св.зеленый"]
[null,null,null,null,null,null,null,null,null,null,null,null,null,null,null,null,null,null,null,null,"Краш перла 5586 зеленый,  225см","плиссе","Краш перла 5586 зеленый,  225см","Св.зеленый"]
[null,null,null,null,null,null,null,null,null,null,null,null,null,null,null,null,null,null,null,null,"Краш перла 5612 бирюзовый, 225см","плиссе","Краш перла 5612 бирюзовый, 225см","Желто-зеленый"]
[null,null,null,null,null,null,null,null,null,null,null,null,null,null,null,null,null,null,null,null,"Краш перла 5992 т. бирюзовый,  230 см","плиссе","Краш перла 5992 т. бирюзовый,  230 см","Зелёный"]
[null,null,null,null,null,null,null,null,null,null,null,null,null,null,null,null,null,null,null,null,"Краш, 4064 бежевый, 225см","плиссе","Краш, 4064 бежевый, 225см","Абрикос"]
[null,null,null,null,null,null,null,null,null,null,null,null,null,null,null,null,null,null,null,null,"Креп 0225 белый, 15 мм, 230 см","плиссе","Креп 0225 белый, 15 мм, 230 см","Белый"]
[null,null,null,null,null,null,null,null,null,null,null,null,null,null,null,null,null,null,null,null,"Креп 0225 белый, 235см","плиссе","Креп 0225 белый, 235см","Белый"]
[null,null,null,null,null,null,null,null,null,null,null,null,null,null,null,null,null,null,null,null,"Креп 1608 св.серый, 15 мм, 230 см","плиссе","Креп 1608 св.серый, 15 мм, 230 см","Св. серый"]
[null,null,null,null,null,null,null,null,null,null,null,null,null,null,null,null,null,null,null,null,"Креп 1608 св.серый, 235см","плиссе","Креп 1608 св.серый, 235см","Св. серый"]
[null,null,null,null,null,null,null,null,null,null,null,null,null,null,null,null,null,null,null,null,"Креп 1908 черный, 235см","плиссе","Креп 1908 черный, 235см","Черный"]
[null,null,null,null,null,null,null,null,null,null,null,null,null,null,null,null,null,null,null,null,"Креп 2259 магнолия, 15 мм, 230 см","плиссе","Креп 2259 магнолия, 15 мм, 230 см","Белый"]
[null,null,null,null,null,null,null,null,null,null,null,null,null,null,null,null,null,null,null,null,"Креп 2406 бежевый, 15 мм, 230 см","плиссе","Креп 2406 бежевый, 15 мм, 230 см","Бежевый"]
[null,null,null,null,null,null,null,null,null,null,null,null,null,null,null,null,null,null,null,null,"Креп 2406 св.бежевый, 235см","плиссе","Креп 2406 св.бежевый, 235см","Бежевый"]
[null,null,null,null,null,null,null,null,null,null,null,null,null,null,null,null,null,null,null,null,"Креп 2746 бежевый, 235см","плиссе","Креп 2746 бежевый, 235см","Песочный"]
[null,null,null,null,null,null,null,null,null,null,null,null,null,null,null,null,null,null,null,null,"Креп 2840 карамель, 15 мм, 230 см","плиссе","Креп 2840 карамель, 15 мм, 230 см","Песочный"]
[null,null,null,null,null,null,null,null,null,null,null,null,null,null,null,null,null,null,null,null,"Креп 2870 коричневый, 15 мм, 230 см","плиссе","Креп 2870 коричневый, 15 мм, 230 см","Коричневый"]
[null,null,null,null,null,null,null,null,null,null,null,null,null,null,null,null,null,null,null,null,"Креп 2870 коричневый, 235см","плиссе","Креп 2870 коричневый, 235см","Коричневый"]
[null,null,null,null,null,null,null,null,null,null,null,null,null,null,null,null,null,null,null,null,"Креп 3204 лимонный, 235см","плиссе","Креп 3204 лимонный, 235см","Песочный"]
[null,null,null,null,null,null,null,null,null,null,null,null,null,null,null,null,null,null,null,null,"Креп 3210 св.желтый, 235см","плиссе","Креп 3210 св.желтый, 235см","Песочный"]
[null,null,null,null,null,null,null,null,null,null,null,null,null,null,null,null,null,null,null,null,"Креп 3465 желтый, 235см","плиссе","Креп 3465 желтый, 235см","Оранжевый"]
[null,null,null,null,null,null,null,null,null,null,null,null,null,null,null,null,null,null,null,null,"Креп 3499 оранжевый, 235см","плиссе","Креп 3499 оранжевый, 235см","Оранжевый"]
[null,null,null,null,null,null,null,null,null,null,null,null,null,null,null,null,null,null,null,null,"Креп 4077 красный, 235см","плиссе","Креп 4077 красный, 235см","Розовый"]
[null,null,null,null,null,null,null,null,null,null,null,null,null,null,null,null,null,null,null,null,"Креп 4210 ваниль, 235см","плиссе","Креп 4210 ваниль, 235см","Песочный"]
[null,null,null,null,null,null,null,null,null,null,null,null,null,null,null,null,null,null,null,null,"Креп 4221 персик, 235см","плиссе","Креп 4221 персик, 235см","Песочный"]
[null,null,null,null,null,null,null,null,null,null,null,null,null,null,null,null,null,null,null,null,"Креп 4290 терракота, 235см","плиссе","Креп 4290 терракота, 235см","Абрикос"]
[null,null,null,null,null,null,null,null,null,null,null,null,null,null,null,null,null,null,null,null,"Креп 5173 голубой, 235см","плиссе","Креп 5173 голубой, 235см","Св.синий"]
[null,null,null,null,null,null,null,null,null,null,null,null,null,null,null,null,null,null,null,null,"Креп 5252 синий, 235см","плиссе","Креп 5252 синий, 235см","Синий"]
[null,null,null,null,null,null,null,null,null,null,null,null,null,null,null,null,null,null,null,null,"Креп 5612 св.зеленый, 235см","плиссе","Креп 5612 св.зеленый, 235см","Св.зеленый"]
[null,null,null,null,null,null,null,null,null,null,null,null,null,null,null,null,null,null,null,null,"Креп 5850 зеленый, 235см","плиссе","Креп 5850 зеленый, 235см","Св.зеленый"]
[null,null,null,null,null,null,null,null,null,null,null,null,null,null,null,null,null,null,null,null,"Креп перла 0225 белый, 235см","плиссе","Креп перла 0225 белый, 235см","Белый"]
[null,null,null,null,null,null,null,null,null,null,null,null,null,null,null,null,null,null,null,null,"Креп Перла 0225 белый, 32 мм, 225 см","плиссе","Креп Перла 0225 белый, 32 мм, 225 см","Белый"]
[null,null,null,null,null,null,null,null,null,null,null,null,null,null,null,null,null,null,null,null,"Креп Перла 1608 св. серый, 32 мм, 225 см","плиссе","Креп Перла 1608 св. серый, 32 мм, 225 см","Св. серый"]
[null,null,null,null,null,null,null,null,null,null,null,null,null,null,null,null,null,null,null,null,"Креп перла 1608 серый, 150см","плиссе","Креп перла 1608 серый, 150см","Св. серый"]
[null,null,null,null,null,null,null,null,null,null,null,null,null,null,null,null,null,null,null,null,"Креп перла 1608 серый, 235см","плиссе","Креп перла 1608 серый, 235см","Св. серый"]
[null,null,null,null,null,null,null,null,null,null,null,null,null,null,null,null,null,null,null,null,"Креп перла 1881 т. серый, 235см","плиссе","Креп перла 1881 т. серый, 235см","Серый"]
[null,null,null,null,null,null,null,null,null,null,null,null,null,null,null,null,null,null,null,null,"Креп перла 1908 черный, 235см","плиссе","Креп перла 1908 черный, 235см","Черный"]
[null,null,null,null,null,null,null,null,null,null,null,null,null,null,null,null,null,null,null,null,"Креп Перла 2259 магнолия, 32 мм, 225 см","плиссе","Креп Перла 2259 магнолия, 32 мм, 225 см","Бежевый"]
[null,null,null,null,null,null,null,null,null,null,null,null,null,null,null,null,null,null,null,null,"Креп перла 2406 песочный, 235см","плиссе","Креп перла 2406 песочный, 235см","Бежевый"]
[null,null,null,null,null,null,null,null,null,null,null,null,null,null,null,null,null,null,null,null,"Креп перла 2746 темно-бежевый, 235см","плиссе","Креп перла 2746 темно-бежевый, 235см","Песочный"]
[null,null,null,null,null,null,null,null,null,null,null,null,null,null,null,null,null,null,null,null,"Креп перла 2748 капучино, 235см","плиссе","Креп перла 2748 капучино, 235см","Бежевый"]
[null,null,null,null,null,null,null,null,null,null,null,null,null,null,null,null,null,null,null,null,"Креп перла 2871 т. коричневый, 235см","плиссе","Креп перла 2871 т. коричневый, 235см","Коричневый"]
[null,null,null,null,null,null,null,null,null,null,null,null,null,null,null,null,null,null,null,null,"Креп перла 2871 т. коричневый, 235см","плиссе","Креп перла 2871 т. коричневый, 235см","Коричневый"]
[null,null,null,null,null,null,null,null,null,null,null,null,null,null,null,null,null,null,null,null,"Креп перла 3209 св. желтый, 235см","плиссе","Креп перла 3209 св. желтый, 235см","Белый"]
[null,null,null,null,null,null,null,null,null,null,null,null,null,null,null,null,null,null,null,null,"Креп перла 3210 бежевый, 235см","плиссе","Креп перла 3210 бежевый, 235см","Песочный"]
[null,null,null,null,null,null,null,null,null,null,null,null,null,null,null,null,null,null,null,null,"Креп перла 3465 желтый, 235см","плиссе","Креп перла 3465 желтый, 235см","Оранжевый"]
[null,null,null,null,null,null,null,null,null,null,null,null,null,null,null,null,null,null,null,null,"Креп перла 3499 оранжевый, 235см","плиссе","Креп перла 3499 оранжевый, 235см","Оранжевый"]
[null,null,null,null,null,null,null,null,null,null,null,null,null,null,null,null,null,null,null,null,"Креп перла 4066 абрикос, 235см","плиссе","Креп перла 4066 абрикос, 235см","Абрикос"]
[null,null,null,null,null,null,null,null,null,null,null,null,null,null,null,null,null,null,null,null,"Креп перла 4077 красный, 235см","плиссе","Креп перла 4077 красный, 235см","Розовый"]
[null,null,null,null,null,null,null,null,null,null,null,null,null,null,null,null,null,null,null,null,"Креп перла 4210 ваниль, 235см","плиссе","Креп перла 4210 ваниль, 235см","Бежевый"]
[null,null,null,null,null,null,null,null,null,null,null,null,null,null,null,null,null,null,null,null,"Креп перла 4221 персик, 235см","плиссе","Креп перла 4221 персик, 235см","Песочный"]
[null,null,null,null,null,null,null,null,null,null,null,null,null,null,null,null,null,null,null,null,"Креп перла 4290 терракота, 235см","плиссе","Креп перла 4290 терракота, 235см","Абрикос"]
[null,null,null,null,null,null,null,null,null,null,null,null,null,null,null,null,null,null,null,null,"Креп перла 4824 сиреневый, 235см","плиссе","Креп перла 4824 сиреневый, 235см","Лиловый"]
[null,null,null,null,null,null,null,null,null,null,null,null,null,null,null,null,null,null,null,null,"Креп перла 5173 голубой, 235см","плиссе","Креп перла 5173 голубой, 235см","Св.синий"]
[null,null,null,null,null,null,null,null,null,null,null,null,null,null,null,null,null,null,null,null,"Креп перла 5252 синий, 235см","плиссе","Креп перла 5252 синий, 235см","Синий"]
[null,null,null,null,null,null,null,null,null,null,null,null,null,null,null,null,null,null,null,null,"Креп перла 5470 т. синий, 235см","плиссе","Креп перла 5470 т. синий, 235см","Черный"]
[null,null,null,null,null,null,null,null,null,null,null,null,null,null,null,null,null,null,null,null,"Креп перла 5612 св.зеленый, 235см","плиссе","Креп перла 5612 св.зеленый, 235см","Желто-зеленый"]
[null,null,null,null,null,null,null,null,null,null,null,null,null,null,null,null,null,null,null,null,"Креп перла 5850 зеленый, 235см","плиссе","Креп перла 5850 зеленый, 235см","Зеленый"]
[null,null,null,null,null,null,null,null,null,null,null,null,null,null,null,null,null,null,null,null,"Крисп Перла 0225 белый, 240см","плиссе","Крисп Перла 0225 белый, 240см","Белый"]
[null,null,null,null,null,null,null,null,null,null,null,null,null,null,null,null,null,null,null,null,"Крисп Перла 1608 светло-серый, 240см","плиссе","Крисп Перла 1608 светло-серый, 240см","Серый"]
[null,null,null,null,null,null,null,null,null,null,null,null,null,null,null,null,null,null,null,null,"Крисп Перла 2259 магнолия, 240см","плиссе","Крисп Перла 2259 магнолия, 240см","Абрикос"]
[null,null,null,null,null,null,null,null,null,null,null,null,null,null,null,null,null,null,null,null,"Крисп Перла 2406 бежевый, 240см","плиссе","Крисп Перла 2406 бежевый, 240см","Бежевый"]
[null,null,null,null,null,null,null,null,null,null,null,null,null,null,null,null,null,null,null,null,"Крисп Перла 2746 темно-бежевый, 240см","плиссе","Крисп Перла 2746 темно-бежевый, 240см","Песочный"]
[null,null,null,null,null,null,null,null,null,null,null,null,null,null,null,null,null,null,null,null,"Крисп Перла 2871 темно-коричневый, 240см","плиссе","Крисп Перла 2871 темно-коричневый, 240см","Коричневый"]
[null,null,null,null,null,null,null,null,null,null,null,null,null,null,null,null,null,null,null,null,"Крисп Перла 3144 ваниль, 240см","плиссе","Крисп Перла 3144 ваниль, 240см","Бежевый"]
[null,null,null,null,null,null,null,null,null,null,null,null,null,null,null,null,null,null,null,null,"Лайн Перла 0225 белый, 240см","плиссе","Лайн Перла 0225 белый, 240см","Белый"]
[null,null,null,null,null,null,null,null,null,null,null,null,null,null,null,null,null,null,null,null,"Лайн Перла 2261 светло-бежевый, 240см","плиссе","Лайн Перла 2261 светло-бежевый, 240см","Песочный"]
[null,null,null,null,null,null,null,null,null,null,null,null,null,null,null,null,null,null,null,null,"Лайн Перла 2406 бежевый, 240см","плиссе","Лайн Перла 2406 бежевый, 240см","Оранжевый"]
[null,null,null,null,null,null,null,null,null,null,null,null,null,null,null,null,null,null,null,null,"Лайн Перла 4063 персиковый, 240см","плиссе","Лайн Перла 4063 персиковый, 240см","Оранжевый"]
[null,null,null,null,null,null,null,null,null,null,null,null,null,null,null,null,null,null,null,null,"Лен  0225 белый, 235см","плиссе","Лен  0225 белый, 235см","Белый"]
[null,null,null,null,null,null,null,null,null,null,null,null,null,null,null,null,null,null,null,null,"Лен 2406 бежевый, 235см","плиссе","Лен 2406 бежевый, 235см","Бежевый"]
[null,null,null,null,null,null,null,null,null,null,null,null,null,null,null,null,null,null,null,null,"Лен 4059 розовый, 235см","плиссе","Лен 4059 розовый, 235см","Розовый"]
[null,null,null,null,null,null,null,null,null,null,null,null,null,null,null,null,null,null,null,null,"Лен 5173 голубой, 235см","плиссе","Лен 5173 голубой, 235см","Белый"]
[null,null,null,null,null,null,null,null,null,null,null,null,null,null,null,null,null,null,null,null,"Лен Каре 2261 светло-бежевый, 210см","плиссе","Лен Каре 2261 светло-бежевый, 210см","Белый"]
[null,null,null,null,null,null,null,null,null,null,null,null,null,null,null,null,null,null,null,null,"Лен Уно 2261 светло-бежевый, 210см","плиссе","Лен Уно 2261 светло-бежевый, 210см","Белый"]
[null,null,null,null,null,null,null,null,null,null,null,null,null,null,null,null,null,null,null,null,"Лен Флер 2261 светло-бежевый, 210см","плиссе","Лен Флер 2261 светло-бежевый, 210см","Белый"]
[null,null,null,null,null,null,null,null,null,null,null,null,null,null,null,null,null,null,null,null,"Лима 0225 белый, 200см","плиссе","Лима 0225 белый, 200см","Белый"]
[null,null,null,null,null,null,null,null,null,null,null,null,null,null,null,null,null,null,null,null,"Лима 0225 белый, 235см","плиссе","Лима 0225 белый, 235см","Белый"]
[null,null,null,null,null,null,null,null,null,null,null,null,null,null,null,null,null,null,null,null,"Лима 2259 экрю, 200см","плиссе","Лима 2259 экрю, 200см","Песочный"]
[null,null,null,null,null,null,null,null,null,null,null,null,null,null,null,null,null,null,null,null,"Лима 2259 экрю, 235см","плиссе","Лима 2259 экрю, 235см","Песочный"]
[null,null,null,null,null,null,null,null,null,null,null,null,null,null,null,null,null,null,null,null,"Лима 2872 коричневый, 235 см","плиссе","Лима 2872 коричневый, 235 см","Коричневый"]
[null,null,null,null,null,null,null,null,null,null,null,null,null,null,null,null,null,null,null,null,"Лима 4858 бордо, 200см","плиссе","Лима 4858 бордо, 200см","Бордо"]
[null,null,null,null,null,null,null,null,null,null,null,null,null,null,null,null,null,null,null,null,"Лима 4858 бордо, 235 см","плиссе","Лима 4858 бордо, 235 см","Бордо"]
[null,null,null,null,null,null,null,null,null,null,null,null,null,null,null,null,null,null,null,null,"Лима 5850 зеленый, 200см","плиссе","Лима 5850 зеленый, 200см","Св.зеленый"]
[null,null,null,null,null,null,null,null,null,null,null,null,null,null,null,null,null,null,null,null,"Лима 5850 зеленый, 235 см","плиссе","Лима 5850 зеленый, 235 см","Зеленый"]
[null,null,null,null,null,null,null,null,null,null,null,null,null,null,null,null,null,null,null,null,"Лофт  0225 белый, 280 см","плиссе","Лофт  0225 белый, 280 см","Белый"]
[null,null,null,null,null,null,null,null,null,null,null,null,null,null,null,null,null,null,null,null,"Лужок 0225 белый, 230см","плиссе","Лужок 0225 белый, 230см","Белый"]
[null,null,null,null,null,null,null,null,null,null,null,null,null,null,null,null,null,null,null,null,"Лунд BO 0225 белый, 15 мм, 230 см","плиссе","Лунд BO 0225 белый, 15 мм, 230 см","Белый"]
[null,null,null,null,null,null,null,null,null,null,null,null,null,null,null,null,null,null,null,null,"Лунд BO 1608 св. серый, 15 мм, 230 см","плиссе","Лунд BO 1608 св. серый, 15 мм, 230 см","Св. серый"]
[null,null,null,null,null,null,null,null,null,null,null,null,null,null,null,null,null,null,null,null,"Лунд BO 2259 магнолия, 15 мм, 230 см","плиссе","Лунд BO 2259 магнолия, 15 мм, 230 см","Белый"]
[null,null,null,null,null,null,null,null,null,null,null,null,null,null,null,null,null,null,null,null,"Лунд BO 2406 бежевый, 15 мм, 230 см","плиссе","Лунд BO 2406 бежевый, 15 мм, 230 см","Бежевый"]
[null,null,null,null,null,null,null,null,null,null,null,null,null,null,null,null,null,null,null,null,"Мара БО 0225 белый, 235см","плиссе","Мара БО 0225 белый, 235см","Белый"]
[null,null,null,null,null,null,null,null,null,null,null,null,null,null,null,null,null,null,null,null,"Мара БО 1852 серый, 235 см","плиссе","Мара БО 1852 серый, 235 см","Св. серый"]
[null,null,null,null,null,null,null,null,null,null,null,null,null,null,null,null,null,null,null,null,"Мара БО 1881 тем.серый, 235см","плиссе","Мара БО 1881 тем.серый, 235см","Серый"]
[null,null,null,null,null,null,null,null,null,null,null,null,null,null,null,null,null,null,null,null,"Мара БО 2259 магнолия, 235см","плиссе","Мара БО 2259 магнолия, 235см","Белый"]
[null,null,null,null,null,null,null,null,null,null,null,null,null,null,null,null,null,null,null,null,"Мара БО 2406 бежевый, 235 см","плиссе","Мара БО 2406 бежевый, 235 см","Бежевый"]
[null,null,null,null,null,null,null,null,null,null,null,null,null,null,null,null,null,null,null,null,"Мара БО 2870 коричневый, 235 см","плиссе","Мара БО 2870 коричневый, 235 см","Коричневый"]
[null,null,null,null,null,null,null,null,null,null,null,null,null,null,null,null,null,null,null,null,"Мара БО 3465 золотистый, 235см","плиссе","Мара БО 3465 золотистый, 235см","Песочный"]
[null,null,null,null,null,null,null,null,null,null,null,null,null,null,null,null,null,null,null,null,"Мара БО 3695 охра, 235 см","плиссе","Мара БО 3695 охра, 235 см","Песочный"]
[null,null,null,null,null,null,null,null,null,null,null,null,null,null,null,null,null,null,null,null,"Мережка 0225 белый, 235см","плиссе","Мережка 0225 белый, 235см","Белый"]
[null,null,null,null,null,null,null,null,null,null,null,null,null,null,null,null,null,null,null,null,"Мережка 2406 бежевый, 235см","плиссе","Мережка 2406 бежевый, 235см","Песочный"]
[null,null,null,null,null,null,null,null,null,null,null,null,null,null,null,null,null,null,null,null,"Металлик 0225 белый, 240см","плиссе","Металлик 0225 белый, 240см","Белый"]
[null,null,null,null,null,null,null,null,null,null,null,null,null,null,null,null,null,null,null,null,"Металлик 1608 светло-серый, 240см","плиссе","Металлик 1608 светло-серый, 240см","Серый"]
[null,null,null,null,null,null,null,null,null,null,null,null,null,null,null,null,null,null,null,null,"Металлик 1881 темно-серый, 240см","плиссе","Металлик 1881 темно-серый, 240см","Серый"]
[null,null,null,null,null,null,null,null,null,null,null,null,null,null,null,null,null,null,null,null,"Металлик 2261 бежевый, 240см","плиссе","Металлик 2261 бежевый, 240см","Песочный"]
[null,null,null,null,null,null,null,null,null,null,null,null,null,null,null,null,null,null,null,null,"Металлик 2870 коричневый, 240см","плиссе","Металлик 2870 коричневый, 240см","Коричневый"]
[null,null,null,null,null,null,null,null,null,null,null,null,null,null,null,null,null,null,null,null,"Металлик 3465 желтый, 240см","плиссе","Металлик 3465 желтый, 240см","Оранжевый"]
[null,null,null,null,null,null,null,null,null,null,null,null,null,null,null,null,null,null,null,null,"Металлик 3502 терракотовый, 240см","плиссе","Металлик 3502 терракотовый, 240см","Розовый"]
[null,null,null,null,null,null,null,null,null,null,null,null,null,null,null,null,null,null,null,null,"Металлик 4201 розовый, 240см","плиссе","Металлик 4201 розовый, 240см","Лиловый"]
[null,null,null,null,null,null,null,null,null,null,null,null,null,null,null,null,null,null,null,null,"Металлик 4284 лиловый, 240см","плиссе","Металлик 4284 лиловый, 240см","Розовый"]
[null,null,null,null,null,null,null,null,null,null,null,null,null,null,null,null,null,null,null,null,"Металлик 5300 синий, 240см","плиссе","Металлик 5300 синий, 240см","Синий"]
[null,null,null,null,null,null,null,null,null,null,null,null,null,null,null,null,null,null,null,null,"Металлик 5850 зеленый, 240см","плиссе","Металлик 5850 зеленый, 240см","Желто-зеленый"]
[null,null,null,null,null,null,null,null,null,null,null,null,null,null,null,null,null,null,null,null,"Металлик 5879 оливковый, 240см","плиссе","Металлик 5879 оливковый, 240см","Желто-зеленый"]
[null,null,null,null,null,null,null,null,null,null,null,null,null,null,null,null,null,null,null,null,"Металлик БО 1608 светло-серый, 240см","плиссе","Металлик БО 1608 светло-серый, 240см","Серый"]
[null,null,null,null,null,null,null,null,null,null,null,null,null,null,null,null,null,null,null,null,"Металлик БО 1881 темно-серый, 240см","плиссе","Металлик БО 1881 темно-серый, 240см","Серый"]
[null,null,null,null,null,null,null,null,null,null,null,null,null,null,null,null,null,null,null,null,"Металлик БО 2261 светло-бежевый, 240см","плиссе","Металлик БО 2261 светло-бежевый, 240см","Песочный"]
[null,null,null,null,null,null,null,null,null,null,null,null,null,null,null,null,null,null,null,null,"Металлик БО 2870 коричневый, 240см","плиссе","Металлик БО 2870 коричневый, 240см","Коричневый"]
[null,null,null,null,null,null,null,null,null,null,null,null,null,null,null,null,null,null,null,null,"Металлик БО 3465 желтый, 240см","плиссе","Металлик БО 3465 желтый, 240см","Оранжевый"]
[null,null,null,null,null,null,null,null,null,null,null,null,null,null,null,null,null,null,null,null,"Металлик БО 3502 терракотовый, 240см","плиссе","Металлик БО 3502 терракотовый, 240см","Розовый"]
[null,null,null,null,null,null,null,null,null,null,null,null,null,null,null,null,null,null,null,null,"Металлик БО 4201 розовый, 240см","плиссе","Металлик БО 4201 розовый, 240см","Лиловый"]
[null,null,null,null,null,null,null,null,null,null,null,null,null,null,null,null,null,null,null,null,"Металлик БО 4284 лиловый, 240см","плиссе","Металлик БО 4284 лиловый, 240см","Розовый"]
[null,null,null,null,null,null,null,null,null,null,null,null,null,null,null,null,null,null,null,null,"Металлик БО 5300 синий, 240см","плиссе","Металлик БО 5300 синий, 240см","Синий"]
[null,null,null,null,null,null,null,null,null,null,null,null,null,null,null,null,null,null,null,null,"Металлик БО 5879 оливковый, 240см","плиссе","Металлик БО 5879 оливковый, 240см","Желто-зеленый"]
[null,null,null,null,null,null,null,null,null,null,null,null,null,null,null,null,null,null,null,null,"Метис Перла 0225 белый, 200 см","плиссе","Метис Перла 0225 белый, 200 см","Белый"]
[null,null,null,null,null,null,null,null,null,null,null,null,null,null,null,null,null,null,null,null,"Метис Перла 1608 св. серый, 200 см","плиссе","Метис Перла 1608 св. серый, 200 см","Св. серый"]
[null,null,null,null,null,null,null,null,null,null,null,null,null,null,null,null,null,null,null,null,"Метис Перла 2261 св. бежевый, 200 см","плиссе","Метис Перла 2261 св. бежевый, 200 см","Бежевый"]
[null,null,null,null,null,null,null,null,null,null,null,null,null,null,null,null,null,null,null,null,"Метис Перла 2406 бежевый, 200 см","плиссе","Метис Перла 2406 бежевый, 200 см","Бежевый"]
[null,null,null,null,null,null,null,null,null,null,null,null,null,null,null,null,null,null,null,null,"МЕХИКО 0225 белый, 235 см","плиссе","МЕХИКО 0225 белый, 235 см","Белый"]
[null,null,null,null,null,null,null,null,null,null,null,null,null,null,null,null,null,null,null,null,"МЕХИКО 2261 св.бежевый, 235 см","плиссе","МЕХИКО 2261 св.бежевый, 235 см","Бежевый"]
[null,null,null,null,null,null,null,null,null,null,null,null,null,null,null,null,null,null,null,null,"МЕХИКО 2746 т.бежевый, 235 см","плиссе","МЕХИКО 2746 т.бежевый, 235 см","Бежевый"]
[null,null,null,null,null,null,null,null,null,null,null,null,null,null,null,null,null,null,null,null,"МЕХИКО 2872 т.коричневый, 235 см","плиссе","МЕХИКО 2872 т.коричневый, 235 см","Коричневый"]
[null,null,null,null,null,null,null,null,null,null,null,null,null,null,null,null,null,null,null,null,"МЕХИКО 3465 желтый, 235 см","плиссе","МЕХИКО 3465 желтый, 235 см","Оранжевый"]
[null,null,null,null,null,null,null,null,null,null,null,null,null,null,null,null,null,null,null,null,"МЕХИКО 4300 терракота, 235 см","плиссе","МЕХИКО 4300 терракота, 235 см","Абрикос"]
[null,null,null,null,null,null,null,null,null,null,null,null,null,null,null,null,null,null,null,null,"МЕХИКО 4858 т.лиловый, 235 см","плиссе","МЕХИКО 4858 т.лиловый, 235 см","Бордо"]
[null,null,null,null,null,null,null,null,null,null,null,null,null,null,null,null,null,null,null,null,"МЕХИКО 5850 св.зеленый, 235 см","плиссе","МЕХИКО 5850 св.зеленый, 235 см","Серый"]
[null,null,null,null,null,null,null,null,null,null,null,null,null,null,null,null,null,null,null,null,"Микены 1608 св.серый, 235см","плиссе","Микены 1608 св.серый, 235см","Белый"]
[null,null,null,null,null,null,null,null,null,null,null,null,null,null,null,null,null,null,null,null,"Микены 2261 бежевый, 235см","плиссе","Микены 2261 бежевый, 235см","Бежевый"]
[null,null,null,null,null,null,null,null,null,null,null,null,null,null,null,null,null,null,null,null,"Микены 2406 темно-бежевый, 235см","плиссе","Микены 2406 темно-бежевый, 235см","Бежевый"]
[null,null,null,null,null,null,null,null,null,null,null,null,null,null,null,null,null,null,null,null,"Мираж  2405 шампань,225см","плиссе","Мираж  2405 шампань,225см","Бежевый"]
[null,null,null,null,null,null,null,null,null,null,null,null,null,null,null,null,null,null,null,null,"Мираж 0225 белый,  225см","плиссе","Мираж 0225 белый,  225см","Белый"]
[null,null,null,null,null,null,null,null,null,null,null,null,null,null,null,null,null,null,null,null,"Мираж 1605 платина,  225см","плиссе","Мираж 1605 платина,  225см","Св. серый"]
[null,null,null,null,null,null,null,null,null,null,null,null,null,null,null,null,null,null,null,null,"Мираж 1907 черная икра, 225см","плиссе","Мираж 1907 черная икра, 225см","Черный"]
[null,null,null,null,null,null,null,null,null,null,null,null,null,null,null,null,null,null,null,null,"Мираж 1907 черная икра, 225см","плиссе","Мираж 1907 черная икра, 225см","Черный"]
[null,null,null,null,null,null,null,null,null,null,null,null,null,null,null,null,null,null,null,null,"Мираж 2406 бежевый, 225см","плиссе","Мираж 2406 бежевый, 225см","Бежевый"]
[null,null,null,null,null,null,null,null,null,null,null,null,null,null,null,null,null,null,null,null,"Мираж 3204 мимоза,  225см","плиссе","Мираж 3204 мимоза,  225см","Оранжевый"]
[null,null,null,null,null,null,null,null,null,null,null,null,null,null,null,null,null,null,null,null,"Мираж 3466 шабли, 225см","плиссе","Мираж 3466 шабли, 225см","Песочный"]
[null,null,null,null,null,null,null,null,null,null,null,null,null,null,null,null,null,null,null,null,"Мираж 3470 янтарь,  225см","плиссе","Мираж 3470 янтарь,  225см","Оранжевый"]
[null,null,null,null,null,null,null,null,null,null,null,null,null,null,null,null,null,null,null,null,"Мираж 4081 фламинго,  225см","плиссе","Мираж 4081 фламинго,  225см","Лиловый"]
[null,null,null,null,null,null,null,null,null,null,null,null,null,null,null,null,null,null,null,null,"Мираж 4453 рубин,  225см","плиссе","Мираж 4453 рубин,  225см","Розовый"]
[null,null,null,null,null,null,null,null,null,null,null,null,null,null,null,null,null,null,null,null,"Мираж 4856 аметист, 225см","плиссе","Мираж 4856 аметист, 225см","Лиловый"]
[null,null,null,null,null,null,null,null,null,null,null,null,null,null,null,null,null,null,null,null,"Мираж 5102 голубой опал,  225см","плиссе","Мираж 5102 голубой опал,  225см","Св.синий"]
[null,null,null,null,null,null,null,null,null,null,null,null,null,null,null,null,null,null,null,null,"Мираж 5260 аквамарин,  225см","плиссе","Мираж 5260 аквамарин,  225см","Синий"]
[null,null,null,null,null,null,null,null,null,null,null,null,null,null,null,null,null,null,null,null,"Мираж 5607 бирюза, 225см","плиссе","Мираж 5607 бирюза, 225см","Желто-зеленый"]
[null,null,null,null,null,null,null,null,null,null,null,null,null,null,null,null,null,null,null,null,"Мираж 5849 резеда,  225см","плиссе","Мираж 5849 резеда,  225см","Св.зеленый"]
[null,null,null,null,null,null,null,null,null,null,null,null,null,null,null,null,null,null,null,null,"Миссури 1852 серый, 230 см","плиссе","Миссури 1852 серый, 230 см","Серый"]
[null,null,null,null,null,null,null,null,null,null,null,null,null,null,null,null,null,null,null,null,"Миссури 1852 серый, 230 см","плиссе","Миссури 1852 серый, 230 см","Серый"]
[null,null,null,null,null,null,null,null,null,null,null,null,null,null,null,null,null,null,null,null,"Миссури 2261 св. бежевый, 230 см","плиссе","Миссури 2261 св. бежевый, 230 см","Бежевый"]
[null,null,null,null,null,null,null,null,null,null,null,null,null,null,null,null,null,null,null,null,"Миссури 2261 св. бежевый, 230 см","плиссе","Миссури 2261 св. бежевый, 230 см","Бежевый"]
[null,null,null,null,null,null,null,null,null,null,null,null,null,null,null,null,null,null,null,null,"Миссури 2406 бежевый, 230 см","плиссе","Миссури 2406 бежевый, 230 см","Бежевый"]
[null,null,null,null,null,null,null,null,null,null,null,null,null,null,null,null,null,null,null,null,"Миссури 2406 бежевый, 230 см","плиссе","Миссури 2406 бежевый, 230 см","Бежевый"]
[null,null,null,null,null,null,null,null,null,null,null,null,null,null,null,null,null,null,null,null,"Миссури 2868 св. коричневый, 230 см","плиссе","Миссури 2868 св. коричневый, 230 см","Песочный"]
[null,null,null,null,null,null,null,null,null,null,null,null,null,null,null,null,null,null,null,null,"Миссури 2868 св. коричневый, 230 см","плиссе","Миссури 2868 св. коричневый, 230 см","Песочный"]
[null,null,null,null,null,null,null,null,null,null,null,null,null,null,null,null,null,null,null,null,"Непал 1608 св. серый, 230 см","плиссе","Непал 1608 св. серый, 230 см","Св. серый"]
[null,null,null,null,null,null,null,null,null,null,null,null,null,null,null,null,null,null,null,null,"Непал 1608 св. серый, 32 мм, 225 см","плиссе","Непал 1608 св. серый, 32 мм, 225 см","Св. серый"]
[null,null,null,null,null,null,null,null,null,null,null,null,null,null,null,null,null,null,null,null,"Непал 2261 св. бежевый, 230 см","плиссе","Непал 2261 св. бежевый, 230 см","Бежевый"]
[null,null,null,null,null,null,null,null,null,null,null,null,null,null,null,null,null,null,null,null,"Непал 2261 св. бежевый, 32 мм, 225 см","плиссе","Непал 2261 св. бежевый, 32 мм, 225 см","Бежевый"]
[null,null,null,null,null,null,null,null,null,null,null,null,null,null,null,null,null,null,null,null,"Непал 2868 св. коричневый, 230 см","плиссе","Непал 2868 св. коричневый, 230 см","Бежевый"]
[null,null,null,null,null,null,null,null,null,null,null,null,null,null,null,null,null,null,null,null,"Непал 2868 св. коричневый, 32 мм, 225 см","плиссе","Непал 2868 св. коричневый, 32 мм, 225 см","Бежевый"]
[null,null,null,null,null,null,null,null,null,null,null,null,null,null,null,null,null,null,null,null,"Ниагара 0225 белый, 235см","плиссе","Ниагара 0225 белый, 235см","Белый"]
[null,null,null,null,null,null,null,null,null,null,null,null,null,null,null,null,null,null,null,null,"Ниагара 2259 магнолия, 235см","плиссе","Ниагара 2259 магнолия, 235см","Бежевый"]
[null,null,null,null,null,null,null,null,null,null,null,null,null,null,null,null,null,null,null,null,"Ниагара 2746 св.коричневый, 235см","плиссе","Ниагара 2746 св.коричневый, 235см","Бежевый"]
[null,null,null,null,null,null,null,null,null,null,null,null,null,null,null,null,null,null,null,null,"Ниагара 2868 коричневый, 235см","плиссе","Ниагара 2868 коричневый, 235см","Бежевый"]
[null,null,null,null,null,null,null,null,null,null,null,null,null,null,null,null,null,null,null,null,"Ниагара 4221 бежевый, 235см","плиссе","Ниагара 4221 бежевый, 235см","Песочный"]
[null,null,null,null,null,null,null,null,null,null,null,null,null,null,null,null,null,null,null,null,"Ниагара 4469 лиловый, 235см","плиссе","Ниагара 4469 лиловый, 235см","Розовый"]
[null,null,null,null,null,null,null,null,null,null,null,null,null,null,null,null,null,null,null,null,"Ниагара 5173 голубой 235 см","плиссе","Ниагара 5173 голубой 235 см","Св.синий"]
[null,null,null,null,null,null,null,null,null,null,null,null,null,null,null,null,null,null,null,null,"Ноктюрн B/O 0225 белый, 230см","плиссе","Ноктюрн B/O 0225 белый, 230см","Белый"]
[null,null,null,null,null,null,null,null,null,null,null,null,null,null,null,null,null,null,null,null,"Ноктюрн B/O 1608  серый, 230см","плиссе","Ноктюрн B/O 1608  серый, 230см","Св. серый"]
[null,null,null,null,null,null,null,null,null,null,null,null,null,null,null,null,null,null,null,null,"Ноктюрн B/O 1881 темно-серый, 230см","плиссе","Ноктюрн B/O 1881 темно-серый, 230см","Серый"]
[null,null,null,null,null,null,null,null,null,null,null,null,null,null,null,null,null,null,null,null,"Ноктюрн B/O 2259 св.бежевый, 230см","плиссе","Ноктюрн B/O 2259 св.бежевый, 230см","Белый"]
[null,null,null,null,null,null,null,null,null,null,null,null,null,null,null,null,null,null,null,null,"Ноктюрн B/O 2406 бежевый, 230см","плиссе","Ноктюрн B/O 2406 бежевый, 230см","Св. серый"]
[null,null,null,null,null,null,null,null,null,null,null,null,null,null,null,null,null,null,null,null,"Ноктюрн B/O 2549 светло-кремовый, 230см","плиссе","Ноктюрн B/O 2549 светло-кремовый, 230см","Бежевый"]
[null,null,null,null,null,null,null,null,null,null,null,null,null,null,null,null,null,null,null,null,"Ноктюрн B/O 2552 кремовый, 230см","плиссе","Ноктюрн B/O 2552 кремовый, 230см","Песочный"]
[null,null,null,null,null,null,null,null,null,null,null,null,null,null,null,null,null,null,null,null,"Ноктюрн B/O 2746 темно-бежевый, 230см","плиссе","Ноктюрн B/O 2746 темно-бежевый, 230см","Серый"]
[null,null,null,null,null,null,null,null,null,null,null,null,null,null,null,null,null,null,null,null,"Ноктюрн B/O 2870 коричневый, 230см","плиссе","Ноктюрн B/O 2870 коричневый, 230см","Коричневый"]
[null,null,null,null,null,null,null,null,null,null,null,null,null,null,null,null,null,null,null,null,"Ноктюрн B/O 3210 лимон, 230см","плиссе","Ноктюрн B/O 3210 лимон, 230см","Песочный"]
[null,null,null,null,null,null,null,null,null,null,null,null,null,null,null,null,null,null,null,null,"Ноктюрн B/O 3466 желтый, 230см","плиссе","Ноктюрн B/O 3466 желтый, 230см","Песочный"]
[null,null,null,null,null,null,null,null,null,null,null,null,null,null,null,null,null,null,null,null,"Ноктюрн B/O 4096 розовый, 230см","плиссе","Ноктюрн B/O 4096 розовый, 230см","Розовый"]
[null,null,null,null,null,null,null,null,null,null,null,null,null,null,null,null,null,null,null,null,"Ноктюрн B/O 4292 терракота, 230см","плиссе","Ноктюрн B/O 4292 терракота, 230см","Оранжевый"]
[null,null,null,null,null,null,null,null,null,null,null,null,null,null,null,null,null,null,null,null,"Ноктюрн B/O 4523 красный, 230см","плиссе","Ноктюрн B/O 4523 красный, 230см","Розовый"]
[null,null,null,null,null,null,null,null,null,null,null,null,null,null,null,null,null,null,null,null,"Ноктюрн B/O 4858 лиловый, 230см","плиссе","Ноктюрн B/O 4858 лиловый, 230см","Лиловый"]
[null,null,null,null,null,null,null,null,null,null,null,null,null,null,null,null,null,null,null,null,"Ноктюрн B/O 5302 синий, 230см","плиссе","Ноктюрн B/O 5302 синий, 230см","Синий"]
[null,null,null,null,null,null,null,null,null,null,null,null,null,null,null,null,null,null,null,null,"Ноктюрн B/O 5586 зеленый, 230см","плиссе","Ноктюрн B/O 5586 зеленый, 230см","Желто-зеленый"]
[null,null,null,null,null,null,null,null,null,null,null,null,null,null,null,null,null,null,null,null,"Оксфорд 0225 белый, 205см","плиссе","Оксфорд 0225 белый, 205см","Белый"]
[null,null,null,null,null,null,null,null,null,null,null,null,null,null,null,null,null,null,null,null,"Оксфорд 2261 св.бежевый, 205см","плиссе","Оксфорд 2261 св.бежевый, 205см","Бежевый"]
[null,null,null,null,null,null,null,null,null,null,null,null,null,null,null,null,null,null,null,null,"Омбра 3499 оранжевый, 230 см","плиссе","Омбра 3499 оранжевый, 230 см","Розовый"]
[null,null,null,null,null,null,null,null,null,null,null,null,null,null,null,null,null,null,null,null,"Омбра 4096 розовый, 230 см","плиссе","Омбра 4096 розовый, 230 см","Розовый"]
[null,null,null,null,null,null,null,null,null,null,null,null,null,null,null,null,null,null,null,null,"Опал 0225 белый, 200см","плиссе","Опал 0225 белый, 200см","Белый"]
[null,null,null,null,null,null,null,null,null,null,null,null,null,null,null,null,null,null,null,null,"Опал 1608 св. серый, 200см","плиссе","Опал 1608 св. серый, 200см","Св. серый"]
[null,null,null,null,null,null,null,null,null,null,null,null,null,null,null,null,null,null,null,null,"Опал 1652 серый, 200см","плиссе","Опал 1652 серый, 200см","Серый"]
[null,null,null,null,null,null,null,null,null,null,null,null,null,null,null,null,null,null,null,null,"Опал 2259 магнолия, 200см","плиссе","Опал 2259 магнолия, 200см","Белый"]
[null,null,null,null,null,null,null,null,null,null,null,null,null,null,null,null,null,null,null,null,"Опал 2261 св. бежевый, 200см","плиссе","Опал 2261 св. бежевый, 200см","Бежевый"]
[null,null,null,null,null,null,null,null,null,null,null,null,null,null,null,null,null,null,null,null,"Опал 2406 бежевый, 200см","плиссе","Опал 2406 бежевый, 200см","Бежевый"]
[null,null,null,null,null,null,null,null,null,null,null,null,null,null,null,null,null,null,null,null,"Опал 2868 св. коричневый, 200см","плиссе","Опал 2868 св. коричневый, 200см","Бежевый"]
[null,null,null,null,null,null,null,null,null,null,null,null,null,null,null,null,null,null,null,null,"Опал 3465 желтый, 200см","плиссе","Опал 3465 желтый, 200см","Песочный"]
[null,null,null,null,null,null,null,null,null,null,null,null,null,null,null,null,null,null,null,null,"Опал 3499 оранжевый, 200см","плиссе","Опал 3499 оранжевый, 200см","Оранжевый"]
[null,null,null,null,null,null,null,null,null,null,null,null,null,null,null,null,null,null,null,null,"Опал 4240 персик, 200см","плиссе","Опал 4240 персик, 200см","Абрикос"]
[null,null,null,null,null,null,null,null,null,null,null,null,null,null,null,null,null,null,null,null,"Опал 5252 синий 200см","плиссе","Опал 5252 синий 200см","Св.синий"]
[null,null,null,null,null,null,null,null,null,null,null,null,null,null,null,null,null,null,null,null,"Опал 5850 зеленый, 200см","плиссе","Опал 5850 зеленый, 200см","Св.зеленый"]
[null,null,null,null,null,null,null,null,null,null,null,null,null,null,null,null,null,null,null,null,"Опера 0225 белый, 238 см","плиссе","Опера 0225 белый, 238 см","Белый"]
[null,null,null,null,null,null,null,null,null,null,null,null,null,null,null,null,null,null,null,null,"Опера 1852 серый, 238 см","плиссе","Опера 1852 серый, 238 см","Св. серый"]
[null,null,null,null,null,null,null,null,null,null,null,null,null,null,null,null,null,null,null,null,"Опера 2259 магнолия, 238 см","плиссе","Опера 2259 магнолия, 238 см","Белый"]
[null,null,null,null,null,null,null,null,null,null,null,null,null,null,null,null,null,null,null,null,"Опера 2406 бежевый, 238 см","плиссе","Опера 2406 бежевый, 238 см","Песочный"]
[null,null,null,null,null,null,null,null,null,null,null,null,null,null,null,null,null,null,null,null,"Опера 2870 коричневый, 238 см","плиссе","Опера 2870 коричневый, 238 см","Коричневый"]
[null,null,null,null,null,null,null,null,null,null,null,null,null,null,null,null,null,null,null,null,"Опера 3465 желтый, 238 см","плиссе","Опера 3465 желтый, 238 см","Песочный"]
[null,null,null,null,null,null,null,null,null,null,null,null,null,null,null,null,null,null,null,null,"Опера 3499 оранжевый, 238 см","плиссе","Опера 3499 оранжевый, 238 см","Оранжевый"]
[null,null,null,null,null,null,null,null,null,null,null,null,null,null,null,null,null,null,null,null,"Опера 4075 красный, 238 см","плиссе","Опера 4075 красный, 238 см","Бордо"]
[null,null,null,null,null,null,null,null,null,null,null,null,null,null,null,null,null,null,null,null,"Опера 4096 розовый, 238 см","плиссе","Опера 4096 розовый, 238 см","Розовый"]
[null,null,null,null,null,null,null,null,null,null,null,null,null,null,null,null,null,null,null,null,"Опера 5173 голубой, 238 см","плиссе","Опера 5173 голубой, 238 см","Св.синий"]
[null,null,null,null,null,null,null,null,null,null,null,null,null,null,null,null,null,null,null,null,"Опера 5302 синий, 238 см","плиссе","Опера 5302 синий, 238 см","Синий"]
[null,null,null,null,null,null,null,null,null,null,null,null,null,null,null,null,null,null,null,null,"Опера 5853 салатовый, 238 см","плиссе","Опера 5853 салатовый, 238 см","Желто-зеленый"]
[null,null,null,null,null,null,null,null,null,null,null,null,null,null,null,null,null,null,null,null,"Органза 0225 белый, 185 см","плиссе","Органза 0225 белый, 185 см","Белый"]
[null,null,null,null,null,null,null,null,null,null,null,null,null,null,null,null,null,null,null,null,"Орегон B/O 0225 белый, 205см","плиссе","Орегон B/O 0225 белый, 205см","Белый"]
[null,null,null,null,null,null,null,null,null,null,null,null,null,null,null,null,null,null,null,null,"Орегон B/O 0225 белый, 230см","плиссе","Орегон B/O 0225 белый, 230см","Белый"]
[null,null,null,null,null,null,null,null,null,null,null,null,null,null,null,null,null,null,null,null,"Орегон B/O 2406 бежевый,  205см","плиссе","Орегон B/O 2406 бежевый,  205см","Бежевый"]
[null,null,null,null,null,null,null,null,null,null,null,null,null,null,null,null,null,null,null,null,"Орегон B/O 2406 бежевый,  230см","плиссе","Орегон B/O 2406 бежевый,  230см","Бежевый"]
[null,null,null,null,null,null,null,null,null,null,null,null,null,null,null,null,null,null,null,null,"Орегон B/O 3465 желтый, 205см","плиссе","Орегон B/O 3465 желтый, 205см","Песочный"]
[null,null,null,null,null,null,null,null,null,null,null,null,null,null,null,null,null,null,null,null,"Орегон B/O 3499 оранжевый, 205см","плиссе","Орегон B/O 3499 оранжевый, 205см","Оранжевый"]
[null,null,null,null,null,null,null,null,null,null,null,null,null,null,null,null,null,null,null,null,"Орегон B/O 4077 красный, 205см","плиссе","Орегон B/O 4077 красный, 205см","Розовый"]
[null,null,null,null,null,null,null,null,null,null,null,null,null,null,null,null,null,null,null,null,"Орегон B/O 5173 синий, 205см","плиссе","Орегон B/O 5173 синий, 205см","Св.синий"]
[null,null,null,null,null,null,null,null,null,null,null,null,null,null,null,null,null,null,null,null,"Орегон B/O 5173 синий, 230см","плиссе","Орегон B/O 5173 синий, 230см","Св.синий"]
[null,null,null,null,null,null,null,null,null,null,null,null,null,null,null,null,null,null,null,null,"Орегон B/O 5850 зеленый. 205см","плиссе","Орегон B/O 5850 зеленый. 205см","Св.зеленый"]
[null,null,null,null,null,null,null,null,null,null,null,null,null,null,null,null,null,null,null,null,"Пальма 0225 белый, 235см","плиссе","Пальма 0225 белый, 235см","Белый"]
[null,null,null,null,null,null,null,null,null,null,null,null,null,null,null,null,null,null,null,null,"Пальма 4454 красный, 235см","плиссе","Пальма 4454 красный, 235см","Розовый"]
[null,null,null,null,null,null,null,null,null,null,null,null,null,null,null,null,null,null,null,null,"Париж 0225 белый, 225см","плиссе","Париж 0225 белый, 225см","Белый"]
[null,null,null,null,null,null,null,null,null,null,null,null,null,null,null,null,null,null,null,null,"Париж 2840 темно-бежевый, 225см","плиссе","Париж 2840 темно-бежевый, 225см","Бежевый"]
[null,null,null,null,null,null,null,null,null,null,null,null,null,null,null,null,null,null,null,null,"Париж 3205 св.желтый, 225см","плиссе","Париж 3205 св.желтый, 225см","Песочный"]
[null,null,null,null,null,null,null,null,null,null,null,null,null,null,null,null,null,null,null,null,"Париж 4059 розовый, 225см","плиссе","Париж 4059 розовый, 225см","Абрикос"]
[null,null,null,null,null,null,null,null,null,null,null,null,null,null,null,null,null,null,null,null,"Париж 4210 бежевый, 225см","плиссе","Париж 4210 бежевый, 225см","Песочный"]
[null,null,null,null,null,null,null,null,null,null,null,null,null,null,null,null,null,null,null,null,"Париж 4830 лиловый, 225см","плиссе","Париж 4830 лиловый, 225см","Лиловый"]
[null,null,null,null,null,null,null,null,null,null,null,null,null,null,null,null,null,null,null,null,"Париж 5170 лаванда, 225см","плиссе","Париж 5170 лаванда, 225см","Св.синий"]
[null,null,null,null,null,null,null,null,null,null,null,null,null,null,null,null,null,null,null,null,"Перфора 0225 белый, 235","плиссе","Перфора 0225 белый, 235","Белый"]
[null,null,null,null,null,null,null,null,null,null,null,null,null,null,null,null,null,null,null,null,"Прато 2261 св. бежевый, 240 см","плиссе","Прато 2261 св. бежевый, 240 см","Бежевый"]
[null,null,null,null,null,null,null,null,null,null,null,null,null,null,null,null,null,null,null,null,"Прато 2406 бежевый, 240 см","плиссе","Прато 2406 бежевый, 240 см","Бежевый"]
[null,null,null,null,null,null,null,null,null,null,null,null,null,null,null,null,null,null,null,null,"Прато 2748 капучино, 240 см","плиссе","Прато 2748 капучино, 240 см","Серый"]
[null,null,null,null,null,null,null,null,null,null,null,null,null,null,null,null,null,null,null,null,"Престиж D/O 0225 белый, 220см","плиссе","Престиж D/O 0225 белый, 220см","Белый"]
[null,null,null,null,null,null,null,null,null,null,null,null,null,null,null,null,null,null,null,null,"Престиж D/O 1608 серый, 220см","плиссе","Престиж D/O 1608 серый, 220см","Св. серый"]
[null,null,null,null,null,null,null,null,null,null,null,null,null,null,null,null,null,null,null,null,"Престиж D/O 2261 бежевый 220см","плиссе","Престиж D/O 2261 бежевый 220см","Бежевый"]
[null,null,null,null,null,null,null,null,null,null,null,null,null,null,null,null,null,null,null,null,"Престиж D/O 2853 терракота 220см","плиссе","Престиж D/O 2853 терракота 220см","Оранжевый"]
[null,null,null,null,null,null,null,null,null,null,null,null,null,null,null,null,null,null,null,null,"Престиж D/O 3209 желтый 220см","плиссе","Престиж D/O 3209 желтый 220см","Песочный"]
[null,null,null,null,null,null,null,null,null,null,null,null,null,null,null,null,null,null,null,null,"Престиж D/O 3499 оранжевый 220см","плиссе","Престиж D/O 3499 оранжевый 220см","Оранжевый"]
[null,null,null,null,null,null,null,null,null,null,null,null,null,null,null,null,null,null,null,null,"Престиж D/O 4967 голубой, 220см","плиссе","Престиж D/O 4967 голубой, 220см","Св.синий"]
[null,null,null,null,null,null,null,null,null,null,null,null,null,null,null,null,null,null,null,null,"Престиж D/O 5302 синий, 220см","плиссе","Престиж D/O 5302 синий, 220см","Синий"]
[null,null,null,null,null,null,null,null,null,null,null,null,null,null,null,null,null,null,null,null,"Прима 0225 белый, 230см","плиссе","Прима 0225 белый, 230см","Белый"]
[null,null,null,null,null,null,null,null,null,null,null,null,null,null,null,null,null,null,null,null,"Прима 1608 серый, 230см","плиссе","Прима 1608 серый, 230см","Серый"]
[null,null,null,null,null,null,null,null,null,null,null,null,null,null,null,null,null,null,null,null,"Прима 2259 магнолия, 230см","плиссе","Прима 2259 магнолия, 230см","Белый"]
[null,null,null,null,null,null,null,null,null,null,null,null,null,null,null,null,null,null,null,null,"Прима 2261 светло-бежевый, 230см","плиссе","Прима 2261 светло-бежевый, 230см","Бежевый"]
[null,null,null,null,null,null,null,null,null,null,null,null,null,null,null,null,null,null,null,null,"Прима 2746 светло-коричневый, 230см","плиссе","Прима 2746 светло-коричневый, 230см","Бежевый"]
[null,null,null,null,null,null,null,null,null,null,null,null,null,null,null,null,null,null,null,null,"Прима 3209 лимонный , 230см","плиссе","Прима 3209 лимонный , 230см","Песочный"]
[null,null,null,null,null,null,null,null,null,null,null,null,null,null,null,null,null,null,null,null,"Прима 4077 красный, 230см","плиссе","Прима 4077 красный, 230см","Розовый"]
[null,null,null,null,null,null,null,null,null,null,null,null,null,null,null,null,null,null,null,null,"Прима 4264 персик, 230см","плиссе","Прима 4264 персик, 230см","Абрикос"]
[null,null,null,null,null,null,null,null,null,null,null,null,null,null,null,null,null,null,null,null,"Прима 4300 терракота, 230см","плиссе","Прима 4300 терракота, 230см","Розовый"]
[null,null,null,null,null,null,null,null,null,null,null,null,null,null,null,null,null,null,null,null,"Прима 5173 голубой, 230см","плиссе","Прима 5173 голубой, 230см","Синий"]
[null,null,null,null,null,null,null,null,null,null,null,null,null,null,null,null,null,null,null,null,"Прима 5302 синий, 230см","плиссе","Прима 5302 синий, 230см","Синий"]
[null,null,null,null,null,null,null,null,null,null,null,null,null,null,null,null,null,null,null,null,"Прима 5501 зеленый, 230см","плиссе","Прима 5501 зеленый, 230см","Св.зеленый"]
[null,null,null,null,null,null,null,null,null,null,null,null,null,null,null,null,null,null,null,null,"Прима 5540 оливковый, 230см","плиссе","Прима 5540 оливковый, 230см","Бежевый"]
[null,null,null,null,null,null,null,null,null,null,null,null,null,null,null,null,null,null,null,null,"Прима 7094 230см","плиссе","Прима 7094 230см","Коричневый"]
[null,null,null,null,null,null,null,null,null,null,null,null,null,null,null,null,null,null,null,null,"Прима Лайн 0225 белый 230 см","плиссе","Прима Лайн 0225 белый 230 см","Белый"]
[null,null,null,null,null,null,null,null,null,null,null,null,null,null,null,null,null,null,null,null,"Прима Лайн 1608 серый 230 см","плиссе","Прима Лайн 1608 серый 230 см","Серый"]
[null,null,null,null,null,null,null,null,null,null,null,null,null,null,null,null,null,null,null,null,"Прима Лайн 2406 бежевый 230 см","плиссе","Прима Лайн 2406 бежевый 230 см","Бежевый"]
[null,null,null,null,null,null,null,null,null,null,null,null,null,null,null,null,null,null,null,null,"Прима Лайн 3209 желтый 230 см","плиссе","Прима Лайн 3209 желтый 230 см","Песочный"]
[null,null,null,null,null,null,null,null,null,null,null,null,null,null,null,null,null,null,null,null,"Прима Лайн 4803 лиловый 230 см","плиссе","Прима Лайн 4803 лиловый 230 см","Лиловый"]
[null,null,null,null,null,null,null,null,null,null,null,null,null,null,null,null,null,null,null,null,"Прима Лайн 5102 голубой 230 см","плиссе","Прима Лайн 5102 голубой 230 см","Желто-зеленый"]
[null,null,null,null,null,null,null,null,null,null,null,null,null,null,null,null,null,null,null,null,"Прима Лайн 5586 зеленый 230 см","плиссе","Прима Лайн 5586 зеленый 230 см","Зеленый"]
[null,null,null,null,null,null,null,null,null,null,null,null,null,null,null,null,null,null,null,null,"Примавера 4096 розовый 235 см","плиссе","Примавера 4096 розовый 235 см","Св.зеленый"]
[null,null,null,null,null,null,null,null,null,null,null,null,null,null,null,null,null,null,null,null,"Радиант 0225 белый, 235см","плиссе","Радиант 0225 белый, 235см","Белый"]
[null,null,null,null,null,null,null,null,null,null,null,null,null,null,null,null,null,null,null,null,"Радиант 2259 магнолия, 235см","плиссе","Радиант 2259 магнолия, 235см","Белый"]
[null,null,null,null,null,null,null,null,null,null,null,null,null,null,null,null,null,null,null,null,"Радиант 2406 бежевый, 235см","плиссе","Радиант 2406 бежевый, 235см","Бежевый"]
[null,null,null,null,null,null,null,null,null,null,null,null,null,null,null,null,null,null,null,null,"Радиант БО 0225 белый, 235см","плиссе","Радиант БО 0225 белый, 235см","Белый"]
[null,null,null,null,null,null,null,null,null,null,null,null,null,null,null,null,null,null,null,null,"Радиант БО 2259 магнолия, 235см","плиссе","Радиант БО 2259 магнолия, 235см","Белый"]
[null,null,null,null,null,null,null,null,null,null,null,null,null,null,null,null,null,null,null,null,"Радиант БО 2406 бежевый, 235см","плиссе","Радиант БО 2406 бежевый, 235см","Св. серый"]
[null,null,null,null,null,null,null,null,null,null,null,null,null,null,null,null,null,null,null,null,"Радиант БО 5173 голубой, 235см","плиссе","Радиант БО 5173 голубой, 235см","Св.зеленый"]
[null,null,null,null,null,null,null,null,null,null,null,null,null,null,null,null,null,null,null,null,"Риволи 4096 розовый, 235см","плиссе","Риволи 4096 розовый, 235см","Белый"]
[null,null,null,null,null,null,null,null,null,null,null,null,null,null,null,null,null,null,null,null,"Сантана 0225 белый, 15 мм, 230 см","плиссе","Сантана 0225 белый, 15 мм, 230 см","Белый"]
[null,null,null,null,null,null,null,null,null,null,null,null,null,null,null,null,null,null,null,null,"Сантана 0225 белый, 32 мм, 225 см","плиссе","Сантана 0225 белый, 32 мм, 225 см","Белый"]
[null,null,null,null,null,null,null,null,null,null,null,null,null,null,null,null,null,null,null,null,"Сантана 1852 серый, 32 мм, 225 см","плиссе","Сантана 1852 серый, 32 мм, 225 см","Серый"]
[null,null,null,null,null,null,null,null,null,null,null,null,null,null,null,null,null,null,null,null,"Сантана 2261 св. бежевый, 15 мм, 230 см","плиссе","Сантана 2261 св. бежевый, 15 мм, 230 см","Бежевый"]
[null,null,null,null,null,null,null,null,null,null,null,null,null,null,null,null,null,null,null,null,"Сантана 2406 бежевый, 15 мм, 230 см","плиссе","Сантана 2406 бежевый, 15 мм, 230 см","Бежевый"]
[null,null,null,null,null,null,null,null,null,null,null,null,null,null,null,null,null,null,null,null,"Сантана 2406 бежевый, 32 мм, 225 см","плиссе","Сантана 2406 бежевый, 32 мм, 225 см","Бежевый"]
[null,null,null,null,null,null,null,null,null,null,null,null,null,null,null,null,null,null,null,null,"Селена 7013 серебро, 235см","плиссе","Селена 7013 серебро, 235см","Св. серый"]
[null,null,null,null,null,null,null,null,null,null,null,null,null,null,null,null,null,null,null,null,"Сето 2259 магнолия  215 см","плиссе","Сето 2259 магнолия  215 см","Белый"]
[null,null,null,null,null,null,null,null,null,null,null,null,null,null,null,null,null,null,null,null,"Сето 4198 мандарин 215 см","плиссе","Сето 4198 мандарин 215 см","Абрикос"]
[null,null,null,null,null,null,null,null,null,null,null,null,null,null,null,null,null,null,null,null,"Сето 4264 бежевый  215 см","плиссе","Сето 4264 бежевый  215 см","Бежевый"]
[null,null,null,null,null,null,null,null,null,null,null,null,null,null,null,null,null,null,null,null,"Сето 7013 серебро  215 см","плиссе","Сето 7013 серебро  215 см","Серый"]
[null,null,null,null,null,null,null,null,null,null,null,null,null,null,null,null,null,null,null,null,"Сето 7020 золото  215 см","плиссе","Сето 7020 золото  215 см","Песочный"]
[null,null,null,null,null,null,null,null,null,null,null,null,null,null,null,null,null,null,null,null,"Сето Ретро 2261 светло-бежевый, 215 см","плиссе","Сето Ретро 2261 светло-бежевый, 215 см","Бежевый"]
[null,null,null,null,null,null,null,null,null,null,null,null,null,null,null,null,null,null,null,null,"Силкскрин 0225 белый, 240см","плиссе","Силкскрин 0225 белый, 240см","Белый"]
[null,null,null,null,null,null,null,null,null,null,null,null,null,null,null,null,null,null,null,null,"Силкскрин 2406 бежевый,  240см","плиссе","Силкскрин 2406 бежевый,  240см","Серый"]
[null,null,null,null,null,null,null,null,null,null,null,null,null,null,null,null,null,null,null,null,"Силкскрин 2746 темно-бежевый, 240см","плиссе","Силкскрин 2746 темно-бежевый, 240см","Серый"]
[null,null,null,null,null,null,null,null,null,null,null,null,null,null,null,null,null,null,null,null,"Силкскрин алю 1608 светло-серый, 240см","плиссе","Силкскрин алю 1608 светло-серый, 240см","Св. серый"]
[null,null,null,null,null,null,null,null,null,null,null,null,null,null,null,null,null,null,null,null,"Симфония 0225 белый, 240 см","плиссе","Симфония 0225 белый, 240 см","Белый"]
[null,null,null,null,null,null,null,null,null,null,null,null,null,null,null,null,null,null,null,null,"Симфония 2261 св. бежевый, 240 см","плиссе","Симфония 2261 св. бежевый, 240 см","Бежевый"]
[null,null,null,null,null,null,null,null,null,null,null,null,null,null,null,null,null,null,null,null,"Симфония 5540 св. зеленый, 240 см","плиссе","Симфония 5540 св. зеленый, 240 см","Св.зеленый"]
[null,null,null,null,null,null,null,null,null,null,null,null,null,null,null,null,null,null,null,null,"Сити 7013 серебро, 200см","плиссе","Сити 7013 серебро, 200см","Серый"]
[null,null,null,null,null,null,null,null,null,null,null,null,null,null,null,null,null,null,null,null,"Скрин Ажур 1608 серый, 235см","плиссе","Скрин Ажур 1608 серый, 235см","Св. серый"]
[null,null,null,null,null,null,null,null,null,null,null,null,null,null,null,null,null,null,null,null,"Скрин Ажур 2746 бежевый, 235см","плиссе","Скрин Ажур 2746 бежевый, 235см","Серый"]
[null,null,null,null,null,null,null,null,null,null,null,null,null,null,null,null,null,null,null,null,"Скрин Ажур 5302 синий, 235см","плиссе","Скрин Ажур 5302 синий, 235см","Синий"]
[null,null,null,null,null,null,null,null,null,null,null,null,null,null,null,null,null,null,null,null,"Скрин Ажур 7005 серебро, 235см","плиссе","Скрин Ажур 7005 серебро, 235см","Св. серый"]
[null,null,null,null,null,null,null,null,null,null,null,null,null,null,null,null,null,null,null,null,"Смайл 4077 красный 200 см","плиссе","Смайл 4077 красный 200 см","Белый"]
[null,null,null,null,null,null,null,null,null,null,null,null,null,null,null,null,null,null,null,null,"Смайл 5173 голубой 200см","плиссе","Смайл 5173 голубой 200см","Белый"]
[null,null,null,null,null,null,null,null,null,null,null,null,null,null,null,null,null,null,null,null,"Стерлинг 1608 светло-серый, 230 см","плиссе","Стерлинг 1608 светло-серый, 230 см","Св. серый"]
[null,null,null,null,null,null,null,null,null,null,null,null,null,null,null,null,null,null,null,null,"Стерлинг 2406 бежевый, 230 см","плиссе","Стерлинг 2406 бежевый, 230 см","Бежевый"]
[null,null,null,null,null,null,null,null,null,null,null,null,null,null,null,null,null,null,null,null,"Тафта 4454 темно-розовый, 225см","плиссе","Тафта 4454 темно-розовый, 225см","Розовый"]
[null,null,null,null,null,null,null,null,null,null,null,null,null,null,null,null,null,null,null,null,"Тафта 5252 синий, 225см","плиссе","Тафта 5252 синий, 225см","Св.синий"]
[null,null,null,null,null,null,null,null,null,null,null,null,null,null,null,null,null,null,null,null,"Тафта 5880 зеленый, 225см","плиссе","Тафта 5880 зеленый, 225см","Зеленый"]
[null,null,null,null,null,null,null,null,null,null,null,null,null,null,null,null,null,null,null,null,"Твигги 0225 белый, 235см","плиссе","Твигги 0225 белый, 235см","Белый"]
[null,null,null,null,null,null,null,null,null,null,null,null,null,null,null,null,null,null,null,null,"Тенденс 1881 т. серый, 225 см","плиссе","Тенденс 1881 т. серый, 225 см","Серый"]
[null,null,null,null,null,null,null,null,null,null,null,null,null,null,null,null,null,null,null,null,"Тенденс 2406 бежевый, 225 см","плиссе","Тенденс 2406 бежевый, 225 см","Бежевый"]
[null,null,null,null,null,null,null,null,null,null,null,null,null,null,null,null,null,null,null,null,"Тенденс 2870 коричневый, 225 см","плиссе","Тенденс 2870 коричневый, 225 см","Коричневый"]
[null,null,null,null,null,null,null,null,null,null,null,null,null,null,null,null,null,null,null,null,"Тенденс 2871 т. коричневый, 225 см","плиссе","Тенденс 2871 т. коричневый, 225 см","Черный"]
[null,null,null,null,null,null,null,null,null,null,null,null,null,null,null,null,null,null,null,null,"Техно 1852 серый, 195см","плиссе","Техно 1852 серый, 195см","Серый"]
[null,null,null,null,null,null,null,null,null,null,null,null,null,null,null,null,null,null,null,null,"Техно 2406 бежевый, 195 см","плиссе","Техно 2406 бежевый, 195 см","Бежевый"]
[null,null,null,null,null,null,null,null,null,null,null,null,null,null,null,null,null,null,null,null,"Тигрис Перла 0225 белый, 15 мм, 230 см","плиссе","Тигрис Перла 0225 белый, 15 мм, 230 см","Белый"]
[null,null,null,null,null,null,null,null,null,null,null,null,null,null,null,null,null,null,null,null,"Тигрис Перла 1608 св. серый, 15 мм, 230 см","плиссе","Тигрис Перла 1608 св. серый, 15 мм, 230 см","Св. серый"]
[null,null,null,null,null,null,null,null,null,null,null,null,null,null,null,null,null,null,null,null,"Тигрис Перла 2261 св. бежевый, 230 см","плиссе","Тигрис Перла 2261 св. бежевый, 230 см","Бежевый"]
[null,null,null,null,null,null,null,null,null,null,null,null,null,null,null,null,null,null,null,null,"Тигрис Перла 2406 бежевый, 15 мм, 230 см","плиссе","Тигрис Перла 2406 бежевый, 15 мм, 230 см","Бежевый"]
[null,null,null,null,null,null,null,null,null,null,null,null,null,null,null,null,null,null,null,null,"Тигрис Перла 2746 т. бежевый, 230 см","плиссе","Тигрис Перла 2746 т. бежевый, 230 см","Песочный"]
[null,null,null,null,null,null,null,null,null,null,null,null,null,null,null,null,null,null,null,null,"Тигрис Перла 2870 коричневый, 15 мм, 230 см","плиссе","Тигрис Перла 2870 коричневый, 15 мм, 230 см","Бежевый"]
[null,null,null,null,null,null,null,null,null,null,null,null,null,null,null,null,null,null,null,null,"Тигрис Перла 2870 коричневый, 230 см","плиссе","Тигрис Перла 2870 коричневый, 230 см","Бежевый"]
[null,null,null,null,null,null,null,null,null,null,null,null,null,null,null,null,null,null,null,null,"Тигрис Перла 5885 горчица, 230 см","плиссе","Тигрис Перла 5885 горчица, 230 см","Песочный"]
[null,null,null,null,null,null,null,null,null,null,null,null,null,null,null,null,null,null,null,null,"Ткань 20 мм (смотри заявку), 235см","плиссе","Ткань 20 мм (смотри заявку), 235см","Оранжевый"]
[null,null,null,null,null,null,null,null,null,null,null,null,null,null,null,null,null,null,null,null,"Ткань гофре 45 мм (смотри заявку), 365см","плиссе","Ткань гофре 45 мм (смотри заявку), 365см","Оранжевый"]
[null,null,null,null,null,null,null,null,null,null,null,null,null,null,null,null,null,null,null,null,"Ткань гофре БА 45 мм (смотри заявку), 365см","плиссе","Ткань гофре БА 45 мм (смотри заявку), 365см","Оранжевый"]
[null,null,null,null,null,null,null,null,null,null,null,null,null,null,null,null,null,null,null,null,"Ткань плиссе 32 мм (смотри заявку), 365см","плиссе","Ткань плиссе 32 мм (смотри заявку), 365см","Оранжевый"]
[null,null,null,null,null,null,null,null,null,null,null,null,null,null,null,null,null,null,null,null,"Тревира Силк 0225 белый, 230 см","плиссе","Тревира Силк 0225 белый, 230 см","Белый"]
[null,null,null,null,null,null,null,null,null,null,null,null,null,null,null,null,null,null,null,null,"Тревира Силк 1608 светло-серый, 230 см","плиссе","Тревира Силк 1608 светло-серый, 230 см","Св. серый"]
[null,null,null,null,null,null,null,null,null,null,null,null,null,null,null,null,null,null,null,null,"Тревира Силк 2261 бежевый, 230 см","плиссе","Тревира Силк 2261 бежевый, 230 см","Бежевый"]
[null,null,null,null,null,null,null,null,null,null,null,null,null,null,null,null,null,null,null,null,"Тревира Силк 3499 оранжевый, 230 см","плиссе","Тревира Силк 3499 оранжевый, 230 см","Оранжевый"]
[null,null,null,null,null,null,null,null,null,null,null,null,null,null,null,null,null,null,null,null,"Тревира Силк 4292 терракотовый, 230 см","плиссе","Тревира Силк 4292 терракотовый, 230 см","Абрикос"]
[null,null,null,null,null,null,null,null,null,null,null,null,null,null,null,null,null,null,null,null,"Тревира Силк 5302 синий, 230 см","плиссе","Тревира Силк 5302 синий, 230 см","Синий"]
[null,null,null,null,null,null,null,null,null,null,null,null,null,null,null,null,null,null,null,null,"Тревира Силк 5586 зеленый, 230 см","плиссе","Тревира Силк 5586 зеленый, 230 см","Желто-зеленый"]
[null,null,null,null,null,null,null,null,null,null,null,null,null,null,null,null,null,null,null,null,"Тревира Силк 5713 фисташковый, 230 см","плиссе","Тревира Силк 5713 фисташковый, 230 см","Песочный"]
[null,null,null,null,null,null,null,null,null,null,null,null,null,null,null,null,null,null,null,null,"Троя 2872 бронза 225 см","плиссе","Троя 2872 бронза 225 см","Бежевый"]
[null,null,null,null,null,null,null,null,null,null,null,null,null,null,null,null,null,null,null,null,"Троя 7013 белый/серебро, 225см","плиссе","Троя 7013 белый/серебро, 225см","Белый"]
[null,null,null,null,null,null,null,null,null,null,null,null,null,null,null,null,null,null,null,null,"Троя 7125 белый/золото, 225см","плиссе","Троя 7125 белый/золото, 225см","Бежевый"]
[null,null,null,null,null,null,null,null,null,null,null,null,null,null,null,null,null,null,null,null,"Утро 0225 белый, 235см","плиссе","Утро 0225 белый, 235см","Белый"]
[null,null,null,null,null,null,null,null,null,null,null,null,null,null,null,null,null,null,null,null,"Фарос 0225 белый, 235см","плиссе","Фарос 0225 белый, 235см","Белый"]
[null,null,null,null,null,null,null,null,null,null,null,null,null,null,null,null,null,null,null,null,"Фреш 3204 желтый, 235см","плиссе","Фреш 3204 желтый, 235см","Белый"]
[null,null,null,null,null,null,null,null,null,null,null,null,null,null,null,null,null,null,null,null,"Фреш 5992 зеленый, 235см","плиссе","Фреш 5992 зеленый, 235см","Белый"]
[null,null,null,null,null,null,null,null,null,null,null,null,null,null,null,null,null,null,null,null,"Харизма 1908 черно-белый, 210см","плиссе","Харизма 1908 черно-белый, 210см","Белый"]
[null,null,null,null,null,null,null,null,null,null,null,null,null,null,null,null,null,null,null,null,"Чарли 1908 черный, 280 см","плиссе","Чарли 1908 черный, 280 см","Черный"]
[null,null,null,null,null,null,null,null,null,null,null,null,null,null,null,null,null,null,null,null,"Чарли 2406 бежевый, 280 см","плиссе","Чарли 2406 бежевый, 280 см","Белый"]
[null,null,null,null,null,null,null,null,null,null,null,null,null,null,null,null,null,null,null,null,"Челси 0225 белый,  225см","плиссе","Челси 0225 белый,  225см","Белый"]
[null,null,null,null,null,null,null,null,null,null,null,null,null,null,null,null,null,null,null,null,"Челси 0225 белый, 32 мм, 300 см","плиссе","Челси 0225 белый, 32 мм, 300 см","Белый"]
[null,null,null,null,null,null,null,null,null,null,null,null,null,null,null,null,null,null,null,null,"Челси 1852 серый, 32 мм, 300 см","плиссе","Челси 1852 серый, 32 мм, 300 см","Серый"]
[null,null,null,null,null,null,null,null,null,null,null,null,null,null,null,null,null,null,null,null,"Челси 1881 т. серый, 32 мм, 300 см","плиссе","Челси 1881 т. серый, 32 мм, 300 см","Серый"]
[null,null,null,null,null,null,null,null,null,null,null,null,null,null,null,null,null,null,null,null,"Челси 1907 светло серый,  225см","плиссе","Челси 1907 светло серый,  225см","Св. серый"]
[null,null,null,null,null,null,null,null,null,null,null,null,null,null,null,null,null,null,null,null,"Челси 2407 бежевый,  225см","плиссе","Челси 2407 бежевый,  225см","Песочный"]
[null,null,null,null,null,null,null,null,null,null,null,null,null,null,null,null,null,null,null,null,"Челси 2875 каштан,  225см","плиссе","Челси 2875 каштан,  225см","Коричневый"]
[null,null,null,null,null,null,null,null,null,null,null,null,null,null,null,null,null,null,null,null,"Челси 3465 желтый,  225см","плиссе","Челси 3465 желтый,  225см","Оранжевый"]
[null,null,null,null,null,null,null,null,null,null,null,null,null,null,null,null,null,null,null,null,"Челси 4082 роза,  225см","плиссе","Челси 4082 роза,  225см","Белый"]
[null,null,null,null,null,null,null,null,null,null,null,null,null,null,null,null,null,null,null,null,"Челси 5302 океан,  225см","плиссе","Челси 5302 океан,  225см","Синий"]
[null,null,null,null,null,null,null,null,null,null,null,null,null,null,null,null,null,null,null,null,"Честер 0225 белый, 230см","плиссе","Честер 0225 белый, 230см","Белый"]
[null,null,null,null,null,null,null,null,null,null,null,null,null,null,null,null,null,null,null,null,"Честер 2261 бежевый, 230см","плиссе","Честер 2261 бежевый, 230см","Песочный"]
[null,null,null,null,null,null,null,null,null,null,null,null,null,null,null,null,null,null,null,null,"Шанхай 4291 терракота, 235см","плиссе","Шанхай 4291 терракота, 235см","Оранжевый"]
[null,null,null,null,null,null,null,null,null,null,null,null,null,null,null,null,null,null,null,null,"Шанхай 5885 оливковый, 235см","плиссе","Шанхай 5885 оливковый, 235см","Черный"]
[null,null,null,null,null,null,null,null,null,null,null,null,null,null,null,null,null,null,null,null,"Шарм 0225 белый 200см","плиссе","Шарм 0225 белый 200см","Белый"]
[null,null,null,null,null,null,null,null,null,null,null,null,null,null,null,null,null,null,null,null,"Шарм 1608 св. серый 200см","плиссе","Шарм 1608 св. серый 200см","Св. серый"]
[null,null,null,null,null,null,null,null,null,null,null,null,null,null,null,null,null,null,null,null,"Шарм 2259 магнолия 200 см","плиссе","Шарм 2259 магнолия 200 см","Бежевый"]
[null,null,null,null,null,null,null,null,null,null,null,null,null,null,null,null,null,null,null,null,"Шарм 2261 св. бежевый 200см","плиссе","Шарм 2261 св. бежевый 200см","Бежевый"]
[null,null,null,null,null,null,null,null,null,null,null,null,null,null,null,null,null,null,null,null,"Шарм 2406 бежевый 200 см","плиссе","Шарм 2406 бежевый 200 см","Бежевый"]
[null,null,null,null,null,null,null,null,null,null,null,null,null,null,null,null,null,null,null,null,"Шарм 4240 персик 200 см","плиссе","Шарм 4240 персик 200 см","Абрикос"]
[null,null,null,null,null,null,null,null,null,null,null,null,null,null,null,null,null,null,null,null,"Шарм 5173 голубой 200 см","плиссе","Шарм 5173 голубой 200 см","Св.синий"]
[null,null,null,null,null,null,null,null,null,null,null,null,null,null,null,null,null,null,null,null,"Шарм 5608 бирюзовый 200 см","плиссе","Шарм 5608 бирюзовый 200 см","Св.синий"]
[null,null,null,null,null,null,null,null,null,null,null,null,null,null,null,null,null,null,null,null,"ШАТО 0225 белый  225 см","плиссе","ШАТО 0225 белый  225 см","Белый"]
[null,null,null,null,null,null,null,null,null,null,null,null,null,null,null,null,null,null,null,null,"ШАТО 1881 серый 225 см","плиссе","ШАТО 1881 серый 225 см","Серый"]
[null,null,null,null,null,null,null,null,null,null,null,null,null,null,null,null,null,null,null,null,"ШАТО 4454 бордо 225 см","плиссе","ШАТО 4454 бордо 225 см","Бордо"]
[null,null,null,null,null,null,null,null,null,null,null,null,null,null,null,null,null,null,null,null,"ШАТО 5612 бирюзовый  225 см","плиссе","ШАТО 5612 бирюзовый  225 см","Желто-зеленый"]
[null,null,null,null,null,null,null,null,null,null,null,null,null,null,null,null,null,null,null,null,"Южная ночь 1881 серо-черный, 235см","плиссе","Южная ночь 1881 серо-черный, 235см","Черный"]
[null,null,null,null,null,null,null,null,null,null,null,null,null,null,null,null,null,null,null,null,"Ямайка 1608 св. серый, 225 см","плиссе","Ямайка 1608 св. серый, 225 см","Св. серый"]
[null,null,null,null,null,null,null,null,null,null,null,null,null,null,null,null,null,null,null,null,"Ямайка 1852 серый, 32 мм, 300 см","плиссе","Ямайка 1852 серый, 32 мм, 300 см","Серый"]
[null,null,null,null,null,null,null,null,null,null,null,null,null,null,null,null,null,null,null,null,"Ямайка 1854 графит, 225 см","плиссе","Ямайка 1854 графит, 225 см","Серый"]
[null,null,null,null,null,null,null,null,null,null,null,null,null,null,null,null,null,null,null,null,"Ямайка 1881 т. серый, 225 см","плиссе","Ямайка 1881 т. серый, 225 см","Серый"]
[null,null,null,null,null,null,null,null,null,null,null,null,null,null,null,null,null,null,null,null,"Ямайка 2261 св. бежевый, 225 см","плиссе","Ямайка 2261 св. бежевый, 225 см","Бежевый"]
[null,null,null,null,null,null,null,null,null,null,null,null,null,null,null,null,null,null,null,null,"Ямайка 2261 св. бежевый, 32 мм, 300 см","плиссе","Ямайка 2261 св. бежевый, 32 мм, 300 см","Бежевый"]
[null,null,null,null,null,null,null,null,null,null,null,null,null,null,null,null,null,null,null,null,"Ямайка 2406 бежевый 225 см","плиссе","Ямайка 2406 бежевый 225 см","Бежевый"]
[null,null,null,null,null,null,null,null,null,null,null,null,null,null,null,null,null,null,null,null,"Ямайка 2406 бежевый, 32 мм, 300 см","плиссе","Ямайка 2406 бежевый, 32 мм, 300 см","Песочный"]
[null,null,null,null,null,null,null,null,null,null,null,null,null,null,null,null,null,null,null,null,"Ямайка 2552 кремовый, 225 см","плиссе","Ямайка 2552 кремовый, 225 см","Абрикос"]
[null,null,null,null,null,null,null,null,null,null,null,null,null,null,null,null,null,null,null,null,"Ямайка 2872 шоколад, 225 см","плиссе","Ямайка 2872 шоколад, 225 см","Коричневый"]
[null,null,null,null,null,null,null,null,null,null,null,null,null,null,null,null,null,null,null,null,"Ямайка 2875 каштан, 225 см","плиссе","Ямайка 2875 каштан, 225 см","Коричневый"]
[null,null,null,null,null,null,null,null,null,null,null,null,null,null,null,null,null,null,null,null,"Ямайка 4831 лаванда, 225 см","плиссе","Ямайка 4831 лаванда, 225 см","Лиловый"]
[null,null,null,null,null,null,null,null,null,null,null,null,null,null,null,null,null,null,null,null,"Ямайка 4966 баклажан, 225 см","плиссе","Ямайка 4966 баклажан, 225 см","Лиловый"]
[null,null,null,null,null,null,null,null,null,null,null,null,null,null,null,null,null,null,null,null,"Ямайка 5501 св. зеленый, 225 см","плиссе","Ямайка 5501 св. зеленый, 225 см","св зеленый"]
[null,null,null,null,null,null,null,null,null,null,null,null,null,null,null,null,null,null,null,null,"Ямайка 5612 бирюзовый, 225 см","плиссе","Ямайка 5612 бирюзовый, 225 см","Желто-зеленый"]
[null,null,null,null,null,null,null,null,null,null,null,null,null,null,null,null,null,null,null,null,"Ясмин 1852 серый, 230 см","плиссе","Ясмин 1852 серый, 230 см","Серый"]
[null,null,null,null,null,null,null,null,null,null,null,null,null,null,null,null,null,null,null,null,"Ясмин 2259 магнолия, 230 см","плиссе","Ясмин 2259 магнолия, 230 см","Бежевый"]
[null,null,null,null,null,null,null,null,null,null,null,null,null,null,null,null,null,null,null,null,"Ясмин 2870 коричневый, 230 см","плиссе","Ясмин 2870 коричневый, 230 см","Коричневый"]

{"sheet":"PR2","index":1,"n_rows":614,"n_cols":24,"rows_kept":614,"cut":false,"hidden":false,"merged":[[32,0,32,1],[7,2,7,3],[7,5,7,7],[8,2,8,3],[8,5,8,7],[19,1,19,2],[9,5,9,6]]}
[]
["№ заказа:"]
[null,null,null,null,null,null,null,null,"PR2",null,null,null,null,null,null,"изделия",null,null,{"$f":"P3","v":"изделия"}]
[null,"Ширина:",0,"мм.",null,null,null,null,null,null,null,null,null,null,null,"проема","угол",{"$f":"ATAN((C6-G6)/C4)","v":{"$error":"#DIV/0!"}},"Кронштейн потолочный",null,0,0,0,0]
[null,{"$f":"IF(AND(C4<200,C4>0),\"ВНИМАНИЕ!!!Минимальная ширина 200 мм\",IF(C4>1200,\"ВНИМАНИЕ!!!Максимальная ширина 1200 мм\",0))","v":0},null,null,null,null,null,null,null,null,null,null,null,null,null,null,"длина наклона",{"$f":"ROUND(SQRT(((C6-G6)^2)+(C4^2)),3)","v":0},"Кронштейн на штапик",null,"Акапулько 4300 терракота, 235см","плиссе","Акапулько 4300 терракота, 235см","Оранжевый"]
[null,"Высота:",0,"мм.",null,null,null,null,null,null,null,null,null,null,null,null,"угол танг.",{"$f":"(90-C10)*3.14/180","v":1.57},null,null,"Акапулько 5173 голубой, 235 см","плиссе","Акапулько 5173 голубой, 235 см","Зеленый"]
[null,{"$f":"IF(C6>1500,\"ВНИМАНИЕ!!!Максимальная высота 1500 мм\",0)","v":0},null,null,null,null,null,null,null,null,null,null,null,null,null,null,"betta",{"$f":"34/TAN(R6)","v":2.7075116749588547E-2},"Кронштейн подоконный",null,"Акварель 1608 св.серый, 235см","плиссе","Акварель 1608 св.серый, 235см","Белый"]
[null,"Кронштейн:",0,null,"Ткань:",0,null,null,null,null,null,null,null,null,null,null,null,null,"Кронштейн на штапик",null,"Акварель 2259 св.бежевый, 235см","плиссе","Акварель 2259 св.бежевый, 235см","Белый"]
[null,null,"выбрать из списка",null,null,"выбрать из списка",null,null,null,null,null,null,null,null,null,null,null,null,null,null,"Аллегро 0225 белый, 238 см","плиссе","Аллегро 0225 белый, 238 см","Белый"]
[null,"кол-во:",0,"шт.",null,"Размеры:",null,null,null,null,null,null,null,null,null,null,null,null,0,null,"Базилик 5864 зеленый 200 см","плиссе","Базилик 5864 зеленый 200 см","Белый"]
[null,0,null,null,null,null,null,"выбрать из списка",null,null,null,null,null,null,null,null,null,null,"плиссе",null,"Батик 1608 серый 235см","плиссе","Батик 1608 серый 235см","Белый"]
[null,null,null,null,null,null,null,null,null,null,null,null,null,null,null,null,null,null,"гофре",null,"Батик 2261 бежевый 200 см","плиссе","Батик 2261 бежевый 200 см","Белый"]
[null,null,null,null,null,null,null,null,null,null,null,null,null,null,null,null,null,null,0,null,"Батик 2261 бежевый 235 см","плиссе","Батик 2261 бежевый 235 см","Белый"]
[null,null,null,null,null,null,null,null,null,null,null,null,null,null,null,null,null,null,"Потолочный/подоконный",null,"Бланш 0225 белый, 235см","плиссе","Бланш 0225 белый, 235см","Белый"]
["Оборудование",null,null,null,null,null,null,null,null,null,null,null,null,null,null,null,null,null,"Пластиковый",null,"Бланш 2261 св.бежевый, 230см","плиссе","Бланш 2261 св.бежевый, 230см","Бежевый"]
[null,null,null,null,null,null,null,null,null,null,null,null,null,null,null,null,null,null,null,null,"Бон Вояж 1608 серый 235 см","плиссе","Бон Вояж 1608 серый 235 см","Белый"]
[null,null,null,null,null,null,null,null,null,null,null,null,null,null,null,null,null,{"$f":"VLOOKUP(F8,U4:V615,2,0)","v":0},null,null,"Валента 0225 белый, 240 см","плиссе","Валента 0225 белый, 240 см","Белый"]
[null,null,null,null,null,null,null,null,null,null,null,null,null,null,null,null,null,null,null,null,"Валента 2261 св. бежевый, 240 см","плиссе","Валента 2261 св. бежевый, 240 см","Бежевый"]
[null,null,null,null,null,null,null,null,null,null,null,null,null,null,null,null,null,null,null,null,"Венесуэла 4068 медь, 225 см","плиссе","Венесуэла 4068 медь, 225 см","Бежевый"]
[null,null,null,null,null,null,null,null,null,null,null,null,null,null,null,null,null,null,null,null,"Венесуэла 7013 серебро, 225 см","плиссе","Венесуэла 7013 серебро, 225 см","Св. серый"]
[null,null,null,null,null,null,null,null,null,null,null,null,null,null,null,null,null,null,null,null,"Веранда 2261 бежевый, 230 см","плиссе","Веранда 2261 бежевый, 230 см","Бежевый"]
[null,null,null,null,null,null,null,null,null,null,null,null,null,null,null,null,null,null,null,null,"Веранда 3499 оранжевый, 230 см","плиссе","Веранда 3499 оранжевый, 230 см","Оранжевый"]
["Комплектующие",null,null,null,null,null,null,null,null,null,null,null,null,null,null,null,null,null,null,null,"Веранда 5849 светло-зеленый, 230 см","плиссе","Веранда 5849 светло-зеленый, 230 см","Песочный"]
[null,null,null,null,null,null,null,null,null,null,null,null,null,null,null,null,null,null,null,null,"Виндзор 0225 белый 200 см","плиссе","Виндзор 0225 белый 200 см","Белый"]
[null,null,null,null,null,null,null,null,null,null,null,null,null,null,null,null,null,null,null,null,"Виндзор 1881 серый 200 см","плиссе","Виндзор 1881 серый 200 см","Черный"]
[null,null,null,null,null,null,null,null,null,null,null,null,null,null,null,null,null,null,null,null,"Виндзор 2259 бежевый 200 см","плиссе","Виндзор 2259 бежевый 200 см","Бежевый"]
[null,null,null,null,null,null,null,null,null,null,null,null,null,null,null,null,null,null,null,null,"Виола 3204 желтый  235 см","плиссе","Виола 3204 желтый  235 см","Песочный"]
[null,null,null,null,null,null,null,null,null,null,null,null,null,null,null,null,null,null,null,null,"Виола 4858 темно-лиловый, 235см","плиссе","Виола 4858 темно-лиловый, 235см","Белый"]
[null,null,null,null,null,null,null,null,null,null,null,null,null,null,null,null,null,null,null,null,"Вита 0225 белый 240см","плиссе","Вита 0225 белый 240см","Белый"]
[null,null,null,null,null,null,null,null,null,null,null,null,null,null,null,null,null,null,null,null,"Вита 1608 св. серый 240см","плиссе","Вита 1608 св. серый 240см","св. серый"]
[null,null,null,null,null,null,null,null,null,null,null,null,null,null,null,null,null,null,null,null,"Вита 1852 серый 240см","плиссе","Вита 1852 серый 240см","Серый"]
[null,null,null,null,null,null,null,null,null,null,null,null,null,null,null,null,null,null,null,null,"Вита 1881 т. серый 240см","плиссе","Вита 1881 т. серый 240см","Серый"]
[null,null,null,null,null,null,null,null,null,null,null,null,null,null,null,null,null,null,null,null,"Вита 2406 бежевый 240см","плиссе","Вита 2406 бежевый 240см","Бежевый"]
[null,null,null,null,null,null,null,null,null,null,null,null,null,null,null,null,null,null,null,null,"Вита 2552 кремовый 240см","плиссе","Вита 2552 кремовый 240см","Бежевый"]
[null,null,null,null,null,null,null,null,null,null,null,null,null,null,null,null,null,null,null,null,"Гинко 2406 бежевый, 230 см","плиссе","Гинко 2406 бежевый, 230 см","Бежевый"]
[null,null,null,null,null,null,null,null,null,null,null,null,null,null,null,null,null,null,null,null,"Гинко 3210 желтый, 230 см","плиссе","Гинко 3210 желтый, 230 см","Оранжевый"]
[null,null,null,null,null,null,null,null,null,null,null,null,null,null,null,null,null,null,null,null,"Гинко 4075 красный, 230 см","плиссе","Гинко 4075 красный, 230 см","Абрикос"]
[null,null,null,null,null,null,null,null,null,null,null,null,null,null,null,null,null,null,null,null,"Гинко 5853 зеленый, 230 см","плиссе","Гинко 5853 зеленый, 230 см","Св.зеленый"]
[null,null,null,null,null,null,null,null,null,null,null,null,null,null,null,null,null,null,null,null,"Гофре Классик 0225 белый, 300 см","гофре","Гофре Классик 0225 белый, 300 см","Белый"]
[null,null,null,null,null,null,null,null,null,null,null,null,null,null,null,null,null,null,null,null,"Гофре Классик 1608 св. серый, 300 см","гофре","Гофре Классик 1608 св. серый, 300 см","Св. серый"]
[null,null,null,null,null,null,null,null,null,null,null,null,null,null,null,null,null,null,null,null,"Гофре Классик 2259 магнолия, 300 см","гофре","Гофре Классик 2259 магнолия, 300 см","Бежевый"]
[null,null,null,null,null,null,null,null,null,null,null,null,null,null,null,null,null,null,null,null,"Гофре Классик 2261 св. бежевый, 300 см","гофре","Гофре Классик 2261 св. бежевый, 300 см","Бежевый"]
[null,null,null,null,null,null,null,null,null,null,null,null,null,null,null,null,null,null,null,null,"Гофре Креп 0225 белый, 220 см","Гофре","Гофре Креп 0225 белый, 220 см","Белый"]
[null,null,null,null,null,null,null,null,null,null,null,null,null,null,null,null,null,null,null,null,"Гофре Креп 1608 св. серый, 220см","гофре","Гофре Креп 1608 св. серый, 220см","Серый"]
[null,null,null,null,null,null,null,null,null,null,null,null,null,null,null,null,null,null,null,null,"Гофре Креп 1881 т.серый, 220см","гофре","Гофре Креп 1881 т.серый, 220см","Серый"]
[null,null,null,null,null,null,null,null,null,null,null,null,null,null,null,null,null,null,null,null,"Гофре Креп 2259 магнолия, 220 см","Гофре","Гофре Креп 2259 магнолия, 220 см","Белый"]
[null,null,null,null,null,null,null,null,null,null,null,null,null,null,null,null,null,null,null,null,"Гофре Креп 2261 бежевый, 220см","Гофре","Гофре Креп 2261 бежевый, 220см","Бежевый"]
[null,null,null,null,null,null,null,null,null,null,null,null,null,null,null,null,null,null,null,null,"Гофре Креп 2550 кремовый, 220см","Гофре","Гофре Креп 2550 кремовый, 220см","Песочный"]
[null,null,null,null,null,null,null,null,null,null,null,null,null,null,null,null,null,null,null,null,"Гофре Креп 2870 коричневый, 220см","гофре","Гофре Креп 2870 коричневый, 220см","Коричневый"]
[null,null,null,null,null,null,null,null,null,null,null,null,null,null,null,null,null,null,null,null,"Гофре Креп 3465 желтый, 220см","гофре","Гофре Креп 3465 желтый, 220см","Песочный"]
[null,null,null,null,null,null,null,null,null,null,null,null,null,null,null,null,null,null,null,null,"Гофре Креп 3499 оранжевый, 220см","гофре","Гофре Креп 3499 оранжевый, 220см","Оранжевый"]
[null,null,null,null,null,null,null,null,null,null,null,null,null,null,null,null,null,null,null,null,"Гофре Креп 4066 абрикос, 220см","гофре","Гофре Креп 4066 абрикос, 220см","Оранжевый"]
[null,null,null,null,null,null,null,null,null,null,null,null,null,null,null,null,null,null,null,null,"Гофре Креп 4075 красный, 220см","гофре","Гофре Креп 4075 красный, 220см","Розовый"]
[null,null,null,null,null,null,null,null,null,null,null,null,null,null,null,null,null,null,null,null,"Гофре Креп 5173 голубой, 220см","гофре","Гофре Креп 5173 голубой, 220см","Св.синий"]
[null,null,null,null,null,null,null,null,null,null,null,null,null,null,null,null,null,null,null,null,"Гофре Креп 5470 т. синий, 220см","гофре","Гофре Креп 5470 т. синий, 220см","Синий"]
[null,null,null,null,null,null,null,null,null,null,null,null,null,null,null,null,null,null,null,null,"Гофре Креп 5540 св. зеленый, 220см","гофре","Гофре Креп 5540 св. зеленый, 220см","Желто-зеленый"]
[null,null,null,null,null,null,null,null,null,null,null,null,null,null,null,null,null,null,null,null,"Гофре Креп 7005 металлик, 220см","Гофре","Гофре Креп 7005 металлик, 220см","Белый"]
[null,null,null,null,null,null,null,null,null,null,null,null,null,null,null,null,null,null,null,null,"Гофре Креп Перл 0225 белый, 220 см","гофре","Гофре Креп Перл 0225 белый, 220 см","Белый"]
[null,null,null,null,null,null,null,null,null,null,null,null,null,null,null,null,null,null,null,null,"Гофре Креп Перл 1608 св. серый, 220 см","гофре","Гофре Креп Перл 1608 св. серый, 220 см","Св. серый"]
[null,null,null,null,null,null,null,null,null,null,null,null,null,null,null,null,null,null,null,null,"Гофре Креп Перл 2259 магнолия, 220 см","гофре","Гофре Креп Перл 2259 магнолия, 220 см","Бежевый"]
[null,null,null,null,null,null,null,null,null,null,null,null,null,null,null,null,null,null,null,null,"Гофре Папирус 0225 белый 360 см","Гофре","Гофре Папирус 0225 белый 360 см","Белый"]
[null,null,null,null,null,null,null,null,null,null,null,null,null,null,null,null,null,null,null,null,"Гофре Папирус 1608 светло-серый 360 см","Гофре","Гофре Папирус 1608 светло-серый 360 см","Св. серый"]
[null,null,null,null,null,null,null,null,null,null,null,null,null,null,null,null,null,null,null,null,"Гофре Папирус 2261 светло-бежевый","Гофре","Гофре Папирус 2261 светло-бежевый","Песочный"]
[null,null,null,null,null,null,null,null,null,null,null,null,null,null,null,null,null,null,null,null,"Гофре Папирус 2870 коричневый 360 см","Гофре","Гофре Папирус 2870 коричневый 360 см","Коричневый"]
[null,null,null,null,null,null,null,null,null,null,null,null,null,null,null,null,null,null,null,null,"Гофре Папирус 4096 розовый 360 см","Гофре","Гофре Папирус 4096 розовый 360 см","Розовый"]
[null,null,null,null,null,null,null,null,null,null,null,null,null,null,null,null,null,null,null,null,"Гофре Папирус 4290 терракота 360 см","Гофре","Гофре Папирус 4290 терракота 360 см","Коричневый"]
[null,null,null,null,null,null,null,null,null,null,null,null,null,null,null,null,null,null,null,null,"Гофре Папирус 4469 лиловый 360 см","Гофре","Гофре Папирус 4469 лиловый 360 см","Лиловый"]
[null,null,null,null,null,null,null,null,null,null,null,null,null,null,null,null,null,null,null,null,"Гофре Папирус 5150 светло-голубой 360 см","Гофре","Гофре Папирус 5150 светло-голубой 360 см","Св.зеленый"]
[null,null,null,null,null,null,null,null,null,null,null,null,null,null,null,null,null,null,null,null,"Гофре Папирус 5540 светло-зеленый 360 см","Гофре","Гофре Папирус 5540 светло-зеленый 360 см","Желто-зеленый"]
[null,null,null,null,null,null,null,null,null,null,null,null,null,null,null,null,null,null,null,null,"Гофре Папирус БО 0224 снежно-белый 450 см","гофре","Гофре Папирус БО 0224 снежно-белый 450 см","Белый"]
[null,null,null,null,null,null,null,null,null,null,null,null,null,null,null,null,null,null,null,null,"Гофре Папирус БО 0225 белый 360 см","Гофре","Гофре Папирус БО 0225 белый 360 см","Белый"]
[null,null,null,null,null,null,null,null,null,null,null,null,null,null,null,null,null,null,null,null,"Гофре Папирус БО 1608 светло-серый 360 см","Гофре","Гофре Папирус БО 1608 светло-серый 360 см","Св. серый"]
[null,null,null,null,null,null,null,null,null,null,null,null,null,null,null,null,null,null,null,null,"Гофре Папирус БО 1852 серый, 450см","гофре","Гофре Папирус БО 1852 серый, 450см","Св. серый"]
[null,null,null,null,null,null,null,null,null,null,null,null,null,null,null,null,null,null,null,null,"Гофре Папирус БО 2260 слоновая кость, 450см","гофре","Гофре Папирус БО 2260 слоновая кость, 450см","Бежевый"]
[null,null,null,null,null,null,null,null,null,null,null,null,null,null,null,null,null,null,null,null,"Гофре Папирус БО 2407 бежевый 360 см","Гофре","Гофре Папирус БО 2407 бежевый 360 см","Песочный"]
[null,null,null,null,null,null,null,null,null,null,null,null,null,null,null,null,null,null,null,null,"Гофре Перфект 0225 белый, 300 см","гофре","Гофре Перфект 0225 белый, 300 см","Белый"]
[null,null,null,null,null,null,null,null,null,null,null,null,null,null,null,null,null,null,null,null,"Гофре Перфект 1608 св. серый, 300 см","гофре","Гофре Перфект 1608 св. серый, 300 см","Св. серый"]
[null,null,null,null,null,null,null,null,null,null,null,null,null,null,null,null,null,null,null,null,"Гофре Перфект 1852 серый, 300 см","гофре","Гофре Перфект 1852 серый, 300 см","Серый"]
[null,null,null,null,null,null,null,null,null,null,null,null,null,null,null,null,null,null,null,null,"Гофре Перфект 2259 магнолия, 300 см","гофре","Гофре Перфект 2259 магнолия, 300 см","Бежевый"]
[null,null,null,null,null,null,null,null,null,null,null,null,null,null,null,null,null,null,null,null,"Гофре Перфект 5879 оливковый, 300 см","гофре","Гофре Перфект 5879 оливковый, 300 см","Св.зеленый"]
[null,null,null,null,null,null,null,null,null,null,null,null,null,null,null,null,null,null,null,null,"Гофре Перфект BO 0225 белый, 300 см","гофре","Гофре Перфект BO 0225 белый, 300 см","Белый"]
[null,null,null,null,null,null,null,null,null,null,null,null,null,null,null,null,null,null,null,null,"Гофре Перфект BO 1608 св. серый, 300 см","гофре","Гофре Перфект BO 1608 св. серый, 300 см","Св. серый"]
[null,null,null,null,null,null,null,null,null,null,null,null,null,null,null,null,null,null,null,null,"Гофре Перфект BO 1852 серый, 300 см","гофре","Гофре Перфект BO 1852 серый, 300 см","Серый"]
[null,null,null,null,null,null,null,null,null,null,null,null,null,null,null,null,null,null,null,null,"Гофре Перфект BO 2259 магнолия, 300 см","гофре","Гофре Перфект BO 2259 магнолия, 300 см","Бежевый"]
[null,null,null,null,null,null,null,null,null,null,null,null,null,null,null,null,null,null,null,null,"Гофре Сатин 0225 белый, 365 см","гофре","Гофре Сатин 0225 белый, 365 см","Белый"]
[null,null,null,null,null,null,null,null,null,null,null,null,null,null,null,null,null,null,null,null,"Гофре Сатин 0225 белый, 45 мм, 365 см","гофре","Гофре Сатин 0225 белый, 45 мм, 365 см","Белый"]
[null,null,null,null,null,null,null,null,null,null,null,null,null,null,null,null,null,null,null,null,"Гофре Сатин 1608 св. серый, 365 см","гофре","Гофре Сатин 1608 св. серый, 365 см","Св. серый"]
[null,null,null,null,null,null,null,null,null,null,null,null,null,null,null,null,null,null,null,null,"Гофре Сатин 1608 св. серый, 45 мм, 365 см","гофре","Гофре Сатин 1608 св. серый, 45 мм, 365 см","Св. серый"]
[null,null,null,null,null,null,null,null,null,null,null,null,null,null,null,null,null,null,null,null,"Гофре Сатин 1881 т. серый, 365 см","гофре","Гофре Сатин 1881 т. серый, 365 см","Серый"]
[null,null,null,null,null,null,null,null,null,null,null,null,null,null,null,null,null,null,null,null,"Гофре Сатин 1881 т. серый, 45 мм, 365 см","гофре","Гофре Сатин 1881 т. серый, 45 мм, 365 см","Серый"]
[null,null,null,null,null,null,null,null,null,null,null,null,null,null,null,null,null,null,null,null,"Гофре Сатин 2261 св. бежевый, 365 см","гофре","Гофре Сатин 2261 св. бежевый, 365 см","Бежевый"]
[null,null,null,null,null,null,null,null,null,null,null,null,null,null,null,null,null,null,null,null,"Гофре Сатин 2406 бежевый, 365 см","гофре","Гофре Сатин 2406 бежевый, 365 см","Бежевый"]
[null,null,null,null,null,null,null,null,null,null,null,null,null,null,null,null,null,null,null,null,"Гофре Сатин 2406 бежевый, 45 мм, 365 см","гофре","Гофре Сатин 2406 бежевый, 45 мм, 365 см","Бежевый"]
[null,null,null,null,null,null,null,null,null,null,null,null,null,null,null,null,null,null,null,null,"Гофре Сатин 2746 т. бежевый, 365 см","гофре","Гофре Сатин 2746 т. бежевый, 365 см","Песочный"]
[null,null,null,null,null,null,null,null,null,null,null,null,null,null,null,null,null,null,null,null,"Гофре Сатин 2746 т. бежевый, 45 мм, 365 см","гофре","Гофре Сатин 2746 т. бежевый, 45 мм, 365 см","Песочный"]
[null,null,null,null,null,null,null,null,null,null,null,null,null,null,null,null,null,null,null,null,"Гофре Сатин 2871 т. коричневый, 365 см","гофре","Гофре Сатин 2871 т. коричневый, 365 см","Коричневый"]
[null,null,null,null,null,null,null,null,null,null,null,null,null,null,null,null,null,null,null,null,"Гофре Сатин 2871 т. коричневый, 45 мм, 365 см","гофре","Гофре Сатин 2871 т. коричневый, 45 мм, 365 см","Коричневый"]
[null,null,null,null,null,null,null,null,null,null,null,null,null,null,null,null,null,null,null,null,"Гофре Сатин 3209 св. желтый, 45 мм, 365 см","гофре","Гофре Сатин 3209 св. желтый, 45 мм, 365 см","Песочный"]
[null,null,null,null,null,null,null,null,null,null,null,null,null,null,null,null,null,null,null,null,"Гофре Сатин 4096 розовый, 45 мм, 365 см","гофре","Гофре Сатин 4096 розовый, 45 мм, 365 см","Розовый"]
[null,null,null,null,null,null,null,null,null,null,null,null,null,null,null,null,null,null,null,null,"Гофре Сатин 4858 бордо, 45 мм, 365 см","гофре","Гофре Сатин 4858 бордо, 45 мм, 365 см","Бордо"]
[null,null,null,null,null,null,null,null,null,null,null,null,null,null,null,null,null,null,null,null,"Гофре Сатин 5470 т. синий, 45 мм, 365 см","гофре","Гофре Сатин 5470 т. синий, 45 мм, 365 см","Св.синий"]
[null,null,null,null,null,null,null,null,null,null,null,null,null,null,null,null,null,null,null,null,"Гофре Сатин 5879 оливковый, 45 мм, 365 см","гофре","Гофре Сатин 5879 оливковый, 45 мм, 365 см","Желто-зеленый"]
[null,null,null,null,null,null,null,null,null,null,null,null,null,null,null,null,null,null,null,null,"Гофре Сатин 5992 т. бирюзовый, 45 мм, 365 см","гофре","Гофре Сатин 5992 т. бирюзовый, 45 мм, 365 см","Желто-зеленый"]
[null,null,null,null,null,null,null,null,null,null,null,null,null,null,null,null,null,null,null,null,"Гофре Сатин ВО 0225 белый, 365 см","гофре","Гофре Сатин ВО 0225 белый, 365 см","Белый"]
[null,null,null,null,null,null,null,null,null,null,null,null,null,null,null,null,null,null,null,null,"Гофре Сатин ВО 0225 белый, 45 мм, 365 см","гофре","Гофре Сатин ВО 0225 белый, 45 мм, 365 см","Белый"]
[null,null,null,null,null,null,null,null,null,null,null,null,null,null,null,null,null,null,null,null,"Гофре Сатин ВО 1608 св. серый, 365 см","гофре","Гофре Сатин ВО 1608 св. серый, 365 см","Св. серый"]
[null,null,null,null,null,null,null,null,null,null,null,null,null,null,null,null,null,null,null,null,"Гофре Сатин ВО 1608 св. серый, 45 мм, 365 см","гофре","Гофре Сатин ВО 1608 св. серый, 45 мм, 365 см","light-grey"]
[null,null,null,null,null,null,null,null,null,null,null,null,null,null,null,null,null,null,null,null,"Гофре Сатин ВО 2406 бежевый, 365 см","гофре","Гофре Сатин ВО 2406 бежевый, 365 см","Бежевый"]
[null,null,null,null,null,null,null,null,null,null,null,null,null,null,null,null,null,null,null,null,"Гофре Сатин ВО 2406 бежевый, 45 мм, 365 см","гофре","Гофре Сатин ВО 2406 бежевый, 45 мм, 365 см","Бежевый"]
[null,null,null,null,null,null,null,null,null,null,null,null,null,null,null,null,null,null,null,null,"Гофре Сатин ВО 2870 коричневый, 365 см","гофре","Гофре Сатин ВО 2870 коричневый, 365 см","Коричневый"]
[null,null,null,null,null,null,null,null,null,null,null,null,null,null,null,null,null,null,null,null,"Гофре Экошик 0225 белый 300 см","Гофре","Гофре Экошик 0225 белый 300 см","Белый"]
[null,null,null,null,null,null,null,null,null,null,null,null,null,null,null,null,null,null,null,null,"Гофре Экошик 2259 магнолия 300 см","Гофре","Гофре Экошик 2259 магнолия 300 см","Бежевый"]
[null,null,null,null,null,null,null,null,null,null,null,null,null,null,null,null,null,null,null,null,"Гофре Экошик 2868 светло-коричневый 300 см","Гофре","Гофре Экошик 2868 светло-коричневый 300 см","Коричневый"]
[null,null,null,null,null,null,null,null,null,null,null,null,null,null,null,null,null,null,null,null,"Гофре Экошик 3144 ваниль 300 см","Гофре","Гофре Экошик 3144 ваниль 300 см","Песочный"]
[null,null,null,null,null,null,null,null,null,null,null,null,null,null,null,null,null,null,null,null,"Девон 1852 серый, 240 см","плиссе","Девон 1852 серый, 240 см","Серый"]
[null,null,null,null,null,null,null,null,null,null,null,null,null,null,null,null,null,null,null,null,"Девон 2259 магнолия, 240 см","плиссе","Девон 2259 магнолия, 240 см","Бежевый"]
[null,null,null,null,null,null,null,null,null,null,null,null,null,null,null,null,null,null,null,null,"Девон 2406 бежевый, 240 см","плиссе","Девон 2406 бежевый, 240 см","Серый"]
[null,null,null,null,null,null,null,null,null,null,null,null,null,null,null,null,null,null,null,null,"Джакарта 1881 черно-коричневый, 235см","плиссе","Джакарта 1881 черно-коричневый, 235см","Черный"]
[null,null,null,null,null,null,null,null,null,null,null,null,null,null,null,null,null,null,null,null,"Джакарта 2872 коричневый 235 см","плиссе","Джакарта 2872 коричневый 235 см","Коричневый"]
[null,null,null,null,null,null,null,null,null,null,null,null,null,null,null,null,null,null,null,null,"Дикий Шелк 0225 белый, 200 см","плиссе","Дикий Шелк 0225 белый, 200 см","Бежевый"]
[null,null,null,null,null,null,null,null,null,null,null,null,null,null,null,null,null,null,null,null,"Дикий Шелк 2261 светло-бежевый , 200 см","плиссе","Дикий Шелк 2261 светло-бежевый , 200 см","Бежевый"]
[null,null,null,null,null,null,null,null,null,null,null,null,null,null,null,null,null,null,null,null,"Дикий Шелк 2406 бежевый , 200 см","плиссе","Дикий Шелк 2406 бежевый , 200 см","Бежевый"]
[null,null,null,null,null,null,null,null,null,null,null,null,null,null,null,null,null,null,null,null,"Дикий Шелк 2870 коричневый, 200 см","плиссе","Дикий Шелк 2870 коричневый, 200 см","Бежевый"]
[null,null,null,null,null,null,null,null,null,null,null,null,null,null,null,null,null,null,null,null,"Дикий Шелк 3209 желтый , 200 см","плиссе","Дикий Шелк 3209 желтый , 200 см","Песочный"]
[null,null,null,null,null,null,null,null,null,null,null,null,null,null,null,null,null,null,null,null,"Жемчуг 0225 белый, 230см","плиссе","Жемчуг 0225 белый, 230см","Белый"]
[null,null,null,null,null,null,null,null,null,null,null,null,null,null,null,null,null,null,null,null,"Жемчуг 1908 серый, 230см","плиссе","Жемчуг 1908 серый, 230см","Св. серый"]
[null,null,null,null,null,null,null,null,null,null,null,null,null,null,null,null,null,null,null,null,"Жемчуг 2406 бежевый, 230см","плиссе","Жемчуг 2406 бежевый, 230см","Бежевый"]
[null,null,null,null,null,null,null,null,null,null,null,null,null,null,null,null,null,null,null,null,"Жемчуг 4221 желтый, 230см","плиссе","Жемчуг 4221 желтый, 230см","Песочный"]
[null,null,null,null,null,null,null,null,null,null,null,null,null,null,null,null,null,null,null,null,"Жемчуг 4284 лиловый, 230см","плиссе","Жемчуг 4284 лиловый, 230см","Лиловый"]
[null,null,null,null,null,null,null,null,null,null,null,null,null,null,null,null,null,null,null,null,"Жемчуг 4290 оранжевый, 230см","плиссе","Жемчуг 4290 оранжевый, 230см","Оранжевый"]
[null,null,null,null,null,null,null,null,null,null,null,null,null,null,null,null,null,null,null,null,"Жемчуг 4454 красный, 230см","плиссе","Жемчуг 4454 красный, 230см","Розовый"]
[null,null,null,null,null,null,null,null,null,null,null,null,null,null,null,null,null,null,null,null,"Жемчуг 5540 оливковый, 230см","плиссе","Жемчуг 5540 оливковый, 230см","Бежевый"]
[null,null,null,null,null,null,null,null,null,null,null,null,null,null,null,null,null,null,null,null,"Импала 2261 светло-бежевый 240 см","плиссе","Импала 2261 светло-бежевый 240 см","Белый"]
[null,null,null,null,null,null,null,null,null,null,null,null,null,null,null,null,null,null,null,null,"Импала 2746 бежевый 240 см","плиссе","Импала 2746 бежевый 240 см","Бежевый"]
[null,null,null,null,null,null,null,null,null,null,null,null,null,null,null,null,null,null,null,null,"Импала 2868 светло-коричневый 240 см","плиссе","Импала 2868 светло-коричневый 240 см","Бежевый"]
[null,null,null,null,null,null,null,null,null,null,null,null,null,null,null,null,null,null,null,null,"Импала 2870 коричневый, 240см","плиссе","Импала 2870 коричневый, 240см","Коричневый"]
[null,null,null,null,null,null,null,null,null,null,null,null,null,null,null,null,null,null,null,null,"Исфахан 1608 св.серый, 235см","плиссе","Исфахан 1608 св.серый, 235см","Белый"]
[null,null,null,null,null,null,null,null,null,null,null,null,null,null,null,null,null,null,null,null,"Исфахан 2406 бежевый, 235см","плиссе","Исфахан 2406 бежевый, 235см","Песочный"]
[null,null,null,null,null,null,null,null,null,null,null,null,null,null,null,null,null,null,null,null,"Исфахан 2746 св.коричневый, 235см","плиссе","Исфахан 2746 св.коричневый, 235см","Песочный"]
[null,null,null,null,null,null,null,null,null,null,null,null,null,null,null,null,null,null,null,null,"Исфахан 2872 коричневый 235 см","плиссе","Исфахан 2872 коричневый 235 см","Коричневый"]
[null,null,null,null,null,null,null,null,null,null,null,null,null,null,null,null,null,null,null,null,"Исфахан 4200 розовый, 235см","плиссе","Исфахан 4200 розовый, 235см","Розовый"]
[null,null,null,null,null,null,null,null,null,null,null,null,null,null,null,null,null,null,null,null,"Исфахан 4210 св.бежевый, 235см","плиссе","Исфахан 4210 св.бежевый, 235см","Песочный"]
[null,null,null,null,null,null,null,null,null,null,null,null,null,null,null,null,null,null,null,null,"Йорк 0225 белый, 235см","плиссе","Йорк 0225 белый, 235см","Белый"]
[null,null,null,null,null,null,null,null,null,null,null,null,null,null,null,null,null,null,null,null,"Йорк 2406 бежевый, 235см","плиссе","Йорк 2406 бежевый, 235см","Бежевый"]
[null,null,null,null,null,null,null,null,null,null,null,null,null,null,null,null,null,null,null,null,"Йорк 4858 черный/роза, 235см","плиссе","Йорк 4858 черный/роза, 235см","Лиловый"]
[null,null,null,null,null,null,null,null,null,null,null,null,null,null,null,null,null,null,null,null,"Капри 0225 белый, 235-240см","плиссе","Капри 0225 белый, 235-240см","Белый"]
[null,null,null,null,null,null,null,null,null,null,null,null,null,null,null,null,null,null,null,null,"Капри 1608 серый, 235-240см","плиссе","Капри 1608 серый, 235-240см","Серый"]
[null,null,null,null,null,null,null,null,null,null,null,null,null,null,null,null,null,null,null,null,"Капри 2549 кремовый , 230 см","плиссе","Капри 2549 кремовый , 230 см","Бежевый"]
[null,null,null,null,null,null,null,null,null,null,null,null,null,null,null,null,null,null,null,null,"Капри 3209 желтый, 235-240см","плиссе","Капри 3209 желтый, 235-240см","Песочный"]
[null,null,null,null,null,null,null,null,null,null,null,null,null,null,null,null,null,null,null,null,"Капри 3499 оранжевый, 240см","плиссе","Капри 3499 оранжевый, 240см","Оранжевый"]
[null,null,null,null,null,null,null,null,null,null,null,null,null,null,null,null,null,null,null,null,"Капри 4075 красный, 240см","плиссе","Капри 4075 красный, 240см","Розовый"]
[null,null,null,null,null,null,null,null,null,null,null,null,null,null,null,null,null,null,null,null,"Капри 4096 розовый, 240см","плиссе","Капри 4096 розовый, 240см","Розовый"]
[null,null,null,null,null,null,null,null,null,null,null,null,null,null,null,null,null,null,null,null,"Капри 4831 лаванда, 235-240см","плиссе","Капри 4831 лаванда, 235-240см","Лиловый"]
[null,null,null,null,null,null,null,null,null,null,null,null,null,null,null,null,null,null,null,null,"Капри 5102 голубой, 235-240см","плиссе","Капри 5102 голубой, 235-240см","Св.синий"]
[null,null,null,null,null,null,null,null,null,null,null,null,null,null,null,null,null,null,null,null,"Капри 5302 синий, 240см","плиссе","Капри 5302 синий, 240см","Синий"]
[null,null,null,null,null,null,null,null,null,null,null,null,null,null,null,null,null,null,null,null,"Капри 5586 фисташковый, 240см","плиссе","Капри 5586 фисташковый, 240см","Желто-зеленый"]
[null,null,null,null,null,null,null,null,null,null,null,null,null,null,null,null,null,null,null,null,"Капри 5612 бирюзовый, 240см","плиссе","Капри 5612 бирюзовый, 240см","Св.синий"]
[null,null,null,null,null,null,null,null,null,null,null,null,null,null,null,null,null,null,null,null,"Капри Дотс 0225 белый 240 см","плиссе","Капри Дотс 0225 белый 240 см","Белый"]
[null,null,null,null,null,null,null,null,null,null,null,null,null,null,null,null,null,null,null,null,"Капри Дотс 4803 лиловый 240 см","плиссе","Капри Дотс 4803 лиловый 240 см","Лиловый"]
[null,null,null,null,null,null,null,null,null,null,null,null,null,null,null,null,null,null,null,null,"Капри Дотс 5102 голубой 240 см","плиссе","Капри Дотс 5102 голубой 240 см","Св.зеленый"]
[null,null,null,null,null,null,null,null,null,null,null,null,null,null,null,null,null,null,null,null,"Капри Перла 0225 белый 240 см","плиссе","Капри Перла 0225 белый 240 см","Белый"]
[null,null,null,null,null,null,null,null,null,null,null,null,null,null,null,null,null,null,null,null,"Капри Перла 1608 светло-серый 240 см","плиссе","Капри Перла 1608 светло-серый 240 см","Серый"]
[null,null,null,null,null,null,null,null,null,null,null,null,null,null,null,null,null,null,null,null,"Капри Перла 2261 светло-бежевый 240 см","плиссе","Капри Перла 2261 светло-бежевый 240 см","Бежевый"]
[null,null,null,null,null,null,null,null,null,null,null,null,null,null,null,null,null,null,null,null,"Капри Перла 2406 бежевый 240 см","плиссе","Капри Перла 2406 бежевый 240 см","Бежевый"]
[null,null,null,null,null,null,null,null,null,null,null,null,null,null,null,null,null,null,null,null,"Капри Перла 2872 бронза 240 см","плиссе","Капри Перла 2872 бронза 240 см","Коричневый"]
[null,null,null,null,null,null,null,null,null,null,null,null,null,null,null,null,null,null,null,null,"Капри Перла 3465 желтый 240 см","плиссе","Капри Перла 3465 желтый 240 см","Песочный"]
[null,null,null,null,null,null,null,null,null,null,null,null,null,null,null,null,null,null,null,null,"Капри Перла 4240 персиковый 240 см","плиссе","Капри Перла 4240 персиковый 240 см","Абрикос"]
[null,null,null,null,null,null,null,null,null,null,null,null,null,null,null,null,null,null,null,null,"Капри Перла 4803 лиловый 240 см","плиссе","Капри Перла 4803 лиловый 240 см","Лиловый"]
[null,null,null,null,null,null,null,null,null,null,null,null,null,null,null,null,null,null,null,null,"Капри Перла 5102 голубой 240 см","плиссе","Капри Перла 5102 голубой 240 см","Св.синий"]
[null,null,null,null,null,null,null,null,null,null,null,null,null,null,null,null,null,null,null,null,"Капри Перла 5586 салатовый 240 см","плиссе","Капри Перла 5586 салатовый 240 см","Св.зеленый"]
[null,null,null,null,null,null,null,null,null,null,null,null,null,null,null,null,null,null,null,null,"Кент 0225 белый, 235см","плиссе","Кент 0225 белый, 235см","Белый"]
[null,null,null,null,null,null,null,null,null,null,null,null,null,null,null,null,null,null,null,null,"Кент 1881 черный, 235см","плиссе","Кент 1881 черный, 235см","Черный"]
[null,null,null,null,null,null,null,null,null,null,null,null,null,null,null,null,null,null,null,null,"Кент 2406 бежевый, 235см","плиссе","Кент 2406 бежевый, 235см","Бежевый"]
[null,null,null,null,null,null,null,null,null,null,null,null,null,null,null,null,null,null,null,null,"Классик Перла 0225 белый, 240см","плиссе","Классик Перла 0225 белый, 240см","Белый"]
[null,null,null,null,null,null,null,null,null,null,null,null,null,null,null,null,null,null,null,null,"Классик Перла 1608 св. серый, 240см","плиссе","Классик Перла 1608 св. серый, 240см","св. серый"]
[null,null,null,null,null,null,null,null,null,null,null,null,null,null,null,null,null,null,null,null,"Классик Перла 1852 серый, 240см","плиссе","Классик Перла 1852 серый, 240см","Серый"]
[null,null,null,null,null,null,null,null,null,null,null,null,null,null,null,null,null,null,null,null,"Классик Перла 2261 св. бежевый, 240см","плиссе","Классик Перла 2261 св. бежевый, 240см","Бежевый"]
[null,null,null,null,null,null,null,null,null,null,null,null,null,null,null,null,null,null,null,null,"Классик Перла 2270 песочный, 240см","плиссе","Классик Перла 2270 песочный, 240см","Песочный"]
[null,null,null,null,null,null,null,null,null,null,null,null,null,null,null,null,null,null,null,null,"Классик Перла 2406 бежевый, 240см","плиссе","Классик Перла 2406 бежевый, 240см","Бежевый"]
[null,null,null,null,null,null,null,null,null,null,null,null,null,null,null,null,null,null,null,null,"Клео 1852 серый, 240 см","плиссе","Клео 1852 серый, 240 см","Серый"]
[null,null,null,null,null,null,null,null,null,null,null,null,null,null,null,null,null,null,null,null,"Клео 2259 магнолия, 240 см","плиссе","Клео 2259 магнолия, 240 см","Бежевый"]
[null,null,null,null,null,null,null,null,null,null,null,null,null,null,null,null,null,null,null,null,"Конго 2871 кофе 235 см","плиссе","Конго 2871 кофе 235 см","Коричневый"]
[null,null,null,null,null,null,null,null,null,null,null,null,null,null,null,null,null,null,null,null,"Космо 0225 белый, 205см","плиссе","Космо 0225 белый, 205см","Белый"]
[null,null,null,null,null,null,null,null,null,null,null,null,null,null,null,null,null,null,null,null,"Космо 1608 серебристо-серый, 205см","плиссе","Космо 1608 серебристо-серый, 205см","Белый"]
[null,null,null,null,null,null,null,null,null,null,null,null,null,null,null,null,null,null,null,null,"Космо 3210 желтый, 205см","плиссе","Космо 3210 желтый, 205см","Песочный"]
[null,null,null,null,null,null,null,null,null,null,null,null,null,null,null,null,null,null,null,null,"Космо 3499 оранжевый, 205см","плиссе","Космо 3499 оранжевый, 205см","Оранжевый"]
[null,null,null,null,null,null,null,null,null,null,null,null,null,null,null,null,null,null,null,null,"Краш 0225 белый, 225см","плиссе","Краш 0225 белый, 225см","Белый"]
[null,null,null,null,null,null,null,null,null,null,null,null,null,null,null,null,null,null,null,null,"Краш 5501 светло-зеленый, 225см","плиссе","Краш 5501 светло-зеленый, 225см","Св.зеленый"]
[null,null,null,null,null,null,null,null,null,null,null,null,null,null,null,null,null,null,null,null,"Краш металл 1881 т.серый, 225см","плиссе","Краш металл 1881 т.серый, 225см","Серый"]
[null,null,null,null,null,null,null,null,null,null,null,null,null,null,null,null,null,null,null,null,"Краш металл 4068 медь, 230 см","плиссе","Краш металл 4068 медь, 230 см","Абрикос"]
[null,null,null,null,null,null,null,null,null,null,null,null,null,null,null,null,null,null,null,null,"Краш перла 0225 белый,  225см","плиссе","Краш перла 0225 белый,  225см","Белый"]
[null,null,null,null,null,null,null,null,null,null,null,null,null,null,null,null,null,null,null,null,"Краш Перла 0225 белый, 15 мм, 230 см","плиссе","Краш Перла 0225 белый, 15 мм, 230 см","Белый"]
[null,null,null,null,null,null,null,null,null,null,null,null,null,null,null,null,null,null,null,null,"Краш перла 1710 серый, 225см","плиссе","Краш перла 1710 серый, 225см","Серый"]
[null,null,null,null,null,null,null,null,null,null,null,null,null,null,null,null,null,null,null,null,"Краш Перла 1852 серый, 15 мм, 230 см","плиссе","Краш Перла 1852 серый, 15 мм, 230 см","Серый"]
[null,null,null,null,null,null,null,null,null,null,null,null,null,null,null,null,null,null,null,null,"Краш перла 1908 черный, 225см","плиссе","Краш перла 1908 черный, 225см","Черный"]
[null,null,null,null,null,null,null,null,null,null,null,null,null,null,null,null,null,null,null,null,"Краш Перла 2259 магнолия, 15 мм, 230 см","плиссе","Краш Перла 2259 магнолия, 15 мм, 230 см","Белый"]
[null,null,null,null,null,null,null,null,null,null,null,null,null,null,null,null,null,null,null,null,"Краш перла 2259 магнолия, 225см","плиссе","Краш перла 2259 магнолия, 225см","Бежевый"]
[null,null,null,null,null,null,null,null,null,null,null,null,null,null,null,null,null,null,null,null,"Краш перла 2270 песочный,  230 см","плиссе","Краш перла 2270 песочный,  230 см","Песочный"]
[null,null,null,null,null,null,null,null,null,null,null,null,null,null,null,null,null,null,null,null,"Краш перла 2406 бежевый, 225см","плиссе","Краш перла 2406 бежевый, 225см","Бежевый"]
[null,null,null,null,null,null,null,null,null,null,null,null,null,null,null,null,null,null,null,null,"Краш перла 2746 т.бежевый, 225см","плиссе","Краш перла 2746 т.бежевый, 225см","Бежевый"]
[null,null,null,null,null,null,null,null,null,null,null,null,null,null,null,null,null,null,null,null,"Краш Перла 2868 св. коричневый, 15 мм, 230 см","плиссе","Краш Перла 2868 св. коричневый, 15 мм, 230 см","Бежевый"]
[null,null,null,null,null,null,null,null,null,null,null,null,null,null,null,null,null,null,null,null,"Краш перла 2868 св.коричневый,  225см","плиссе","Краш перла 2868 св.коричневый,  225см","Бежевый"]
[null,null,null,null,null,null,null,null,null,null,null,null,null,null,null,null,null,null,null,null,"Краш перла 2870 коричневый, 225см","плиссе","Краш перла 2870 коричневый, 225см","Коричневый"]
[null,null,null,null,null,null,null,null,null,null,null,null,null,null,null,null,null,null,null,null,"Краш перла 3210 св.желтый,  225см","плиссе","Краш перла 3210 св.желтый,  225см","Песочный"]
[null,null,null,null,null,null,null,null,null,null,null,null,null,null,null,null,null,null,null,null,"Краш перла 3490 абрикос, 225см","плиссе","Краш перла 3490 абрикос, 225см","Песочный"]
[null,null,null,null,null,null,null,null,null,null,null,null,null,null,null,null,null,null,null,null,"Краш перла 3499 шафран, 225см","плиссе","Краш перла 3499 шафран, 225см","Оранжевый"]
[null,null,null,null,null,null,null,null,null,null,null,null,null,null,null,null,null,null,null,null,"Краш перла 4063 св.бежевый, 225см","плиссе","Краш перла 4063 св.бежевый, 225см","Бежевый"]
[null,null,null,null,null,null,null,null,null,null,null,null,null,null,null,null,null,null,null,null,"Краш перла 4064 т. красный,  230 см","плиссе","Краш перла 4064 т. красный,  230 см","Бордо"]
[null,null,null,null,null,null,null,null,null,null,null,null,null,null,null,null,null,null,null,null,"Краш перла 4077 томат, 225см","плиссе","Краш перла 4077 томат, 225см","Розовый"]
[null,null,null,null,null,null,null,null,null,null,null,null,null,null,null,null,null,null,null,null,"Краш перла 4091 т. пурпур,  230 см","плиссе","Краш перла 4091 т. пурпур,  230 см","Бордо"]
[null,null,null,null,null,null,null,null,null,null,null,null,null,null,null,null,null,null,null,null,"Краш перла 4158 розовый, 225см","плиссе","Краш перла 4158 розовый, 225см","Розовый"]
[null,null,null,null,null,null,null,null,null,null,null,null,null,null,null,null,null,null,null,null,"Краш перла 4202 малина, 225см","плиссе","Краш перла 4202 малина, 225см","Розовый"]
[null,null,null,null,null,null,null,null,null,null,null,null,null,null,null,null,null,null,null,null,"Краш перла 4221 бледно-желтый, 225см","плиссе","Краш перла 4221 бледно-желтый, 225см","Песочный"]
[null,null,null,null,null,null,null,null,null,null,null,null,null,null,null,null,null,null,null,null,"Краш перла 4284 лиловый,  230 см","плиссе","Краш перла 4284 лиловый,  230 см","Лиловый"]
[null,null,null,null,null,null,null,null,null,null,null,null,null,null,null,null,null,null,null,null,"Краш перла 4292 терракота, 225см","плиссе","Краш перла 4292 терракота, 225см","Оранжевый"]
[null,null,null,null,null,null,null,null,null,null,null,null,null,null,null,null,null,null,null,null,"Краш перла 4523 красный, 225см","плиссе","Краш перла 4523 красный, 225см","Розовый"]
[null,null,null,null,null,null,null,null,null,null,null,null,null,null,null,null,null,null,null,null,"Краш перла 4858 лиловый, 225см","плиссе","Краш перла 4858 лиловый, 225см","Лиловый"]
[null,null,null,null,null,null,null,null,null,null,null,null,null,null,null,null,null,null,null,null,"Краш перла 5173 голубой, 225см","плиссе","Краш перла 5173 голубой, 225см","Св.синий"]
[null,null,null,null,null,null,null,null,null,null,null,null,null,null,null,null,null,null,null,null,"Краш перла 5302 синий, 225см","плиссе","Краш перла 5302 синий, 225см","Синий"]
[null,null,null,null,null,null,null,null,null,null,null,null,null,null,null,null,null,null,null,null,"Краш перла 5501 св.зеленый, 225см","плиссе","Краш перла 5501 св.зеленый, 225см","Св.зеленый"]
[null,null,null,null,null,null,null,null,null,null,null,null,null,null,null,null,null,null,null,null,"Краш перла 5586 зеленый,  225см","плиссе","Краш перла 5586 зеленый,  225см","Св.зеленый"]
[null,null,null,null,null,null,null,null,null,null,null,null,null,null,null,null,null,null,null,null,"Краш перла 5612 бирюзовый, 225см","плиссе","Краш перла 5612 бирюзовый, 225см","Желто-зеленый"]
[null,null,null,null,null,null,null,null,null,null,null,null,null,null,null,null,null,null,null,null,"Краш перла 5992 т. бирюзовый,  230 см","плиссе","Краш перла 5992 т. бирюзовый,  230 см","Зелёный"]
[null,null,null,null,null,null,null,null,null,null,null,null,null,null,null,null,null,null,null,null,"Краш, 4064 бежевый, 225см","плиссе","Краш, 4064 бежевый, 225см","Абрикос"]
[null,null,null,null,null,null,null,null,null,null,null,null,null,null,null,null,null,null,null,null,"Креп 0225 белый, 15 мм, 230 см","плиссе","Креп 0225 белый, 15 мм, 230 см","Белый"]
[null,null,null,null,null,null,null,null,null,null,null,null,null,null,null,null,null,null,null,null,"Креп 0225 белый, 235см","плиссе","Креп 0225 белый, 235см","Белый"]
[null,null,null,null,null,null,null,null,null,null,null,null,null,null,null,null,null,null,null,null,"Креп 1608 св.серый, 15 мм, 230 см","плиссе","Креп 1608 св.серый, 15 мм, 230 см","Св. серый"]
[null,null,null,null,null,null,null,null,null,null,null,null,null,null,null,null,null,null,null,null,"Креп 1608 св.серый, 235см","плиссе","Креп 1608 св.серый, 235см","Св. серый"]
[null,null,null,null,null,null,null,null,null,null,null,null,null,null,null,null,null,null,null,null,"Креп 1908 черный, 235см","плиссе","Креп 1908 черный, 235см","Черный"]
[null,null,null,null,null,null,null,null,null,null,null,null,null,null,null,null,null,null,null,null,"Креп 2259 магнолия, 15 мм, 230 см","плиссе","Креп 2259 магнолия, 15 мм, 230 см","Белый"]
[null,null,null,null,null,null,null,null,null,null,null,null,null,null,null,null,null,null,null,null,"Креп 2406 бежевый, 15 мм, 230 см","плиссе","Креп 2406 бежевый, 15 мм, 230 см","Бежевый"]
[null,null,null,null,null,null,null,null,null,null,null,null,null,null,null,null,null,null,null,null,"Креп 2406 св.бежевый, 235см","плиссе","Креп 2406 св.бежевый, 235см","Бежевый"]
[null,null,null,null,null,null,null,null,null,null,null,null,null,null,null,null,null,null,null,null,"Креп 2746 бежевый, 235см","плиссе","Креп 2746 бежевый, 235см","Песочный"]
[null,null,null,null,null,null,null,null,null,null,null,null,null,null,null,null,null,null,null,null,"Креп 2840 карамель, 15 мм, 230 см","плиссе","Креп 2840 карамель, 15 мм, 230 см","Песочный"]
[null,null,null,null,null,null,null,null,null,null,null,null,null,null,null,null,null,null,null,null,"Креп 2870 коричневый, 15 мм, 230 см","плиссе","Креп 2870 коричневый, 15 мм, 230 см","Коричневый"]
[null,null,null,null,null,null,null,null,null,null,null,null,null,null,null,null,null,null,null,null,"Креп 2870 коричневый, 235см","плиссе","Креп 2870 коричневый, 235см","Коричневый"]
[null,null,null,null,null,null,null,null,null,null,null,null,null,null,null,null,null,null,null,null,"Креп 3204 лимонный, 235см","плиссе","Креп 3204 лимонный, 235см","Песочный"]
[null,null,null,null,null,null,null,null,null,null,null,null,null,null,null,null,null,null,null,null,"Креп 3210 св.желтый, 235см","плиссе","Креп 3210 св.желтый, 235см","Песочный"]
[null,null,null,null,null,null,null,null,null,null,null,null,null,null,null,null,null,null,null,null,"Креп 3465 желтый, 235см","плиссе","Креп 3465 желтый, 235см","Оранжевый"]
[null,null,null,null,null,null,null,null,null,null,null,null,null,null,null,null,null,null,null,null,"Креп 3499 оранжевый, 235см","плиссе","Креп 3499 оранжевый, 235см","Оранжевый"]
[null,null,null,null,null,null,null,null,null,null,null,null,null,null,null,null,null,null,null,null,"Креп 4077 красный, 235см","плиссе","Креп 4077 красный, 235см","Розовый"]
[null,null,null,null,null,null,null,null,null,null,null,null,null,null,null,null,null,null,null,null,"Креп 4210 ваниль, 235см","плиссе","Креп 4210 ваниль, 235см","Песочный"]
[null,null,null,null,null,null,null,null,null,null,null,null,null,null,null,null,null,null,null,null,"Креп 4221 персик, 235см","плиссе","Креп 4221 персик, 235см","Песочный"]
[null,null,null,null,null,null,null,null,null,null,null,null,null,null,null,null,null,null,null,null,"Креп 4290 терракота, 235см","плиссе","Креп 4290 терракота, 235см","Абрикос"]
[null,null,null,null,null,null,null,null,null,null,null,null,null,null,null,null,null,null,null,null,"Креп 5173 голубой, 235см","плиссе","Креп 5173 голубой, 235см","Св.синий"]
[null,null,null,null,null,null,null,null,null,null,null,null,null,null,null,null,null,null,null,null,"Креп 5252 синий, 235см","плиссе","Креп 5252 синий, 235см","Синий"]
[null,null,null,null,null,null,null,null,null,null,null,null,null,null,null,null,null,null,null,null,"Креп 5612 св.зеленый, 235см","плиссе","Креп 5612 св.зеленый, 235см","Св.зеленый"]
[null,null,null,null,null,null,null,null,null,null,null,null,null,null,null,null,null,null,null,null,"Креп 5850 зеленый, 235см","плиссе","Креп 5850 зеленый, 235см","Св.зеленый"]
[null,null,null,null,null,null,null,null,null,null,null,null,null,null,null,null,null,null,null,null,"Креп перла 0225 белый, 235см","плиссе","Креп перла 0225 белый, 235см","Белый"]
[null,null,null,null,null,null,null,null,null,null,null,null,null,null,null,null,null,null,null,null,"Креп Перла 0225 белый, 32 мм, 225 см","плиссе","Креп Перла 0225 белый, 32 мм, 225 см","Белый"]
[null,null,null,null,null,null,null,null,null,null,null,null,null,null,null,null,null,null,null,null,"Креп Перла 1608 св. серый, 32 мм, 225 см","плиссе","Креп Перла 1608 св. серый, 32 мм, 225 см","Св. серый"]
[null,null,null,null,null,null,null,null,null,null,null,null,null,null,null,null,null,null,null,null,"Креп перла 1608 серый, 150см","плиссе","Креп перла 1608 серый, 150см","Св. серый"]
[null,null,null,null,null,null,null,null,null,null,null,null,null,null,null,null,null,null,null,null,"Креп перла 1608 серый, 235см","плиссе","Креп перла 1608 серый, 235см","Св. серый"]
[null,null,null,null,null,null,null,null,null,null,null,null,null,null,null,null,null,null,null,null,"Креп перла 1881 т. серый, 235см","плиссе","Креп перла 1881 т. серый, 235см","Серый"]
[null,null,null,null,null,null,null,null,null,null,null,null,null,null,null,null,null,null,null,null,"Креп перла 1908 черный, 235см","плиссе","Креп перла 1908 черный, 235см","Черный"]
[null,null,null,null,null,null,null,null,null,null,null,null,null,null,null,null,null,null,null,null,"Креп Перла 2259 магнолия, 32 мм, 225 см","плиссе","Креп Перла 2259 магнолия, 32 мм, 225 см","Бежевый"]
[null,null,null,null,null,null,null,null,null,null,null,null,null,null,null,null,null,null,null,null,"Креп перла 2406 песочный, 235см","плиссе","Креп перла 2406 песочный, 235см","Бежевый"]
[null,null,null,null,null,null,null,null,null,null,null,null,null,null,null,null,null,null,null,null,"Креп перла 2746 темно-бежевый, 235см","плиссе","Креп перла 2746 темно-бежевый, 235см","Песочный"]
[null,null,null,null,null,null,null,null,null,null,null,null,null,null,null,null,null,null,null,null,"Креп перла 2748 капучино, 235см","плиссе","Креп перла 2748 капучино, 235см","Бежевый"]
[null,null,null,null,null,null,null,null,null,null,null,null,null,null,null,null,null,null,null,null,"Креп перла 2871 т. коричневый, 235см","плиссе","Креп перла 2871 т. коричневый, 235см","Коричневый"]
[null,null,null,null,null,null,null,null,null,null,null,null,null,null,null,null,null,null,null,null,"Креп перла 2871 т. коричневый, 235см","плиссе","Креп перла 2871 т. коричневый, 235см","Коричневый"]
[null,null,null,null,null,null,null,null,null,null,null,null,null,null,null,null,null,null,null,null,"Креп перла 3209 св. желтый, 235см","плиссе","Креп перла 3209 св. желтый, 235см","Белый"]
[null,null,null,null,null,null,null,null,null,null,null,null,null,null,null,null,null,null,null,null,"Креп перла 3210 бежевый, 235см","плиссе","Креп перла 3210 бежевый, 235см","Песочный"]
[null,null,null,null,null,null,null,null,null,null,null,null,null,null,null,null,null,null,null,null,"Креп перла 3465 желтый, 235см","плиссе","Креп перла 3465 желтый, 235см","Оранжевый"]
[null,null,null,null,null,null,null,null,null,null,null,null,null,null,null,null,null,null,null,null,"Креп перла 3499 оранжевый, 235см","плиссе","Креп перла 3499 оранжевый, 235см","Оранжевый"]
[null,null,null,null,null,null,null,null,null,null,null,null,null,null,null,null,null,null,null,null,"Креп перла 4066 абрикос, 235см","плиссе","Креп перла 4066 абрикос, 235см","Абрикос"]
[null,null,null,null,null,null,null,null,null,null,null,null,null,null,null,null,null,null,null,null,"Креп перла 4077 красный, 235см","плиссе","Креп перла 4077 красный, 235см","Розовый"]
[null,null,null,null,null,null,null,null,null,null,null,null,null,null,null,null,null,null,null,null,"Креп перла 4210 ваниль, 235см","плиссе","Креп перла 4210 ваниль, 235см","Бежевый"]
[null,null,null,null,null,null,null,null,null,null,null,null,null,null,null,null,null,null,null,null,"Креп перла 4221 персик, 235см","плиссе","Креп перла 4221 персик, 235см","Песочный"]
[null,null,null,null,null,null,null,null,null,null,null,null,null,null,null,null,null,null,null,null,"Креп перла 4290 терракота, 235см","плиссе","Креп перла 4290 терракота, 235см","Абрикос"]
[null,null,null,null,null,null,null,null,null,null,null,null,null,null,null,null,null,null,null,null,"Креп перла 4824 сиреневый, 235см","плиссе","Креп перла 4824 сиреневый, 235см","Лиловый"]
[null,null,null,null,null,null,null,null,null,null,null,null,null,null,null,null,null,null,null,null,"Креп перла 5173 голубой, 235см","плиссе","Креп перла 5173 голубой, 235см","Св.синий"]
[null,null,null,null,null,null,null,null,null,null,null,null,null,null,null,null,null,null,null,null,"Креп перла 5252 синий, 235см","плиссе","Креп перла 5252 синий, 235см","Синий"]
[null,null,null,null,null,null,null,null,null,null,null,null,null,null,null,null,null,null,null,null,"Креп перла 5470 т. синий, 235см","плиссе","Креп перла 5470 т. синий, 235см","Черный"]
[null,null,null,null,null,null,null,null,null,null,null,null,null,null,null,null,null,null,null,null,"Креп перла 5612 св.зеленый, 235см","плиссе","Креп перла 5612 св.зеленый, 235см","Желто-зеленый"]
[null,null,null,null,null,null,null,null,null,null,null,null,null,null,null,null,null,null,null,null,"Креп перла 5850 зеленый, 235см","плиссе","Креп перла 5850 зеленый, 235см","Зеленый"]
[null,null,null,null,null,null,null,null,null,null,null,null,null,null,null,null,null,null,null,null,"Крисп Перла 0225 белый, 240см","плиссе","Крисп Перла 0225 белый, 240см","Белый"]
[null,null,null,null,null,null,null,null,null,null,null,null,null,null,null,null,null,null,null,null,"Крисп Перла 1608 светло-серый, 240см","плиссе","Крисп Перла 1608 светло-серый, 240см","Серый"]
[null,null,null,null,null,null,null,null,null,null,null,null,null,null,null,null,null,null,null,null,"Крисп Перла 2259 магнолия, 240см","плиссе","Крисп Перла 2259 магнолия, 240см","Абрикос"]
[null,null,null,null,null,null,null,null,null,null,null,null,null,null,null,null,null,null,null,null,"Крисп Перла 2406 бежевый, 240см","плиссе","Крисп Перла 2406 бежевый, 240см","Бежевый"]
[null,null,null,null,null,null,null,null,null,null,null,null,null,null,null,null,null,null,null,null,"Крисп Перла 2746 темно-бежевый, 240см","плиссе","Крисп Перла 2746 темно-бежевый, 240см","Песочный"]
[null,null,null,null,null,null,null,null,null,null,null,null,null,null,null,null,null,null,null,null,"Крисп Перла 2871 темно-коричневый, 240см","плиссе","Крисп Перла 2871 темно-коричневый, 240см","Коричневый"]
[null,null,null,null,null,null,null,null,null,null,null,null,null,null,null,null,null,null,null,null,"Крисп Перла 3144 ваниль, 240см","плиссе","Крисп Перла 3144 ваниль, 240см","Бежевый"]
[null,null,null,null,null,null,null,null,null,null,null,null,null,null,null,null,null,null,null,null,"Лайн Перла 0225 белый, 240см","плиссе","Лайн Перла 0225 белый, 240см","Белый"]
[null,null,null,null,null,null,null,null,null,null,null,null,null,null,null,null,null,null,null,null,"Лайн Перла 2261 светло-бежевый, 240см","плиссе","Лайн Перла 2261 светло-бежевый, 240см","Песочный"]
[null,null,null,null,null,null,null,null,null,null,null,null,null,null,null,null,null,null,null,null,"Лайн Перла 2406 бежевый, 240см","плиссе","Лайн Перла 2406 бежевый, 240см","Оранжевый"]
[null,null,null,null,null,null,null,null,null,null,null,null,null,null,null,null,null,null,null,null,"Лайн Перла 4063 персиковый, 240см","плиссе","Лайн Перла 4063 персиковый, 240см","Оранжевый"]
[null,null,null,null,null,null,null,null,null,null,null,null,null,null,null,null,null,null,null,null,"Лен  0225 белый, 235см","плиссе","Лен  0225 белый, 235см","Белый"]
[null,null,null,null,null,null,null,null,null,null,null,null,null,null,null,null,null,null,null,null,"Лен 2406 бежевый, 235см","плиссе","Лен 2406 бежевый, 235см","Бежевый"]
[null,null,null,null,null,null,null,null,null,null,null,null,null,null,null,null,null,null,null,null,"Лен 4059 розовый, 235см","плиссе","Лен 4059 розовый, 235см","Розовый"]
[null,null,null,null,null,null,null,null,null,null,null,null,null,null,null,null,null,null,null,null,"Лен 5173 голубой, 235см","плиссе","Лен 5173 голубой, 235см","Белый"]
[null,null,null,null,null,null,null,null,null,null,null,null,null,null,null,null,null,null,null,null,"Лен Каре 2261 светло-бежевый, 210см","плиссе","Лен Каре 2261 светло-бежевый, 210см","Белый"]
[null,null,null,null,null,null,null,null,null,null,null,null,null,null,null,null,null,null,null,null,"Лен Уно 2261 светло-бежевый, 210см","плиссе","Лен Уно 2261 светло-бежевый, 210см","Белый"]
[null,null,null,null,null,null,null,null,null,null,null,null,null,null,null,null,null,null,null,null,"Лен Флер 2261 светло-бежевый, 210см","плиссе","Лен Флер 2261 светло-бежевый, 210см","Белый"]
[null,null,null,null,null,null,null,null,null,null,null,null,null,null,null,null,null,null,null,null,"Лима 0225 белый, 200см","плиссе","Лима 0225 белый, 200см","Белый"]
[null,null,null,null,null,null,null,null,null,null,null,null,null,null,null,null,null,null,null,null,"Лима 0225 белый, 235см","плиссе","Лима 0225 белый, 235см","Белый"]
[null,null,null,null,null,null,null,null,null,null,null,null,null,null,null,null,null,null,null,null,"Лима 2259 экрю, 200см","плиссе","Лима 2259 экрю, 200см","Песочный"]
[null,null,null,null,null,null,null,null,null,null,null,null,null,null,null,null,null,null,null,null,"Лима 2259 экрю, 235см","плиссе","Лима 2259 экрю, 235см","Песочный"]
[null,null,null,null,null,null,null,null,null,null,null,null,null,null,null,null,null,null,null,null,"Лима 2872 коричневый, 235 см","плиссе","Лима 2872 коричневый, 235 см","Коричневый"]
[null,null,null,null,null,null,null,null,null,null,null,null,null,null,null,null,null,null,null,null,"Лима 4858 бордо, 200см","плиссе","Лима 4858 бордо, 200см","Бордо"]
[null,null,null,null,null,null,null,null,null,null,null,null,null,null,null,null,null,null,null,null,"Лима 4858 бордо, 235 см","плиссе","Лима 4858 бордо, 235 см","Бордо"]
[null,null,null,null,null,null,null,null,null,null,null,null,null,null,null,null,null,null,null,null,"Лима 5850 зеленый, 200см","плиссе","Лима 5850 зеленый, 200см","Св.зеленый"]
[null,null,null,null,null,null,null,null,null,null,null,null,null,null,null,null,null,null,null,null,"Лима 5850 зеленый, 235 см","плиссе","Лима 5850 зеленый, 235 см","Зеленый"]
[null,null,null,null,null,null,null,null,null,null,null,null,null,null,null,null,null,null,null,null,"Лофт  0225 белый, 280 см","плиссе","Лофт  0225 белый, 280 см","Белый"]
[null,null,null,null,null,null,null,null,null,null,null,null,null,null,null,null,null,null,null,null,"Лужок 0225 белый, 230см","плиссе","Лужок 0225 белый, 230см","Белый"]
[null,null,null,null,null,null,null,null,null,null,null,null,null,null,null,null,null,null,null,null,"Лунд BO 0225 белый, 15 мм, 230 см","плиссе","Лунд BO 0225 белый, 15 мм, 230 см","Белый"]
[null,null,null,null,null,null,null,null,null,null,null,null,null,null,null,null,null,null,null,null,"Лунд BO 1608 св. серый, 15 мм, 230 см","плиссе","Лунд BO 1608 св. серый, 15 мм, 230 см","Св. серый"]
[null,null,null,null,null,null,null,null,null,null,null,null,null,null,null,null,null,null,null,null,"Лунд BO 2259 магнолия, 15 мм, 230 см","плиссе","Лунд BO 2259 магнолия, 15 мм, 230 см","Белый"]
[null,null,null,null,null,null,null,null,null,null,null,null,null,null,null,null,null,null,null,null,"Лунд BO 2406 бежевый, 15 мм, 230 см","плиссе","Лунд BO 2406 бежевый, 15 мм, 230 см","Бежевый"]
[null,null,null,null,null,null,null,null,null,null,null,null,null,null,null,null,null,null,null,null,"Мара БО 0225 белый, 235см","плиссе","Мара БО 0225 белый, 235см","Белый"]
[null,null,null,null,null,null,null,null,null,null,null,null,null,null,null,null,null,null,null,null,"Мара БО 1852 серый, 235 см","плиссе","Мара БО 1852 серый, 235 см","Св. серый"]
[null,null,null,null,null,null,null,null,null,null,null,null,null,null,null,null,null,null,null,null,"Мара БО 1881 тем.серый, 235см","плиссе","Мара БО 1881 тем.серый, 235см","Серый"]
[null,null,null,null,null,null,null,null,null,null,null,null,null,null,null,null,null,null,null,null,"Мара БО 2259 магнолия, 235см","плиссе","Мара БО 2259 магнолия, 235см","Белый"]
[null,null,null,null,null,null,null,null,null,null,null,null,null,null,null,null,null,null,null,null,"Мара БО 2406 бежевый, 235 см","плиссе","Мара БО 2406 бежевый, 235 см","Бежевый"]
[null,null,null,null,null,null,null,null,null,null,null,null,null,null,null,null,null,null,null,null,"Мара БО 2870 коричневый, 235 см","плиссе","Мара БО 2870 коричневый, 235 см","Коричневый"]
[null,null,null,null,null,null,null,null,null,null,null,null,null,null,null,null,null,null,null,null,"Мара БО 3465 золотистый, 235см","плиссе","Мара БО 3465 золотистый, 235см","Песочный"]
[null,null,null,null,null,null,null,null,null,null,null,null,null,null,null,null,null,null,null,null,"Мара БО 3695 охра, 235 см","плиссе","Мара БО 3695 охра, 235 см","Песочный"]
[null,null,null,null,null,null,null,null,null,null,null,null,null,null,null,null,null,null,null,null,"Мережка 0225 белый, 235см","плиссе","Мережка 0225 белый, 235см","Белый"]
[null,null,null,null,null,null,null,null,null,null,null,null,null,null,null,null,null,null,null,null,"Мережка 2406 бежевый, 235см","плиссе","Мережка 2406 бежевый, 235см","Песочный"]
[null,null,null,null,null,null,null,null,null,null,null,null,null,null,null,null,null,null,null,null,"Металлик 0225 белый, 240см","плиссе","Металлик 0225 белый, 240см","Белый"]
[null,null,null,null,null,null,null,null,null,null,null,null,null,null,null,null,null,null,null,null,"Металлик 1608 светло-серый, 240см","плиссе","Металлик 1608 светло-серый, 240см","Серый"]
[null,null,null,null,null,null,null,null,null,null,null,null,null,null,null,null,null,null,null,null,"Металлик 1881 темно-серый, 240см","плиссе","Металлик 1881 темно-серый, 240см","Серый"]
[null,null,null,null,null,null,null,null,null,null,null,null,null,null,null,null,null,null,null,null,"Металлик 2261 бежевый, 240см","плиссе","Металлик 2261 бежевый, 240см","Песочный"]
[null,null,null,null,null,null,null,null,null,null,null,null,null,null,null,null,null,null,null,null,"Металлик 2870 коричневый, 240см","плиссе","Металлик 2870 коричневый, 240см","Коричневый"]
[null,null,null,null,null,null,null,null,null,null,null,null,null,null,null,null,null,null,null,null,"Металлик 3465 желтый, 240см","плиссе","Металлик 3465 желтый, 240см","Оранжевый"]
[null,null,null,null,null,null,null,null,null,null,null,null,null,null,null,null,null,null,null,null,"Металлик 3502 терракотовый, 240см","плиссе","Металлик 3502 терракотовый, 240см","Розовый"]
[null,null,null,null,null,null,null,null,null,null,null,null,null,null,null,null,null,null,null,null,"Металлик 4201 розовый, 240см","плиссе","Металлик 4201 розовый, 240см","Лиловый"]
[null,null,null,null,null,null,null,null,null,null,null,null,null,null,null,null,null,null,null,null,"Металлик 4284 лиловый, 240см","плиссе","Металлик 4284 лиловый, 240см","Розовый"]
[null,null,null,null,null,null,null,null,null,null,null,null,null,null,null,null,null,null,null,null,"Металлик 5300 синий, 240см","плиссе","Металлик 5300 синий, 240см","Синий"]
[null,null,null,null,null,null,null,null,null,null,null,null,null,null,null,null,null,null,null,null,"Металлик 5850 зеленый, 240см","плиссе","Металлик 5850 зеленый, 240см","Желто-зеленый"]
[null,null,null,null,null,null,null,null,null,null,null,null,null,null,null,null,null,null,null,null,"Металлик 5879 оливковый, 240см","плиссе","Металлик 5879 оливковый, 240см","Желто-зеленый"]
[null,null,null,null,null,null,null,null,null,null,null,null,null,null,null,null,null,null,null,null,"Металлик БО 1608 светло-серый, 240см","плиссе","Металлик БО 1608 светло-серый, 240см","Серый"]
[null,null,null,null,null,null,null,null,null,null,null,null,null,null,null,null,null,null,null,null,"Металлик БО 1881 темно-серый, 240см","плиссе","Металлик БО 1881 темно-серый, 240см","Серый"]
[null,null,null,null,null,null,null,null,null,null,null,null,null,null,null,null,null,null,null,null,"Металлик БО 2261 светло-бежевый, 240см","плиссе","Металлик БО 2261 светло-бежевый, 240см","Песочный"]
[null,null,null,null,null,null,null,null,null,null,null,null,null,null,null,null,null,null,null,null,"Металлик БО 2870 коричневый, 240см","плиссе","Металлик БО 2870 коричневый, 240см","Коричневый"]
[null,null,null,null,null,null,null,null,null,null,null,null,null,null,null,null,null,null,null,null,"Металлик БО 3465 желтый, 240см","плиссе","Металлик БО 3465 желтый, 240см","Оранжевый"]
[null,null,null,null,null,null,null,null,null,null,null,null,null,null,null,null,null,null,null,null,"Металлик БО 3502 терракотовый, 240см","плиссе","Металлик БО 3502 терракотовый, 240см","Розовый"]
[null,null,null,null,null,null,null,null,null,null,null,null,null,null,null,null,null,null,null,null,"Металлик БО 4201 розовый, 240см","плиссе","Металлик БО 4201 розовый, 240см","Лиловый"]
[null,null,null,null,null,null,null,null,null,null,null,null,null,null,null,null,null,null,null,null,"Металлик БО 4284 лиловый, 240см","плиссе","Металлик БО 4284 лиловый, 240см","Розовый"]
[null,null,null,null,null,null,null,null,null,null,null,null,null,null,null,null,null,null,null,null,"Металлик БО 5300 синий, 240см","плиссе","Металлик БО 5300 синий, 240см","Синий"]
[null,null,null,null,null,null,null,null,null,null,null,null,null,null,null,null,null,null,null,null,"Металлик БО 5879 оливковый, 240см","плиссе","Металлик БО 5879 оливковый, 240см","Желто-зеленый"]
[null,null,null,null,null,null,null,null,null,null,null,null,null,null,null,null,null,null,null,null,"Метис Перла 0225 белый, 200 см","плиссе","Метис Перла 0225 белый, 200 см","Белый"]
[null,null,null,null,null,null,null,null,null,null,null,null,null,null,null,null,null,null,null,null,"Метис Перла 1608 св. серый, 200 см","плиссе","Метис Перла 1608 св. серый, 200 см","Св. серый"]
[null,null,null,null,null,null,null,null,null,null,null,null,null,null,null,null,null,null,null,null,"Метис Перла 2261 св. бежевый, 200 см","плиссе","Метис Перла 2261 св. бежевый, 200 см","Бежевый"]
[null,null,null,null,null,null,null,null,null,null,null,null,null,null,null,null,null,null,null,null,"Метис Перла 2406 бежевый, 200 см","плиссе","Метис Перла 2406 бежевый, 200 см","Бежевый"]
[null,null,null,null,null,null,null,null,null,null,null,null,null,null,null,null,null,null,null,null,"МЕХИКО 0225 белый, 235 см","плиссе","МЕХИКО 0225 белый, 235 см","Белый"]
[null,null,null,null,null,null,null,null,null,null,null,null,null,null,null,null,null,null,null,null,"МЕХИКО 2261 св.бежевый, 235 см","плиссе","МЕХИКО 2261 св.бежевый, 235 см","Бежевый"]
[null,null,null,null,null,null,null,null,null,null,null,null,null,null,null,null,null,null,null,null,"МЕХИКО 2746 т.бежевый, 235 см","плиссе","МЕХИКО 2746 т.бежевый, 235 см","Бежевый"]
[null,null,null,null,null,null,null,null,null,null,null,null,null,null,null,null,null,null,null,null,"МЕХИКО 2872 т.коричневый, 235 см","плиссе","МЕХИКО 2872 т.коричневый, 235 см","Коричневый"]
[null,null,null,null,null,null,null,null,null,null,null,null,null,null,null,null,null,null,null,null,"МЕХИКО 3465 желтый, 235 см","плиссе","МЕХИКО 3465 желтый, 235 см","Оранжевый"]
[null,null,null,null,null,null,null,null,null,null,null,null,null,null,null,null,null,null,null,null,"МЕХИКО 4300 терракота, 235 см","плиссе","МЕХИКО 4300 терракота, 235 см","Абрикос"]
[null,null,null,null,null,null,null,null,null,null,null,null,null,null,null,null,null,null,null,null,"МЕХИКО 4858 т.лиловый, 235 см","плиссе","МЕХИКО 4858 т.лиловый, 235 см","Бордо"]
[null,null,null,null,null,null,null,null,null,null,null,null,null,null,null,null,null,null,null,null,"МЕХИКО 5850 св.зеленый, 235 см","плиссе","МЕХИКО 5850 св.зеленый, 235 см","Серый"]
[null,null,null,null,null,null,null,null,null,null,null,null,null,null,null,null,null,null,null,null,"Микены 1608 св.серый, 235см","плиссе","Микены 1608 св.серый, 235см","Белый"]
[null,null,null,null,null,null,null,null,null,null,null,null,null,null,null,null,null,null,null,null,"Микены 2261 бежевый, 235см","плиссе","Микены 2261 бежевый, 235см","Бежевый"]
[null,null,null,null,null,null,null,null,null,null,null,null,null,null,null,null,null,null,null,null,"Микены 2406 темно-бежевый, 235см","плиссе","Микены 2406 темно-бежевый, 235см","Бежевый"]
[null,null,null,null,null,null,null,null,null,null,null,null,null,null,null,null,null,null,null,null,"Мираж  2405 шампань,225см","плиссе","Мираж  2405 шампань,225см","Бежевый"]
[null,null,null,null,null,null,null,null,null,null,null,null,null,null,null,null,null,null,null,null,"Мираж 0225 белый,  225см","плиссе","Мираж 0225 белый,  225см","Белый"]
[null,null,null,null,null,null,null,null,null,null,null,null,null,null,null,null,null,null,null,null,"Мираж 1605 платина,  225см","плиссе","Мираж 1605 платина,  225см","Св. серый"]
[null,null,null,null,null,null,null,null,null,null,null,null,null,null,null,null,null,null,null,null,"Мираж 1907 черная икра, 225см","плиссе","Мираж 1907 черная икра, 225см","Черный"]
[null,null,null,null,null,null,null,null,null,null,null,null,null,null,null,null,null,null,null,null,"Мираж 1907 черная икра, 225см","плиссе","Мираж 1907 черная икра, 225см","Черный"]
[null,null,null,null,null,null,null,null,null,null,null,null,null,null,null,null,null,null,null,null,"Мираж 2406 бежевый, 225см","плиссе","Мираж 2406 бежевый, 225см","Бежевый"]
[null,null,null,null,null,null,null,null,null,null,null,null,null,null,null,null,null,null,null,null,"Мираж 3204 мимоза,  225см","плиссе","Мираж 3204 мимоза,  225см","Оранжевый"]
[null,null,null,null,null,null,null,null,null,null,null,null,null,null,null,null,null,null,null,null,"Мираж 3466 шабли, 225см","плиссе","Мираж 3466 шабли, 225см","Песочный"]
[null,null,null,null,null,null,null,null,null,null,null,null,null,null,null,null,null,null,null,null,"Мираж 3470 янтарь,  225см","плиссе","Мираж 3470 янтарь,  225см","Оранжевый"]
[null,null,null,null,null,null,null,null,null,null,null,null,null,null,null,null,null,null,null,null,"Мираж 4081 фламинго,  225см","плиссе","Мираж 4081 фламинго,  225см","Лиловый"]
[null,null,null,null,null,null,null,null,null,null,null,null,null,null,null,null,null,null,null,null,"Мираж 4453 рубин,  225см","плиссе","Мираж 4453 рубин,  225см","Розовый"]
[null,null,null,null,null,null,null,null,null,null,null,null,null,null,null,null,null,null,null,null,"Мираж 4856 аметист, 225см","плиссе","Мираж 4856 аметист, 225см","Лиловый"]
[null,null,null,null,null,null,null,null,null,null,null,null,null,null,null,null,null,null,null,null,"Мираж 5102 голубой опал,  225см","плиссе","Мираж 5102 голубой опал,  225см","Св.синий"]
[null,null,null,null,null,null,null,null,null,null,null,null,null,null,null,null,null,null,null,null,"Мираж 5260 аквамарин,  225см","плиссе","Мираж 5260 аквамарин,  225см","Синий"]
[null,null,null,null,null,null,null,null,null,null,null,null,null,null,null,null,null,null,null,null,"Мираж 5607 бирюза, 225см","плиссе","Мираж 5607 бирюза, 225см","Желто-зеленый"]
[null,null,null,null,null,null,null,null,null,null,null,null,null,null,null,null,null,null,null,null,"Мираж 5849 резеда,  225см","плиссе","Мираж 5849 резеда,  225см","Св.зеленый"]
[null,null,null,null,null,null,null,null,null,null,null,null,null,null,null,null,null,null,null,null,"Миссури 1852 серый, 230 см","плиссе","Миссури 1852 серый, 230 см","Серый"]
[null,null,null,null,null,null,null,null,null,null,null,null,null,null,null,null,null,null,null,null,"Миссури 1852 серый, 230 см","плиссе","Миссури 1852 серый, 230 см","Серый"]
[null,null,null,null,null,null,null,null,null,null,null,null,null,null,null,null,null,null,null,null,"Миссури 2261 св. бежевый, 230 см","плиссе","Миссури 2261 св. бежевый, 230 см","Бежевый"]
[null,null,null,null,null,null,null,null,null,null,null,null,null,null,null,null,null,null,null,null,"Миссури 2261 св. бежевый, 230 см","плиссе","Миссури 2261 св. бежевый, 230 см","Бежевый"]
[null,null,null,null,null,null,null,null,null,null,null,null,null,null,null,null,null,null,null,null,"Миссури 2406 бежевый, 230 см","плиссе","Миссури 2406 бежевый, 230 см","Бежевый"]
[null,null,null,null,null,null,null,null,null,null,null,null,null,null,null,null,null,null,null,null,"Миссури 2406 бежевый, 230 см","плиссе","Миссури 2406 бежевый, 230 см","Бежевый"]
[null,null,null,null,null,null,null,null,null,null,null,null,null,null,null,null,null,null,null,null,"Миссури 2868 св. коричневый, 230 см","плиссе","Миссури 2868 св. коричневый, 230 см","Песочный"]
[null,null,null,null,null,null,null,null,null,null,null,null,null,null,null,null,null,null,null,null,"Миссури 2868 св. коричневый, 230 см","плиссе","Миссури 2868 св. коричневый, 230 см","Песочный"]
[null,null,null,null,null,null,null,null,null,null,null,null,null,null,null,null,null,null,null,null,"Непал 1608 св. серый, 230 см","плиссе","Непал 1608 св. серый, 230 см","Св. серый"]
[null,null,null,null,null,null,null,null,null,null,null,null,null,null,null,null,null,null,null,null,"Непал 1608 св. серый, 32 мм, 225 см","плиссе","Непал 1608 св. серый, 32 мм, 225 см","Св. серый"]
[null,null,null,null,null,null,null,null,null,null,null,null,null,null,null,null,null,null,null,null,"Непал 2261 св. бежевый, 230 см","плиссе","Непал 2261 св. бежевый, 230 см","Бежевый"]
[null,null,null,null,null,null,null,null,null,null,null,null,null,null,null,null,null,null,null,null,"Непал 2261 св. бежевый, 32 мм, 225 см","плиссе","Непал 2261 св. бежевый, 32 мм, 225 см","Бежевый"]
[null,null,null,null,null,null,null,null,null,null,null,null,null,null,null,null,null,null,null,null,"Непал 2868 св. коричневый, 230 см","плиссе","Непал 2868 св. коричневый, 230 см","Бежевый"]
[null,null,null,null,null,null,null,null,null,null,null,null,null,null,null,null,null,null,null,null,"Непал 2868 св. коричневый, 32 мм, 225 см","плиссе","Непал 2868 св. коричневый, 32 мм, 225 см","Бежевый"]
[null,null,null,null,null,null,null,null,null,null,null,null,null,null,null,null,null,null,null,null,"Ниагара 0225 белый, 235см","плиссе","Ниагара 0225 белый, 235см","Белый"]
[null,null,null,null,null,null,null,null,null,null,null,null,null,null,null,null,null,null,null,null,"Ниагара 2259 магнолия, 235см","плиссе","Ниагара 2259 магнолия, 235см","Бежевый"]
[null,null,null,null,null,null,null,null,null,null,null,null,null,null,null,null,null,null,null,null,"Ниагара 2746 св.коричневый, 235см","плиссе","Ниагара 2746 св.коричневый, 235см","Бежевый"]
[null,null,null,null,null,null,null,null,null,null,null,null,null,null,null,null,null,null,null,null,"Ниагара 2868 коричневый, 235см","плиссе","Ниагара 2868 коричневый, 235см","Бежевый"]
[null,null,null,null,null,null,null,null,null,null,null,null,null,null,null,null,null,null,null,null,"Ниагара 4221 бежевый, 235см","плиссе","Ниагара 4221 бежевый, 235см","Песочный"]
[null,null,null,null,null,null,null,null,null,null,null,null,null,null,null,null,null,null,null,null,"Ниагара 4469 лиловый, 235см","плиссе","Ниагара 4469 лиловый, 235см","Розовый"]
[null,null,null,null,null,null,null,null,null,null,null,null,null,null,null,null,null,null,null,null,"Ниагара 5173 голубой 235 см","плиссе","Ниагара 5173 голубой 235 см","Св.синий"]
[null,null,null,null,null,null,null,null,null,null,null,null,null,null,null,null,null,null,null,null,"Ноктюрн B/O 0225 белый, 230см","плиссе","Ноктюрн B/O 0225 белый, 230см","Белый"]
[null,null,null,null,null,null,null,null,null,null,null,null,null,null,null,null,null,null,null,null,"Ноктюрн B/O 1608  серый, 230см","плиссе","Ноктюрн B/O 1608  серый, 230см","Св. серый"]
[null,null,null,null,null,null,null,null,null,null,null,null,null,null,null,null,null,null,null,null,"Ноктюрн B/O 1881 темно-серый, 230см","плиссе","Ноктюрн B/O 1881 темно-серый, 230см","Серый"]
[null,null,null,null,null,null,null,null,null,null,null,null,null,null,null,null,null,null,null,null,"Ноктюрн B/O 2259 св.бежевый, 230см","плиссе","Ноктюрн B/O 2259 св.бежевый, 230см","Белый"]
[null,null,null,null,null,null,null,null,null,null,null,null,null,null,null,null,null,null,null,null,"Ноктюрн B/O 2406 бежевый, 230см","плиссе","Ноктюрн B/O 2406 бежевый, 230см","Св. серый"]
[null,null,null,null,null,null,null,null,null,null,null,null,null,null,null,null,null,null,null,null,"Ноктюрн B/O 2549 светло-кремовый, 230см","плиссе","Ноктюрн B/O 2549 светло-кремовый, 230см","Бежевый"]
[null,null,null,null,null,null,null,null,null,null,null,null,null,null,null,null,null,null,null,null,"Ноктюрн B/O 2552 кремовый, 230см","плиссе","Ноктюрн B/O 2552 кремовый, 230см","Песочный"]
[null,null,null,null,null,null,null,null,null,null,null,null,null,null,null,null,null,null,null,null,"Ноктюрн B/O 2746 темно-бежевый, 230см","плиссе","Ноктюрн B/O 2746 темно-бежевый, 230см","Серый"]
[null,null,null,null,null,null,null,null,null,null,null,null,null,null,null,null,null,null,null,null,"Ноктюрн B/O 2870 коричневый, 230см","плиссе","Ноктюрн B/O 2870 коричневый, 230см","Коричневый"]
[null,null,null,null,null,null,null,null,null,null,null,null,null,null,null,null,null,null,null,null,"Ноктюрн B/O 3210 лимон, 230см","плиссе","Ноктюрн B/O 3210 лимон, 230см","Песочный"]
[null,null,null,null,null,null,null,null,null,null,null,null,null,null,null,null,null,null,null,null,"Ноктюрн B/O 3466 желтый, 230см","плиссе","Ноктюрн B/O 3466 желтый, 230см","Песочный"]
[null,null,null,null,null,null,null,null,null,null,null,null,null,null,null,null,null,null,null,null,"Ноктюрн B/O 4096 розовый, 230см","плиссе","Ноктюрн B/O 4096 розовый, 230см","Розовый"]
[null,null,null,null,null,null,null,null,null,null,null,null,null,null,null,null,null,null,null,null,"Ноктюрн B/O 4292 терракота, 230см","плиссе","Ноктюрн B/O 4292 терракота, 230см","Оранжевый"]
[null,null,null,null,null,null,null,null,null,null,null,null,null,null,null,null,null,null,null,null,"Ноктюрн B/O 4523 красный, 230см","плиссе","Ноктюрн B/O 4523 красный, 230см","Розовый"]
[null,null,null,null,null,null,null,null,null,null,null,null,null,null,null,null,null,null,null,null,"Ноктюрн B/O 4858 лиловый, 230см","плиссе","Ноктюрн B/O 4858 лиловый, 230см","Лиловый"]
[null,null,null,null,null,null,null,null,null,null,null,null,null,null,null,null,null,null,null,null,"Ноктюрн B/O 5302 синий, 230см","плиссе","Ноктюрн B/O 5302 синий, 230см","Синий"]
[null,null,null,null,null,null,null,null,null,null,null,null,null,null,null,null,null,null,null,null,"Ноктюрн B/O 5586 зеленый, 230см","плиссе","Ноктюрн B/O 5586 зеленый, 230см","Желто-зеленый"]
[null,null,null,null,null,null,null,null,null,null,null,null,null,null,null,null,null,null,null,null,"Оксфорд 0225 белый, 205см","плиссе","Оксфорд 0225 белый, 205см","Белый"]
[null,null,null,null,null,null,null,null,null,null,null,null,null,null,null,null,null,null,null,null,"Оксфорд 2261 св.бежевый, 205см","плиссе","Оксфорд 2261 св.бежевый, 205см","Бежевый"]
[null,null,null,null,null,null,null,null,null,null,null,null,null,null,null,null,null,null,null,null,"Омбра 3499 оранжевый, 230 см","плиссе","Омбра 3499 оранжевый, 230 см","Розовый"]
[null,null,null,null,null,null,null,null,null,null,null,null,null,null,null,null,null,null,null,null,"Омбра 4096 розовый, 230 см","плиссе","Омбра 4096 розовый, 230 см","Розовый"]
[null,null,null,null,null,null,null,null,null,null,null,null,null,null,null,null,null,null,null,null,"Опал 0225 белый, 200см","плиссе","Опал 0225 белый, 200см","Белый"]
[null,null,null,null,null,null,null,null,null,null,null,null,null,null,null,null,null,null,null,null,"Опал 1608 св. серый, 200см","плиссе","Опал 1608 св. серый, 200см","Св. серый"]
[null,null,null,null,null,null,null,null,null,null,null,null,null,null,null,null,null,null,null,null,"Опал 1652 серый, 200см","плиссе","Опал 1652 серый, 200см","Серый"]
[null,null,null,null,null,null,null,null,null,null,null,null,null,null,null,null,null,null,null,null,"Опал 2259 магнолия, 200см","плиссе","Опал 2259 магнолия, 200см","Белый"]
[null,null,null,null,null,null,null,null,null,null,null,null,null,null,null,null,null,null,null,null,"Опал 2261 св. бежевый, 200см","плиссе","Опал 2261 св. бежевый, 200см","Бежевый"]
[null,null,null,null,null,null,null,null,null,null,null,null,null,null,null,null,null,null,null,null,"Опал 2406 бежевый, 200см","плиссе","Опал 2406 бежевый, 200см","Бежевый"]
[null,null,null,null,null,null,null,null,null,null,null,null,null,null,null,null,null,null,null,null,"Опал 2868 св. коричневый, 200см","плиссе","Опал 2868 св. коричневый, 200см","Бежевый"]
[null,null,null,null,null,null,null,null,null,null,null,null,null,null,null,null,null,null,null,null,"Опал 3465 желтый, 200см","плиссе","Опал 3465 желтый, 200см","Песочный"]
[null,null,null,null,null,null,null,null,null,null,null,null,null,null,null,null,null,null,null,null,"Опал 3499 оранжевый, 200см","плиссе","Опал 3499 оранжевый, 200см","Оранжевый"]
[null,null,null,null,null,null,null,null,null,null,null,null,null,null,null,null,null,null,null,null,"Опал 4240 персик, 200см","плиссе","Опал 4240 персик, 200см","Абрикос"]
[null,null,null,null,null,null,null,null,null,null,null,null,null,null,null,null,null,null,null,null,"Опал 5252 синий 200см","плиссе","Опал 5252 синий 200см","Св.синий"]
[null,null,null,null,null,null,null,null,null,null,null,null,null,null,null,null,null,null,null,null,"Опал 5850 зеленый, 200см","плиссе","Опал 5850 зеленый, 200см","Св.зеленый"]
[null,null,null,null,null,null,null,null,null,null,null,null,null,null,null,null,null,null,null,null,"Опера 0225 белый, 238 см","плиссе","Опера 0225 белый, 238 см","Белый"]
[null,null,null,null,null,null,null,null,null,null,null,null,null,null,null,null,null,null,null,null,"Опера 1852 серый, 238 см","плиссе","Опера 1852 серый, 238 см","Св. серый"]
[null,null,null,null,null,null,null,null,null,null,null,null,null,null,null,null,null,null,null,null,"Опера 2259 магнолия, 238 см","плиссе","Опера 2259 магнолия, 238 см","Белый"]
[null,null,null,null,null,null,null,null,null,null,null,null,null,null,null,null,null,null,null,null,"Опера 2406 бежевый, 238 см","плиссе","Опера 2406 бежевый, 238 см","Песочный"]
[null,null,null,null,null,null,null,null,null,null,null,null,null,null,null,null,null,null,null,null,"Опера 2870 коричневый, 238 см","плиссе","Опера 2870 коричневый, 238 см","Коричневый"]
[null,null,null,null,null,null,null,null,null,null,null,null,null,null,null,null,null,null,null,null,"Опера 3465 желтый, 238 см","плиссе","Опера 3465 желтый, 238 см","Песочный"]
[null,null,null,null,null,null,null,null,null,null,null,null,null,null,null,null,null,null,null,null,"Опера 3499 оранжевый, 238 см","плиссе","Опера 3499 оранжевый, 238 см","Оранжевый"]
[null,null,null,null,null,null,null,null,null,null,null,null,null,null,null,null,null,null,null,null,"Опера 4075 красный, 238 см","плиссе","Опера 4075 красный, 238 см","Бордо"]
[null,null,null,null,null,null,null,null,null,null,null,null,null,null,null,null,null,null,null,null,"Опера 4096 розовый, 238 см","плиссе","Опера 4096 розовый, 238 см","Розовый"]
[null,null,null,null,null,null,null,null,null,null,null,null,null,null,null,null,null,null,null,null,"Опера 5173 голубой, 238 см","плиссе","Опера 5173 голубой, 238 см","Св.синий"]
[null,null,null,null,null,null,null,null,null,null,null,null,null,null,null,null,null,null,null,null,"Опера 5302 синий, 238 см","плиссе","Опера 5302 синий, 238 см","Синий"]
[null,null,null,null,null,null,null,null,null,null,null,null,null,null,null,null,null,null,null,null,"Опера 5853 салатовый, 238 см","плиссе","Опера 5853 салатовый, 238 см","Желто-зеленый"]
[null,null,null,null,null,null,null,null,null,null,null,null,null,null,null,null,null,null,null,null,"Органза 0225 белый, 185 см","плиссе","Органза 0225 белый, 185 см","Белый"]
[null,null,null,null,null,null,null,null,null,null,null,null,null,null,null,null,null,null,null,null,"Орегон B/O 0225 белый, 205см","плиссе","Орегон B/O 0225 белый, 205см","Белый"]
[null,null,null,null,null,null,null,null,null,null,null,null,null,null,null,null,null,null,null,null,"Орегон B/O 0225 белый, 230см","плиссе","Орегон B/O 0225 белый, 230см","Белый"]
[null,null,null,null,null,null,null,null,null,null,null,null,null,null,null,null,null,null,null,null,"Орегон B/O 2406 бежевый,  205см","плиссе","Орегон B/O 2406 бежевый,  205см","Бежевый"]
[null,null,null,null,null,null,null,null,null,null,null,null,null,null,null,null,null,null,null,null,"Орегон B/O 2406 бежевый,  230см","плиссе","Орегон B/O 2406 бежевый,  230см","Бежевый"]
[null,null,null,null,null,null,null,null,null,null,null,null,null,null,null,null,null,null,null,null,"Орегон B/O 3465 желтый, 205см","плиссе","Орегон B/O 3465 желтый, 205см","Песочный"]
[null,null,null,null,null,null,null,null,null,null,null,null,null,null,null,null,null,null,null,null,"Орегон B/O 3499 оранжевый, 205см","плиссе","Орегон B/O 3499 оранжевый, 205см","Оранжевый"]
[null,null,null,null,null,null,null,null,null,null,null,null,null,null,null,null,null,null,null,null,"Орегон B/O 4077 красный, 205см","плиссе","Орегон B/O 4077 красный, 205см","Розовый"]
[null,null,null,null,null,null,null,null,null,null,null,null,null,null,null,null,null,null,null,null,"Орегон B/O 5173 синий, 205см","плиссе","Орегон B/O 5173 синий, 205см","Св.синий"]
[null,null,null,null,null,null,null,null,null,null,null,null,null,null,null,null,null,null,null,null,"Орегон B/O 5173 синий, 230см","плиссе","Орегон B/O 5173 синий, 230см","Св.синий"]
[null,null,null,null,null,null,null,null,null,null,null,null,null,null,null,null,null,null,null,null,"Орегон B/O 5850 зеленый. 205см","плиссе","Орегон B/O 5850 зеленый. 205см","Св.зеленый"]
[null,null,null,null,null,null,null,null,null,null,null,null,null,null,null,null,null,null,null,null,"Пальма 0225 белый, 235см","плиссе","Пальма 0225 белый, 235см","Белый"]
[null,null,null,null,null,null,null,null,null,null,null,null,null,null,null,null,null,null,null,null,"Пальма 4454 красный, 235см","плиссе","Пальма 4454 красный, 235см","Розовый"]
[null,null,null,null,null,null,null,null,null,null,null,null,null,null,null,null,null,null,null,null,"Париж 0225 белый, 225см","плиссе","Париж 0225 белый, 225см","Белый"]
[null,null,null,null,null,null,null,null,null,null,null,null,null,null,null,null,null,null,null,null,"Париж 2840 темно-бежевый, 225см","плиссе","Париж 2840 темно-бежевый, 225см","Бежевый"]
[null,null,null,null,null,null,null,null,null,null,null,null,null,null,null,null,null,null,null,null,"Париж 3205 св.желтый, 225см","плиссе","Париж 3205 св.желтый, 225см","Песочный"]
[null,null,null,null,null,null,null,null,null,null,null,null,null,null,null,null,null,null,null,null,"Париж 4059 розовый, 225см","плиссе","Париж 4059 розовый, 225см","Абрикос"]
[null,null,null,null,null,null,null,null,null,null,null,null,null,null,null,null,null,null,null,null,"Париж 4210 бежевый, 225см","плиссе","Париж 4210 бежевый, 225см","Песочный"]
[null,null,null,null,null,null,null,null,null,null,null,null,null,null,null,null,null,null,null,null,"Париж 4830 лиловый, 225см","плиссе","Париж 4830 лиловый, 225см","Лиловый"]
[null,null,null,null,null,null,null,null,null,null,null,null,null,null,null,null,null,null,null,null,"Париж 5170 лаванда, 225см","плиссе","Париж 5170 лаванда, 225см","Св.синий"]
[null,null,null,null,null,null,null,null,null,null,null,null,null,null,null,null,null,null,null,null,"Перфора 0225 белый, 235","плиссе","Перфора 0225 белый, 235","Белый"]
[null,null,null,null,null,null,null,null,null,null,null,null,null,null,null,null,null,null,null,null,"Прато 2261 св. бежевый, 240 см","плиссе","Прато 2261 св. бежевый, 240 см","Бежевый"]
[null,null,null,null,null,null,null,null,null,null,null,null,null,null,null,null,null,null,null,null,"Прато 2406 бежевый, 240 см","плиссе","Прато 2406 бежевый, 240 см","Бежевый"]
[null,null,null,null,null,null,null,null,null,null,null,null,null,null,null,null,null,null,null,null,"Прато 2748 капучино, 240 см","плиссе","Прато 2748 капучино, 240 см","Серый"]
[null,null,null,null,null,null,null,null,null,null,null,null,null,null,null,null,null,null,null,null,"Престиж D/O 0225 белый, 220см","плиссе","Престиж D/O 0225 белый, 220см","Белый"]
[null,null,null,null,null,null,null,null,null,null,null,null,null,null,null,null,null,null,null,null,"Престиж D/O 1608 серый, 220см","плиссе","Престиж D/O 1608 серый, 220см","Св. серый"]
[null,null,null,null,null,null,null,null,null,null,null,null,null,null,null,null,null,null,null,null,"Престиж D/O 2261 бежевый 220см","плиссе","Престиж D/O 2261 бежевый 220см","Бежевый"]
[null,null,null,null,null,null,null,null,null,null,null,null,null,null,null,null,null,null,null,null,"Престиж D/O 2853 терракота 220см","плиссе","Престиж D/O 2853 терракота 220см","Оранжевый"]
[null,null,null,null,null,null,null,null,null,null,null,null,null,null,null,null,null,null,null,null,"Престиж D/O 3209 желтый 220см","плиссе","Престиж D/O 3209 желтый 220см","Песочный"]
[null,null,null,null,null,null,null,null,null,null,null,null,null,null,null,null,null,null,null,null,"Престиж D/O 3499 оранжевый 220см","плиссе","Престиж D/O 3499 оранжевый 220см","Оранжевый"]
[null,null,null,null,null,null,null,null,null,null,null,null,null,null,null,null,null,null,null,null,"Престиж D/O 4967 голубой, 220см","плиссе","Престиж D/O 4967 голубой, 220см","Св.синий"]
[null,null,null,null,null,null,null,null,null,null,null,null,null,null,null,null,null,null,null,null,"Престиж D/O 5302 синий, 220см","плиссе","Престиж D/O 5302 синий, 220см","Синий"]
[null,null,null,null,null,null,null,null,null,null,null,null,null,null,null,null,null,null,null,null,"Прима 0225 белый, 230см","плиссе","Прима 0225 белый, 230см","Белый"]
[null,null,null,null,null,null,null,null,null,null,null,null,null,null,null,null,null,null,null,null,"Прима 1608 серый, 230см","плиссе","Прима 1608 серый, 230см","Серый"]
[null,null,null,null,null,null,null,null,null,null,null,null,null,null,null,null,null,null,null,null,"Прима 2259 магнолия, 230см","плиссе","Прима 2259 магнолия, 230см","Белый"]
[null,null,null,null,null,null,null,null,null,null,null,null,null,null,null,null,null,null,null,null,"Прима 2261 светло-бежевый, 230см","плиссе","Прима 2261 светло-бежевый, 230см","Бежевый"]
[null,null,null,null,null,null,null,null,null,null,null,null,null,null,null,null,null,null,null,null,"Прима 2746 светло-коричневый, 230см","плиссе","Прима 2746 светло-коричневый, 230см","Бежевый"]
[null,null,null,null,null,null,null,null,null,null,null,null,null,null,null,null,null,null,null,null,"Прима 3209 лимонный , 230см","плиссе","Прима 3209 лимонный , 230см","Песочный"]
[null,null,null,null,null,null,null,null,null,null,null,null,null,null,null,null,null,null,null,null,"Прима 4077 красный, 230см","плиссе","Прима 4077 красный, 230см","Розовый"]
[null,null,null,null,null,null,null,null,null,null,null,null,null,null,null,null,null,null,null,null,"Прима 4264 персик, 230см","плиссе","Прима 4264 персик, 230см","Абрикос"]
[null,null,null,null,null,null,null,null,null,null,null,null,null,null,null,null,null,null,null,null,"Прима 4300 терракота, 230см","плиссе","Прима 4300 терракота, 230см","Розовый"]
[null,null,null,null,null,null,null,null,null,null,null,null,null,null,null,null,null,null,null,null,"Прима 5173 голубой, 230см","плиссе","Прима 5173 голубой, 230см","Синий"]
[null,null,null,null,null,null,null,null,null,null,null,null,null,null,null,null,null,null,null,null,"Прима 5302 синий, 230см","плиссе","Прима 5302 синий, 230см","Синий"]
[null,null,null,null,null,null,null,null,null,null,null,null,null,null,null,null,null,null,null,null,"Прима 5501 зеленый, 230см","плиссе","Прима 5501 зеленый, 230см","Св.зеленый"]
[null,null,null,null,null,null,null,null,null,null,null,null,null,null,null,null,null,null,null,null,"Прима 5540 оливковый, 230см","плиссе","Прима 5540 оливковый, 230см","Бежевый"]
[null,null,null,null,null,null,null,null,null,null,null,null,null,null,null,null,null,null,null,null,"Прима 7094 230см","плиссе","Прима 7094 230см","Коричневый"]
[null,null,null,null,null,null,null,null,null,null,null,null,null,null,null,null,null,null,null,null,"Прима Лайн 0225 белый 230 см","плиссе","Прима Лайн 0225 белый 230 см","Белый"]
[null,null,null,null,null,null,null,null,null,null,null,null,null,null,null,null,null,null,null,null,"Прима Лайн 1608 серый 230 см","плиссе","Прима Лайн 1608 серый 230 см","Серый"]
[null,null,null,null,null,null,null,null,null,null,null,null,null,null,null,null,null,null,null,null,"Прима Лайн 2406 бежевый 230 см","плиссе","Прима Лайн 2406 бежевый 230 см","Бежевый"]
[null,null,null,null,null,null,null,null,null,null,null,null,null,null,null,null,null,null,null,null,"Прима Лайн 3209 желтый 230 см","плиссе","Прима Лайн 3209 желтый 230 см","Песочный"]
[null,null,null,null,null,null,null,null,null,null,null,null,null,null,null,null,null,null,null,null,"Прима Лайн 4803 лиловый 230 см","плиссе","Прима Лайн 4803 лиловый 230 см","Лиловый"]
[null,null,null,null,null,null,null,null,null,null,null,null,null,null,null,null,null,null,null,null,"Прима Лайн 5102 голубой 230 см","плиссе","Прима Лайн 5102 голубой 230 см","Желто-зеленый"]
[null,null,null,null,null,null,null,null,null,null,null,null,null,null,null,null,null,null,null,null,"Прима Лайн 5586 зеленый 230 см","плиссе","Прима Лайн 5586 зеленый 230 см","Зеленый"]
[null,null,null,null,null,null,null,null,null,null,null,null,null,null,null,null,null,null,null,null,"Примавера 4096 розовый 235 см","плиссе","Примавера 4096 розовый 235 см","Св.зеленый"]
[null,null,null,null,null,null,null,null,null,null,null,null,null,null,null,null,null,null,null,null,"Радиант 0225 белый, 235см","плиссе","Радиант 0225 белый, 235см","Белый"]
[null,null,null,null,null,null,null,null,null,null,null,null,null,null,null,null,null,null,null,null,"Радиант 2259 магнолия, 235см","плиссе","Радиант 2259 магнолия, 235см","Белый"]
[null,null,null,null,null,null,null,null,null,null,null,null,null,null,null,null,null,null,null,null,"Радиант 2406 бежевый, 235см","плиссе","Радиант 2406 бежевый, 235см","Бежевый"]
[null,null,null,null,null,null,null,null,null,null,null,null,null,null,null,null,null,null,null,null,"Радиант БО 0225 белый, 235см","плиссе","Радиант БО 0225 белый, 235см","Белый"]
[null,null,null,null,null,null,null,null,null,null,null,null,null,null,null,null,null,null,null,null,"Радиант БО 2259 магнолия, 235см","плиссе","Радиант БО 2259 магнолия, 235см","Белый"]
[null,null,null,null,null,null,null,null,null,null,null,null,null,null,null,null,null,null,null,null,"Радиант БО 2406 бежевый, 235см","плиссе","Радиант БО 2406 бежевый, 235см","Св. серый"]
[null,null,null,null,null,null,null,null,null,null,null,null,null,null,null,null,null,null,null,null,"Радиант БО 5173 голубой, 235см","плиссе","Радиант БО 5173 голубой, 235см","Св.зеленый"]
[null,null,null,null,null,null,null,null,null,null,null,null,null,null,null,null,null,null,null,null,"Риволи 4096 розовый, 235см","плиссе","Риволи 4096 розовый, 235см","Белый"]
[null,null,null,null,null,null,null,null,null,null,null,null,null,null,null,null,null,null,null,null,"Сантана 0225 белый, 15 мм, 230 см","плиссе","Сантана 0225 белый, 15 мм, 230 см","Белый"]
[null,null,null,null,null,null,null,null,null,null,null,null,null,null,null,null,null,null,null,null,"Сантана 0225 белый, 32 мм, 225 см","плиссе","Сантана 0225 белый, 32 мм, 225 см","Белый"]
[null,null,null,null,null,null,null,null,null,null,null,null,null,null,null,null,null,null,null,null,"Сантана 1852 серый, 32 мм, 225 см","плиссе","Сантана 1852 серый, 32 мм, 225 см","Серый"]
[null,null,null,null,null,null,null,null,null,null,null,null,null,null,null,null,null,null,null,null,"Сантана 2261 св. бежевый, 15 мм, 230 см","плиссе","Сантана 2261 св. бежевый, 15 мм, 230 см","Бежевый"]
[null,null,null,null,null,null,null,null,null,null,null,null,null,null,null,null,null,null,null,null,"Сантана 2406 бежевый, 15 мм, 230 см","плиссе","Сантана 2406 бежевый, 15 мм, 230 см","Бежевый"]
[null,null,null,null,null,null,null,null,null,null,null,null,null,null,null,null,null,null,null,null,"Сантана 2406 бежевый, 32 мм, 225 см","плиссе","Сантана 2406 бежевый, 32 мм, 225 см","Бежевый"]
[null,null,null,null,null,null,null,null,null,null,null,null,null,null,null,null,null,null,null,null,"Селена 7013 серебро, 235см","плиссе","Селена 7013 серебро, 235см","Св. серый"]
[null,null,null,null,null,null,null,null,null,null,null,null,null,null,null,null,null,null,null,null,"Сето 2259 магнолия  215 см","плиссе","Сето 2259 магнолия  215 см","Белый"]
[null,null,null,null,null,null,null,null,null,null,null,null,null,null,null,null,null,null,null,null,"Сето 4198 мандарин 215 см","плиссе","Сето 4198 мандарин 215 см","Абрикос"]
[null,null,null,null,null,null,null,null,null,null,null,null,null,null,null,null,null,null,null,null,"Сето 4264 бежевый  215 см","плиссе","Сето 4264 бежевый  215 см","Бежевый"]
[null,null,null,null,null,null,null,null,null,null,null,null,null,null,null,null,null,null,null,null,"Сето 7013 серебро  215 см","плиссе","Сето 7013 серебро  215 см","Серый"]
[null,null,null,null,null,null,null,null,null,null,null,null,null,null,null,null,null,null,null,null,"Сето 7020 золото  215 см","плиссе","Сето 7020 золото  215 см","Песочный"]
[null,null,null,null,null,null,null,null,null,null,null,null,null,null,null,null,null,null,null,null,"Сето Ретро 2261 светло-бежевый, 215 см","плиссе","Сето Ретро 2261 светло-бежевый, 215 см","Бежевый"]
[null,null,null,null,null,null,null,null,null,null,null,null,null,null,null,null,null,null,null,null,"Силкскрин 0225 белый, 240см","плиссе","Силкскрин 0225 белый, 240см","Белый"]
[null,null,null,null,null,null,null,null,null,null,null,null,null,null,null,null,null,null,null,null,"Силкскрин 2406 бежевый,  240см","плиссе","Силкскрин 2406 бежевый,  240см","Серый"]
[null,null,null,null,null,null,null,null,null,null,null,null,null,null,null,null,null,null,null,null,"Силкскрин 2746 темно-бежевый, 240см","плиссе","Силкскрин 2746 темно-бежевый, 240см","Серый"]
[null,null,null,null,null,null,null,null,null,null,null,null,null,null,null,null,null,null,null,null,"Силкскрин алю 1608 светло-серый, 240см","плиссе","Силкскрин алю 1608 светло-серый, 240см","Св. серый"]
[null,null,null,null,null,null,null,null,null,null,null,null,null,null,null,null,null,null,null,null,"Симфония 0225 белый, 240 см","плиссе","Симфония 0225 белый, 240 см","Белый"]
[null,null,null,null,null,null,null,null,null,null,null,null,null,null,null,null,null,null,null,null,"Симфония 2261 св. бежевый, 240 см","плиссе","Симфония 2261 св. бежевый, 240 см","Бежевый"]
[null,null,null,null,null,null,null,null,null,null,null,null,null,null,null,null,null,null,null,null,"Симфония 5540 св. зеленый, 240 см","плиссе","Симфония 5540 св. зеленый, 240 см","Св.зеленый"]
[null,null,null,null,null,null,null,null,null,null,null,null,null,null,null,null,null,null,null,null,"Сити 7013 серебро, 200см","плиссе","Сити 7013 серебро, 200см","Серый"]
[null,null,null,null,null,null,null,null,null,null,null,null,null,null,null,null,null,null,null,null,"Скрин Ажур 1608 серый, 235см","плиссе","Скрин Ажур 1608 серый, 235см","Св. серый"]
[null,null,null,null,null,null,null,null,null,null,null,null,null,null,null,null,null,null,null,null,"Скрин Ажур 2746 бежевый, 235см","плиссе","Скрин Ажур 2746 бежевый, 235см","Серый"]
[null,null,null,null,null,null,null,null,null,null,null,null,null,null,null,null,null,null,null,null,"Скрин Ажур 5302 синий, 235см","плиссе","Скрин Ажур 5302 синий, 235см","Синий"]
[null,null,null,null,null,null,null,null,null,null,null,null,null,null,null,null,null,null,null,null,"Скрин Ажур 7005 серебро, 235см","плиссе","Скрин Ажур 7005 серебро, 235см","Св. серый"]
[null,null,null,null,null,null,null,null,null,null,null,null,null,null,null,null,null,null,null,null,"Смайл 4077 красный 200 см","плиссе","Смайл 4077 красный 200 см","Белый"]
[null,null,null,null,null,null,null,null,null,null,null,null,null,null,null,null,null,null,null,null,"Смайл 5173 голубой 200см","плиссе","Смайл 5173 голубой 200см","Белый"]
[null,null,null,null,null,null,null,null,null,null,null,null,null,null,null,null,null,null,null,null,"Стерлинг 1608 светло-серый, 230 см","плиссе","Стерлинг 1608 светло-серый, 230 см","Св. серый"]
[null,null,null,null,null,null,null,null,null,null,null,null,null,null,null,null,null,null,null,null,"Стерлинг 2406 бежевый, 230 см","плиссе","Стерлинг 2406 бежевый, 230 см","Бежевый"]
[null,null,null,null,null,null,null,null,null,null,null,null,null,null,null,null,null,null,null,null,"Тафта 4454 темно-розовый, 225см","плиссе","Тафта 4454 темно-розовый, 225см","Розовый"]
[null,null,null,null,null,null,null,null,null,null,null,null,null,null,null,null,null,null,null,null,"Тафта 5252 синий, 225см","плиссе","Тафта 5252 синий, 225см","Св.синий"]
[null,null,null,null,null,null,null,null,null,null,null,null,null,null,null,null,null,null,null,null,"Тафта 5880 зеленый, 225см","плиссе","Тафта 5880 зеленый, 225см","Зеленый"]
[null,null,null,null,null,null,null,null,null,null,null,null,null,null,null,null,null,null,null,null,"Твигги 0225 белый, 235см","плиссе","Твигги 0225 белый, 235см","Белый"]
[null,null,null,null,null,null,null,null,null,null,null,null,null,null,null,null,null,null,null,null,"Тенденс 1881 т. серый, 225 см","плиссе","Тенденс 1881 т. серый, 225 см","Серый"]
[null,null,null,null,null,null,null,null,null,null,null,null,null,null,null,null,null,null,null,null,"Тенденс 2406 бежевый, 225 см","плиссе","Тенденс 2406 бежевый, 225 см","Бежевый"]
[null,null,null,null,null,null,null,null,null,null,null,null,null,null,null,null,null,null,null,null,"Тенденс 2870 коричневый, 225 см","плиссе","Тенденс 2870 коричневый, 225 см","Коричневый"]
[null,null,null,null,null,null,null,null,null,null,null,null,null,null,null,null,null,null,null,null,"Тенденс 2871 т. коричневый, 225 см","плиссе","Тенденс 2871 т. коричневый, 225 см","Черный"]
[null,null,null,null,null,null,null,null,null,null,null,null,null,null,null,null,null,null,null,null,"Техно 1852 серый, 195см","плиссе","Техно 1852 серый, 195см","Серый"]
[null,null,null,null,null,null,null,null,null,null,null,null,null,null,null,null,null,null,null,null,"Техно 2406 бежевый, 195 см","плиссе","Техно 2406 бежевый, 195 см","Бежевый"]
[null,null,null,null,null,null,null,null,null,null,null,null,null,null,null,null,null,null,null,null,"Тигрис Перла 0225 белый, 15 мм, 230 см","плиссе","Тигрис Перла 0225 белый, 15 мм, 230 см","Белый"]
[null,null,null,null,null,null,null,null,null,null,null,null,null,null,null,null,null,null,null,null,"Тигрис Перла 1608 св. серый, 15 мм, 230 см","плиссе","Тигрис Перла 1608 св. серый, 15 мм, 230 см","Св. серый"]
[null,null,null,null,null,null,null,null,null,null,null,null,null,null,null,null,null,null,null,null,"Тигрис Перла 2261 св. бежевый, 230 см","плиссе","Тигрис Перла 2261 св. бежевый, 230 см","Бежевый"]
[null,null,null,null,null,null,null,null,null,null,null,null,null,null,null,null,null,null,null,null,"Тигрис Перла 2406 бежевый, 15 мм, 230 см","плиссе","Тигрис Перла 2406 бежевый, 15 мм, 230 см","Бежевый"]
[null,null,null,null,null,null,null,null,null,null,null,null,null,null,null,null,null,null,null,null,"Тигрис Перла 2746 т. бежевый, 230 см","плиссе","Тигрис Перла 2746 т. бежевый, 230 см","Песочный"]
[null,null,null,null,null,null,null,null,null,null,null,null,null,null,null,null,null,null,null,null,"Тигрис Перла 2870 коричневый, 15 мм, 230 см","плиссе","Тигрис Перла 2870 коричневый, 15 мм, 230 см","Бежевый"]
[null,null,null,null,null,null,null,null,null,null,null,null,null,null,null,null,null,null,null,null,"Тигрис Перла 2870 коричневый, 230 см","плиссе","Тигрис Перла 2870 коричневый, 230 см","Бежевый"]
[null,null,null,null,null,null,null,null,null,null,null,null,null,null,null,null,null,null,null,null,"Тигрис Перла 5885 горчица, 230 см","плиссе","Тигрис Перла 5885 горчица, 230 см","Песочный"]
[null,null,null,null,null,null,null,null,null,null,null,null,null,null,null,null,null,null,null,null,"Ткань 20 мм (смотри заявку), 235см","плиссе","Ткань 20 мм (смотри заявку), 235см","Оранжевый"]
[null,null,null,null,null,null,null,null,null,null,null,null,null,null,null,null,null,null,null,null,"Ткань гофре 45 мм (смотри заявку), 365см","плиссе","Ткань гофре 45 мм (смотри заявку), 365см","Оранжевый"]
[null,null,null,null,null,null,null,null,null,null,null,null,null,null,null,null,null,null,null,null,"Ткань гофре БА 45 мм (смотри заявку), 365см","плиссе","Ткань гофре БА 45 мм (смотри заявку), 365см","Оранжевый"]
[null,null,null,null,null,null,null,null,null,null,null,null,null,null,null,null,null,null,null,null,"Ткань плиссе 32 мм (смотри заявку), 365см","плиссе","Ткань плиссе 32 мм (смотри заявку), 365см","Оранжевый"]
[null,null,null,null,null,null,null,null,null,null,null,null,null,null,null,null,null,null,null,null,"Тревира Силк 0225 белый, 230 см","плиссе","Тревира Силк 0225 белый, 230 см","Белый"]
[null,null,null,null,null,null,null,null,null,null,null,null,null,null,null,null,null,null,null,null,"Тревира Силк 1608 светло-серый, 230 см","плиссе","Тревира Силк 1608 светло-серый, 230 см","Св. серый"]
[null,null,null,null,null,null,null,null,null,null,null,null,null,null,null,null,null,null,null,null,"Тревира Силк 2261 бежевый, 230 см","плиссе","Тревира Силк 2261 бежевый, 230 см","Бежевый"]
[null,null,null,null,null,null,null,null,null,null,null,null,null,null,null,null,null,null,null,null,"Тревира Силк 3499 оранжевый, 230 см","плиссе","Тревира Силк 3499 оранжевый, 230 см","Оранжевый"]
[null,null,null,null,null,null,null,null,null,null,null,null,null,null,null,null,null,null,null,null,"Тревира Силк 4292 терракотовый, 230 см","плиссе","Тревира Силк 4292 терракотовый, 230 см","Абрикос"]
[null,null,null,null,null,null,null,null,null,null,null,null,null,null,null,null,null,null,null,null,"Тревира Силк 5302 синий, 230 см","плиссе","Тревира Силк 5302 синий, 230 см","Синий"]
[null,null,null,null,null,null,null,null,null,null,null,null,null,null,null,null,null,null,null,null,"Тревира Силк 5586 зеленый, 230 см","плиссе","Тревира Силк 5586 зеленый, 230 см","Желто-зеленый"]
[null,null,null,null,null,null,null,null,null,null,null,null,null,null,null,null,null,null,null,null,"Тревира Силк 5713 фисташковый, 230 см","плиссе","Тревира Силк 5713 фисташковый, 230 см","Песочный"]
[null,null,null,null,null,null,null,null,null,null,null,null,null,null,null,null,null,null,null,null,"Троя 2872 бронза 225 см","плиссе","Троя 2872 бронза 225 см","Бежевый"]
[null,null,null,null,null,null,null,null,null,null,null,null,null,null,null,null,null,null,null,null,"Троя 7013 белый/серебро, 225см","плиссе","Троя 7013 белый/серебро, 225см","Белый"]
[null,null,null,null,null,null,null,null,null,null,null,null,null,null,null,null,null,null,null,null,"Троя 7125 белый/золото, 225см","плиссе","Троя 7125 белый/золото, 225см","Бежевый"]
[null,null,null,null,null,null,null,null,null,null,null,null,null,null,null,null,null,null,null,null,"Утро 0225 белый, 235см","плиссе","Утро 0225 белый, 235см","Белый"]
[null,null,null,null,null,null,null,null,null,null,null,null,null,null,null,null,null,null,null,null,"Фарос 0225 белый, 235см","плиссе","Фарос 0225 белый, 235см","Белый"]
[null,null,null,null,null,null,null,null,null,null,null,null,null,null,null,null,null,null,null,null,"Фреш 3204 желтый, 235см","плиссе","Фреш 3204 желтый, 235см","Белый"]
[null,null,null,null,null,null,null,null,null,null,null,null,null,null,null,null,null,null,null,null,"Фреш 5992 зеленый, 235см","плиссе","Фреш 5992 зеленый, 235см","Белый"]
[null,null,null,null,null,null,null,null,null,null,null,null,null,null,null,null,null,null,null,null,"Харизма 1908 черно-белый, 210см","плиссе","Харизма 1908 черно-белый, 210см","Белый"]
[null,null,null,null,null,null,null,null,null,null,null,null,null,null,null,null,null,null,null,null,"Чарли 1908 черный, 280 см","плиссе","Чарли 1908 черный, 280 см","Черный"]
[null,null,null,null,null,null,null,null,null,null,null,null,null,null,null,null,null,null,null,null,"Чарли 2406 бежевый, 280 см","плиссе","Чарли 2406 бежевый, 280 см","Белый"]
[null,null,null,null,null,null,null,null,null,null,null,null,null,null,null,null,null,null,null,null,"Челси 0225 белый,  225см","плиссе","Челси 0225 белый,  225см","Белый"]
[null,null,null,null,null,null,null,null,null,null,null,null,null,null,null,null,null,null,null,null,"Челси 0225 белый, 32 мм, 300 см","плиссе","Челси 0225 белый, 32 мм, 300 см","Белый"]
[null,null,null,null,null,null,null,null,null,null,null,null,null,null,null,null,null,null,null,null,"Челси 1852 серый, 32 мм, 300 см","плиссе","Челси 1852 серый, 32 мм, 300 см","Серый"]
[null,null,null,null,null,null,null,null,null,null,null,null,null,null,null,null,null,null,null,null,"Челси 1881 т. серый, 32 мм, 300 см","плиссе","Челси 1881 т. серый, 32 мм, 300 см","Серый"]
[null,null,null,null,null,null,null,null,null,null,null,null,null,null,null,null,null,null,null,null,"Челси 1907 светло серый,  225см","плиссе","Челси 1907 светло серый,  225см","Св. серый"]
[null,null,null,null,null,null,null,null,null,null,null,null,null,null,null,null,null,null,null,null,"Челси 2407 бежевый,  225см","плиссе","Челси 2407 бежевый,  225см","Песочный"]
[null,null,null,null,null,null,null,null,null,null,null,null,null,null,null,null,null,null,null,null,"Челси 2875 каштан,  225см","плиссе","Челси 2875 каштан,  225см","Коричневый"]
[null,null,null,null,null,null,null,null,null,null,null,null,null,null,null,null,null,null,null,null,"Челси 3465 желтый,  225см","плиссе","Челси 3465 желтый,  225см","Оранжевый"]
[null,null,null,null,null,null,null,null,null,null,null,null,null,null,null,null,null,null,null,null,"Челси 4082 роза,  225см","плиссе","Челси 4082 роза,  225см","Белый"]
[null,null,null,null,null,null,null,null,null,null,null,null,null,null,null,null,null,null,null,null,"Челси 5302 океан,  225см","плиссе","Челси 5302 океан,  225см","Синий"]
[null,null,null,null,null,null,null,null,null,null,null,null,null,null,null,null,null,null,null,null,"Честер 0225 белый, 230см","плиссе","Честер 0225 белый, 230см","Белый"]
[null,null,null,null,null,null,null,null,null,null,null,null,null,null,null,null,null,null,null,null,"Честер 2261 бежевый, 230см","плиссе","Честер 2261 бежевый, 230см","Песочный"]
[null,null,null,null,null,null,null,null,null,null,null,null,null,null,null,null,null,null,null,null,"Шанхай 4291 терракота, 235см","плиссе","Шанхай 4291 терракота, 235см","Оранжевый"]
[null,null,null,null,null,null,null,null,null,null,null,null,null,null,null,null,null,null,null,null,"Шанхай 5885 оливковый, 235см","плиссе","Шанхай 5885 оливковый, 235см","Черный"]
[null,null,null,null,null,null,null,null,null,null,null,null,null,null,null,null,null,null,null,null,"Шарм 0225 белый 200см","плиссе","Шарм 0225 белый 200см","Белый"]
[null,null,null,null,null,null,null,null,null,null,null,null,null,null,null,null,null,null,null,null,"Шарм 1608 св. серый 200см","плиссе","Шарм 1608 св. серый 200см","Св. серый"]
[null,null,null,null,null,null,null,null,null,null,null,null,null,null,null,null,null,null,null,null,"Шарм 2259 магнолия 200 см","плиссе","Шарм 2259 магнолия 200 см","Бежевый"]
[null,null,null,null,null,null,null,null,null,null,null,null,null,null,null,null,null,null,null,null,"Шарм 2261 св. бежевый 200см","плиссе","Шарм 2261 св. бежевый 200см","Бежевый"]
[null,null,null,null,null,null,null,null,null,null,null,null,null,null,null,null,null,null,null,null,"Шарм 2406 бежевый 200 см","плиссе","Шарм 2406 бежевый 200 см","Бежевый"]
[null,null,null,null,null,null,null,null,null,null,null,null,null,null,null,null,null,null,null,null,"Шарм 4240 персик 200 см","плиссе","Шарм 4240 персик 200 см","Абрикос"]
[null,null,null,null,null,null,null,null,null,null,null,null,null,null,null,null,null,null,null,null,"Шарм 5173 голубой 200 см","плиссе","Шарм 5173 голубой 200 см","Св.синий"]
[null,null,null,null,null,null,null,null,null,null,null,null,null,null,null,null,null,null,null,null,"Шарм 5608 бирюзовый 200 см","плиссе","Шарм 5608 бирюзовый 200 см","Св.синий"]
[null,null,null,null,null,null,null,null,null,null,null,null,null,null,null,null,null,null,null,null,"ШАТО 0225 белый  225 см","плиссе","ШАТО 0225 белый  225 см","Белый"]
[null,null,null,null,null,null,null,null,null,null,null,null,null,null,null,null,null,null,null,null,"ШАТО 1881 серый 225 см","плиссе","ШАТО 1881 серый 225 см","Серый"]
[null,null,null,null,null,null,null,null,null,null,null,null,null,null,null,null,null,null,null,null,"ШАТО 4454 бордо 225 см","плиссе","ШАТО 4454 бордо 225 см","Бордо"]
[null,null,null,null,null,null,null,null,null,null,null,null,null,null,null,null,null,null,null,null,"ШАТО 5612 бирюзовый  225 см","плиссе","ШАТО 5612 бирюзовый  225 см","Желто-зеленый"]
[null,null,null,null,null,null,null,null,null,null,null,null,null,null,null,null,null,null,null,null,"Южная ночь 1881 серо-черный, 235см","плиссе","Южная ночь 1881 серо-черный, 235см","Черный"]
[null,null,null,null,null,null,null,null,null,null,null,null,null,null,null,null,null,null,null,null,"Ямайка 1608 св. серый, 225 см","плиссе","Ямайка 1608 св. серый, 225 см","Св. серый"]
[null,null,null,null,null,null,null,null,null,null,null,null,null,null,null,null,null,null,null,null,"Ямайка 1852 серый, 32 мм, 300 см","плиссе","Ямайка 1852 серый, 32 мм, 300 см","Серый"]
[null,null,null,null,null,null,null,null,null,null,null,null,null,null,null,null,null,null,null,null,"Ямайка 1854 графит, 225 см","плиссе","Ямайка 1854 графит, 225 см","Серый"]
[null,null,null,null,null,null,null,null,null,null,null,null,null,null,null,null,null,null,null,null,"Ямайка 1881 т. серый, 225 см","плиссе","Ямайка 1881 т. серый, 225 см","Серый"]
[null,null,null,null,null,null,null,null,null,null,null,null,null,null,null,null,null,null,null,null,"Ямайка 2261 св. бежевый, 225 см","плиссе","Ямайка 2261 св. бежевый, 225 см","Бежевый"]
[null,null,null,null,null,null,null,null,null,null,null,null,null,null,null,null,null,null,null,null,"Ямайка 2261 св. бежевый, 32 мм, 300 см","плиссе","Ямайка 2261 св. бежевый, 32 мм, 300 см","Бежевый"]
[null,null,null,null,null,null,null,null,null,null,null,null,null,null,null,null,null,null,null,null,"Ямайка 2406 бежевый 225 см","плиссе","Ямайка 2406 бежевый 225 см","Бежевый"]
[null,null,null,null,null,null,null,null,null,null,null,null,null,null,null,null,null,null,null,null,"Ямайка 2406 бежевый, 32 мм, 300 см","плиссе","Ямайка 2406 бежевый, 32 мм, 300 см","Песочный"]
[null,null,null,null,null,null,null,null,null,null,null,null,null,null,null,null,null,null,null,null,"Ямайка 2552 кремовый, 225 см","плиссе","Ямайка 2552 кремовый, 225 см","Абрикос"]
[null,null,null,null,null,null,null,null,null,null,null,null,null,null,null,null,null,null,null,null,"Ямайка 2872 шоколад, 225 см","плиссе","Ямайка 2872 шоколад, 225 см","Коричневый"]
[null,null,null,null,null,null,null,null,null,null,null,null,null,null,null,null,null,null,null,null,"Ямайка 2875 каштан, 225 см","плиссе","Ямайка 2875 каштан, 225 см","Коричневый"]
[null,null,null,null,null,null,null,null,null,null,null,null,null,null,null,null,null,null,null,null,"Ямайка 4831 лаванда, 225 см","плиссе","Ямайка 4831 лаванда, 225 см","Лиловый"]
[null,null,null,null,null,null,null,null,null,null,null,null,null,null,null,null,null,null,null,null,"Ямайка 4966 баклажан, 225 см","плиссе","Ямайка 4966 баклажан, 225 см","Лиловый"]
[null,null,null,null,null,null,null,null,null,null,null,null,null,null,null,null,null,null,null,null,"Ямайка 5501 св. зеленый, 225 см","плиссе","Ямайка 5501 св. зеленый, 225 см","св зеленый"]
[null,null,null,null,null,null,null,null,null,null,null,null,null,null,null,null,null,null,null,null,"Ямайка 5612 бирюзовый, 225 см","плиссе","Ямайка 5612 бирюзовый, 225 см","Желто-зеленый"]
[null,null,null,null,null,null,null,null,null,null,null,null,null,null,null,null,null,null,null,null,"Ясмин 1852 серый, 230 см","плиссе","Ясмин 1852 серый, 230 см","Серый"]
[null,null,null,null,null,null,null,null,null,null,null,null,null,null,null,null,null,null,null,null,"Ясмин 2259 магнолия, 230 см","плиссе","Ясмин 2259 магнолия, 230 см","Бежевый"]
[null,null,null,null,null,null,null,null,null,null,null,null,null,null,null,null,null,null,null,null,"Ясмин 2870 коричневый, 230 см","плиссе","Ясмин 2870 коричневый, 230 см","Коричневый"]

{"sheet":"Расчет цены PR1","index":2,"n_rows":73,"n_cols":23,"rows_kept":73,"cut":false,"hidden":false,"merged":[[33,0,33,1],[34,0,34,1],[13,0,13,1],[23,0,23,1],[24,0,24,1],[25,0,25,1],[26,0,26,1],[27,0,27,1],[28,0,28,1],[32,0,32,1],[14,0,14,1],[15,0,15,1],[16,0,16,1],[17,0,17,1],[18,0,18,1],[19,0,19,1],[31,0,31,1],[10,6,10,7],[7,2,7,3],[8,2,8,3],[9,4,9,5],[9,6,9,7],[20,0,20,1],[21,0,21,1],[22,0,22,1],[29,0,29,1],[30,0,30,1]]}
[]
["№ заказа:",{"$f":"'PR1'!B2","v":0}]
[null,null,null,null,null,null,null,null,"PR1",{"$f":"IF(AND(C4>199,C4<500),\"- 2\",IF(AND(C4>499,C4<900),\"- 3\",IF(AND(C4>899,C4<1201),\"- 4\",0)))","v":0},null,null,null,null,"изделия",null,null,null,{"$f":"P3","v":0}]
[null,"Ширина:",{"$f":"'PR1'!C4","v":0},"мм.",null,null,null,null,null,null,null,null,null,null,"проема",null,"угол",{"$f":"ATAN((C6-G6)/C4)","v":{"$error":"#DIV/0!"}},"Кронштейн потолочный",0,0,0,0]
[null,{"$f":"IF(AND(C4<200,C4>0),\"ВНИМАНИЕ!!!Минимальная ширина 200 мм\",IF(C4>1200,\"ВНИМАНИЕ!!!Максимальная ширина 1200 мм\",0))","v":0},null,null,null,null,null,null,null,null,null,null,null,null,null,{"$f":"VLOOKUP(F8,$T$4:$U$615,2,0)","v":0},"длина наклона",{"$f":"ROUND(SQRT(((C6-G6)^2)+(C4^2)),3)","v":0},"Кронштейн на штапик","Акапулько 4300 терракота, 235см","плиссе","Акапулько 4300 терракота, 235см","Оранжевый"]
[null,"Высота:",{"$f":"'PR1'!C6","v":0},"мм.",null,null,null,null,null,null,null,null,null,null,null,null,"угол танг.",{"$f":"(90-C10)*3.14/180","v":1.57},null,"Акапулько 5173 голубой, 235 см","плиссе","Акапулько 5173 голубой, 235 см","Зеленый"]
[null,{"$f":"IF(C6>1500,\"ВНИМАНИЕ!!!Максимальная высота 1500 мм\",0)","v":0},null,null,null,null,null,null,null,null,null,null,null,null,null,null,"betta",{"$f":"34/TAN(R6)","v":2.7075116749588547E-2},"Кронштейн подоконный","Акварель 1608 св.серый, 235см","плиссе","Акварель 1608 св.серый, 235см","Белый"]
[null,"Кронштейн:",{"$f":"'PR1'!C8:D8","v":0},null,null,null,null,null,null,null,null,null,null,null,null,null,null,null,"Кронштейн на штапик","Акварель 2259 св.бежевый, 235см","плиссе","Акварель 2259 св.бежевый, 235см","Белый"]
[null,null,null,null,null,null,null,null,null,null,null,null,null,null,null,null,null,null,null,"Батик 1608 серый 235см","плиссе","Батик 1608 серый 235см","Белый"]
[null,"кол-во:",{"$f":"'PR1'!C10","v":0},"шт.","Размеры:",null,{"$f":"'PR1'!G10:H10","v":0},null,null,null,null,null,null,null,null,null,null,null,0,"Батик 2261 бежевый 200 см","плиссе","Батик 2261 бежевый 200 см","Белый"]
[null,0,null,null,null,null,null,null,null,null,null,null,null,null,null,null,null,null,"плиссе","Джакарта 1881 черно-коричневый, 235см","плиссе","Джакарта 1881 черно-коричневый, 235см","Черный"]
[null,null,null,null,null,null,null,null,null,null,null,null,null,null,null,null,null,null,"гофре","Джакарта 2872 коричневый 235 см","плиссе","Джакарта 2872 коричневый 235 см","Коричневый"]
[null,null,null,null,null,null,null,null,null,null,null,null,null,null,null,null,null,null,0,"Исфахан 1608 св.серый, 235см","плиссе","Исфахан 1608 св.серый, 235см","Белый"]
["Наименование",null,"Кол-во м.п.","Кол-во шт.","Цена","Стоимость",null,null,null,null,null,null,null,null,null,null,null,"Потолочный/подоконный","Исфахан 2746 св.коричневый, 235см","плиссе","Исфахан 2746 св.коричневый, 235см","Песочный"]
["Профиль неподвижный R, белый",null,{"$f":"IF(AND(C4>0,C6>0,C10>0,G10=\"изделия\"),(C4-7)*0.001,IF(AND(C4>0,C6>0,C10>0,G10=\"проема\"),(C4-11)*0.001,0))","v":0},{"$f":"C10","v":0},null,{"$f":"C15*D15*E15","v":0},null,null,null,null,null,null,null,null,null,null,null,"Пластиковый","Исфахан 2872 коричневый 235 см","плиссе","Исфахан 2872 коричневый 235 см","Коричневый"]
["Профиль подвижный R, белый",null,{"$f":"IF(AND(C4>0,C6>0,C10>0),C15,0)","v":0},{"$f":"C10","v":0},null,{"$f":"C16*D16*E16","v":0},null,null,null,null,null,null,null,null,null,null,null,null,"Исфахан 4200 розовый, 235см","плиссе","Исфахан 4200 розовый, 235см","Розовый"]
["Лента 16x0.18, 0225",null,{"$f":"IF(AND(C4>0,C6>0,C10>0),C16-0.058,0)","v":0},{"$f":"C10","v":0},null,{"$f":"C17*D17*E17","v":0},null,null,null,null,null,null,null,null,null,null,null,null,"Исфахан 2406 бежевый, 235см","плиссе","Исфахан 2406 бежевый, 235см","Песочный"]
["Полоса пластиковая самоклеящаяся 16мм, прозрачная",null,{"$f":"IF(AND(C4>0,C6>0,C10>0),(C4-3)*0.001,0)","v":0},{"$f":"IF(AND(C4>0,C6>0,C10>0),C10*2,0)","v":0},null,{"$f":"C18*D18*E18","v":0},null,null,null,null,null,null,null,null,null,null,null,null,"Йорк 0225 белый, 235см","плиссе","Йорк 0225 белый, 235см","Белый"]
["Крышка д/проф неподвижного R, белая",null,null,{"$f":"C10*2","v":0},null,{"$f":"D19*E19","v":0},null,null,null,null,null,null,null,null,null,null,null,null,"Йорк 2406 бежевый, 235см","плиссе","Йорк 2406 бежевый, 235см","Бежевый"]
["Крышка д/проф подвижного R, белая",null,null,{"$f":"C10*2","v":0},null,{"$f":"D20*E20","v":0},null,null,null,null,null,null,null,null,null,null,null,null,"Йорк 4858 черный/роза, 235см","плиссе","Йорк 4858 черный/роза, 235см","Лиловый"]
["Суппорт R, белый",null,null,{"$f":"IF(AND(C4>199,C4<500),C10*2*2,IF(AND(C4>499,C4<900),C10*3*2,IF(AND(C4>899,C4<1201),C10*4*2,0)))","v":0},null,{"$f":"D21*E21","v":0},null,null,null,null,null,null,null,null,null,null,null,null,"Капри 0225 белый, 235-240см","плиссе","Капри 0225 белый, 235-240см","Белый"]
["Пружина 0,5х40",null,null,{"$f":"IF(AND(C4>199,C4<280),0,IF(AND(C4>279,C4<500),C10*2,IF(AND(C4>499,C4<1201),C10*2,0)))","v":0},null,{"$f":"D22*E22","v":0},null,null,null,null,null,null,null,null,null,null,null,null,"Капри 1608 серый, 235-240см","плиссе","Капри 1608 серый, 235-240см","Серый"]
["Саморез, 2.9х6,5 мм DIN7981 остроконечный",null,null,{"$f":"IF(AND(C4>199,C4<280),0,IF(AND(C4>279,C4<500),C10*2,IF(AND(C4>499,C4<1201),C10*2,0)))","v":0},null,{"$f":"D23*E23","v":0},null,null,null,null,null,null,null,null,null,null,null,null,"Капри 2549 кремовый , 230 см","плиссе","Капри 2549 кремовый , 230 см","Бежевый"]
["Шнур 0,8мм, белый new",null,{"$f":"IF(AND(C4>199,C4<500),(((C4-50)*2)+(C4-100)+(C6*2)+200)*0.001,IF(AND(C4>499,C4<900),(C4+C6+200)*0.001,IF(AND(C4>899,C4<1201),(C4+C6+200)*0.001,0)))","v":0},{"$f":"IF(C4<=500,C10,IF(C4>500,C10*2,0))","v":0},null,{"$f":"C24*D24*E24","v":0},null,null,null,null,null,null,null,null,null,null,null,null,"Капри 3209 желтый, 235-240см","плиссе","Капри 3209 желтый, 235-240см","Песочный"]
["Шнур 0,8мм, белый new",null,{"$f":"IF(AND(C4>499,C4<900),(C4+C6+300)*0.001,IF(AND(C4>899,C4<1201),(C4+C6+300)*0.001,0))","v":0},{"$f":"IF(C25>0,C10*2,0)","v":0},null,{"$f":"C25*D25*E25","v":0},null,null,null,null,null,null,null,null,null,null,null,null,"Капри 4831 лаванда, 235-240см","плиссе","Капри 4831 лаванда, 235-240см","Лиловый"]
["Пластина для ручки R, белая",null,null,{"$f":"IF(C4<801,1*C10,IF(C4>800,2*C10,0))","v":0},null,{"$f":"D26*E26","v":0},null,null,null,null,null,null,null,null,null,null,null,null,"Капри 5102 голубой, 235-240см","плиссе","Капри 5102 голубой, 235-240см","Св.синий"]
["Ручка R,белая",null,null,{"$f":"IF(C4<801,1*C10,IF(C4>800,2*C10,0))","v":0},null,0,null,null,null,null,null,null,null,null,null,null,null,null,"Капри Дотс 0225 белый 240 см","плиссе","Капри Дотс 0225 белый 240 см","Белый"]
["Саморез, 2.9х6,5 мм DIN7981 остроконечный",null,null,{"$f":"IF(C4<801,1*C10,IF(C4>800,2*C10,0))","v":0},null,0,null,null,null,null,null,null,null,null,null,null,null,null,"Капри Дотс 4803 лиловый 240 см","плиссе","Капри Дотс 4803 лиловый 240 см","Лиловый"]
["Кронштейн потолочный R, белый",null,null,{"$f":"IF(C4<600,2*C10,IF(C4>599,3*C10,0))","v":0},null,0,null,null,null,null,null,null,null,null,null,null,null,null,"Капри Дотс 5102 голубой 240 см","плиссе","Капри Дотс 5102 голубой 240 см","Св.зеленый"]
["Опора кронштейна подоконного R, белая",null,null,{"$f":"C10*2","v":0},null,0,null,null,null,null,null,null,null,null,null,null,null,null,"Кент 0225 белый, 235см","плиссе","Кент 0225 белый, 235см","Белый"]
["Кронштейн подоконный R, белый",null,null,{"$f":"C10*4","v":0},null,0,null,null,null,null,null,null,null,null,null,null,null,null,"Кент 1881 черный, 235см","плиссе","Кент 1881 черный, 235см","Черный"]
["Саморез, 2.9х6,5 мм DIN7981 остроконечный",null,null,{"$f":"IF(C4<=600,6*C10,IF(C4>600,7*C10,0))","v":0},null,0,null,null,null,null,null,null,null,null,null,null,null,null,"Кент 2406 бежевый, 235см","плиссе","Кент 2406 бежевый, 235см","Бежевый"]
["Кронштейн пластиковый R, белый",null,null,{"$f":"IF(AND(C8=\"Пластиковый\",C4<=600),4*C10,IF(AND(C8=\"Пластиковый\",C4>600),5*C10,0))","v":0},null,0,null,null,null,null,null,null,null,null,null,null,null,null,"Космо 0225 белый, 205см","плиссе","Космо 0225 белый, 205см","Белый"]
["Крышка кронштейна пластикового R, белая",null,null,{"$f":"IF(AND(C8=\"Пластиковый\",C4<=600),4*C10,IF(AND(C8=\"Пластиковый\",C4>600),5*C10,0))","v":0},null,0,null,null,null,null,null,null,null,null,null,null,null,null,"Космо 1608 серебристо-серый, 205см","плиссе","Космо 1608 серебристо-серый, 205см","Белый"]
["Саморез, 2.9х9.5 мм DIN7981 ZN",null,null,{"$f":"IF(AND(C4<=600,C8=\"Пластиковый\"),8*C10,IF(AND(C4>600,C8=\"Пластиковый\"),10*C10,0))","v":0},null,0,null,null,null,null,null,null,null,null,null,null,null,null,"Космо 3210 желтый, 205см","плиссе","Космо 3210 желтый, 205см","Песочный"]
[null,null,null,null,"Всего:",{"$f":"SUM(F15:F35)","v":0}]
[null,null,null,null,null,null,null,null,null,null,null,null,null,null,null,null,null,null,null,"Космо 3499 оранжевый, 205см","плиссе","Космо 3499 оранжевый, 205см","Оранжевый"]
[null,null,null,null,null,null,null,null,null,null,null,null,null,null,null,null,null,null,null,"Краш 0225 белый, 225см","плиссе","Краш 0225 белый, 225см","Белый"]
[null,null,null,null,null,null,null,null,null,null,null,null,null,null,null,null,null,null,null,"Краш 5501 светло-зеленый, 225см","плиссе","Краш 5501 светло-зеленый, 225см","Св.зеленый"]
[null,null,null,null,null,null,null,null,null,null,null,null,null,null,null,null,null,null,null,"Краш металл 1881 т.серый, 225см","плиссе","Краш металл 1881 т.серый, 225см","Серый"]
[null,null,null,null,null,null,null,null,null,null,null,null,null,null,null,null,null,null,null,"Краш перла 0225 белый,  225см","плиссе","Краш перла 0225 белый,  225см","Белый"]
[null,null,null,null,null,null,null,null,null,null,null,null,null,null,null,null,null,null,null,"Краш перла 1710 серый, 225см","плиссе","Краш перла 1710 серый, 225см","Серый"]
[null,null,null,null,null,null,null,null,null,null,null,null,null,null,null,null,null,null,null,"Краш перла 1908 черный, 225см","плиссе","Краш перла 1908 черный, 225см","Черный"]
[null,null,null,null,null,null,null,null,null,null,null,null,null,null,null,null,null,null,null,"Краш перла 2259 магнолия, 225см","плиссе","Краш перла 2259 магнолия, 225см","Бежевый"]
[null,null,null,null,null,null,null,null,null,null,null,null,null,null,null,null,null,null,null,"Краш перла 2406 бежевый, 225см","плиссе","Краш перла 2406 бежевый, 225см","Бежевый"]
[null,null,null,null,null,null,null,null,null,null,null,null,null,null,null,null,null,null,null,"Краш перла 2746 т.бежевый, 225см","плиссе","Краш перла 2746 т.бежевый, 225см","Бежевый"]
[null,null,null,null,null,null,null,null,null,null,null,null,null,null,null,null,null,null,null,"Краш перла 2868 св.коричневый,  225см","плиссе","Краш перла 2868 св.коричневый,  225см","Бежевый"]
[]
[null,null,null,null,null,null,null,null,null,null,null,null,null,null,null,null,null,null,null,"Краш перла 2870 коричневый, 225см","плиссе","Краш перла 2870 коричневый, 225см","Коричневый"]
[null,null,null,null,null,null,null,null,null,null,null,null,null,null,null,null,null,null,null,"Краш перла 3210 св.желтый,  225см","плиссе","Краш перла 3210 св.желтый,  225см","Песочный"]
[null,null,null,null,null,null,null,null,null,null,null,null,null,null,null,null,null,null,null,"Краш перла 3499 шафран, 225см","плиссе","Краш перла 3499 шафран, 225см","Оранжевый"]
[null,null,null,null,null,null,null,null,null,null,null,null,null,null,null,null,null,null,null,"Краш перла 4063 св.бежевый, 225см","плиссе","Краш перла 4063 св.бежевый, 225см","Бежевый"]
[null,null,null,null,null,null,null,null,null,null,null,null,null,null,null,null,null,null,null,"Краш перла 4077 томат, 225см","плиссе","Краш перла 4077 томат, 225см","Розовый"]
[null,null,null,null,null,null,null,null,null,null,null,null,null,null,null,null,null,null,null,"Краш перла 4158 розовый, 225см","плиссе","Краш перла 4158 розовый, 225см","Розовый"]
[null,null,null,null,null,null,null,null,null,null,null,null,null,null,null,null,null,null,null,"Краш перла 4202 малина, 225см","плиссе","Краш перла 4202 малина, 225см","Розовый"]
[null,null,null,null,null,null,null,null,null,null,null,null,null,null,null,null,null,null,null,"Краш перла 4221 бледно-желтый, 225см","плиссе","Краш перла 4221 бледно-желтый, 225см","Песочный"]
[null,null,null,null,null,null,null,null,null,null,null,null,null,null,null,null,null,null,null,"Краш перла 4292 терракота, 225см","плиссе","Краш перла 4292 терракота, 225см","Оранжевый"]
[null,null,null,null,null,null,null,null,null,null,null,null,null,null,null,null,null,null,null,"Краш перла 4523 красный, 225см","плиссе","Краш перла 4523 красный, 225см","Розовый"]
[null,null,null,null,null,null,null,null,null,null,null,null,null,null,null,null,null,null,null,"Краш перла 4858 лиловый, 225см","плиссе","Краш перла 4858 лиловый, 225см","Лиловый"]
[null,null,null,null,null,null,null,null,null,null,null,null,null,null,null,null,null,null,null,"Краш перла 5173 голубой, 225см","плиссе","Краш перла 5173 голубой, 225см","Св.синий"]
[null,null,null,null,null,null,null,null,null,null,null,null,null,null,null,null,null,null,null,"Краш перла 5302 синий, 225см","плиссе","Краш перла 5302 синий, 225см","Синий"]
[null,null,null,null,null,null,null,null,null,null,null,null,null,null,null,null,null,null,null,"Краш перла 5501 св.зеленый, 225см","плиссе","Краш перла 5501 св.зеленый, 225см","Св.зеленый"]
[null,null,null,null,null,null,null,null,null,null,null,null,null,null,null,null,null,null,null,"Краш перла 5586 зеленый,  225см","плиссе","Краш перла 5586 зеленый,  225см","Св.зеленый"]
[null,null,null,null,null,null,null,null,null,null,null,null,null,null,null,null,null,null,null,"Краш перла 5612 бирюзовый, 225см","плиссе","Краш перла 5612 бирюзовый, 225см","Желто-зеленый"]
[null,null,null,null,null,null,null,null,null,null,null,null,null,null,null,null,null,null,null,"Краш, 4064 бежевый, 225см","плиссе","Краш, 4064 бежевый, 225см","Абрикос"]
[null,null,null,null,null,null,null,null,null,null,null,null,null,null,null,null,null,null,null,"Креп 0225 белый, 235см","плиссе","Креп 0225 белый, 235см","Белый"]
[null,null,null,null,null,null,null,null,null,null,null,null,null,null,null,null,null,null,null,"Креп 1608 св.серый, 235см","плиссе","Креп 1608 св.серый, 235см","Св. серый"]
[null,null,null,null,null,null,null,null,null,null,null,null,null,null,null,null,null,null,null,"Креп 1908 черный, 235см","плиссе","Креп 1908 черный, 235см","Черный"]
[null,null,null,null,null,null,null,null,null,null,null,null,null,null,null,null,null,null,null,"Креп 2406 св.бежевый, 235см","плиссе","Креп 2406 св.бежевый, 235см","Бежевый"]
[null,null,null,null,null,null,null,null,null,null,null,null,null,null,null,null,null,null,null,"Креп 2746 бежевый, 235см","плиссе","Креп 2746 бежевый, 235см","Песочный"]
[null,null,null,null,null,null,null,null,null,null,null,null,null,null,null,null,null,null,null,"Креп 2870 коричневый, 235см","плиссе","Креп 2870 коричневый, 235см","Коричневый"]
[null,null,null,null,null,null,null,null,null,null,null,null,null,null,null,null,null,null,null,"Креп 3204 лимонный, 235см","плиссе","Креп 3204 лимонный, 235см","Песочный"]
[null,null,null,null,null,null,null,null,null,null,null,null,null,null,null,null,null,null,null,"Креп 3210 св.желтый, 235см","плиссе","Креп 3210 св.желтый, 235см","Песочный"]

{"sheet":"Расчет цены PR2 ","index":3,"n_rows":39,"n_cols":23,"rows_kept":39,"cut":false,"hidden":false,"merged":[[13,0,13,1],[7,2,7,3],[8,2,8,3],[9,4,9,5],[9,6,9,7],[10,6,10,7],[23,0,23,1],[14,0,14,1],[15,0,15,1],[16,0,16,1],[17,0,17,1],[18,0,18,1],[19,0,19,1],[20,0,20,1],[21,0,21,1],[22,0,22,1],[29,0,29,1],[30,0,30,1],[31,0,31,1],[24,0,24,1],[25,0,25,1],[26,0,26,1],[27,0,27,1],[28,0,28,1]]}
[]
["№ заказа:",{"$f":"'PR2'!B2","v":0}]
[null,null,null,null,null,null,null,null,"PR2",{"$f":"IF(AND(C4>199,C4<500),\"- 2\",IF(AND(C4>499,C4<900),\"- 3\",IF(AND(C4>899,C4<1201),\"- 4\",0)))","v":0},null,null,null,null,"изделия",null,null,null,{"$f":"P3","v":0}]
[null,"Ширина:",{"$f":"'PR2'!C4","v":0},"мм.",null,null,null,null,null,null,null,null,null,null,"проема",null,"угол",{"$f":"ATAN((C6-G6)/C4)","v":{"$error":"#DIV/0!"}},"Кронштейн потолочный",0,0,0,0]
[null,{"$f":"IF(AND(C4<200,C4>0),\"ВНИМАНИЕ!!!Минимальная ширина 200 мм\",IF(C4>1200,\"ВНИМАНИЕ!!!Максимальная ширина 1200 мм\",0))","v":0},null,null,null,null,null,null,null,null,null,null,null,null,null,{"$f":"VLOOKUP(F8,$T$4:$U$615,2,0)","v":0},"длина наклона",{"$f":"ROUND(SQRT(((C6-G6)^2)+(C4^2)),3)","v":0},"Кронштейн на штапик","Акапулько 4300 терракота, 235см","плиссе","Акапулько 4300 терракота, 235см","Оранжевый"]
[null,"Высота:",{"$f":"'PR2'!C6","v":0},"мм.",null,null,null,null,null,null,null,null,null,null,null,null,"угол танг.",{"$f":"(90-C10)*3.14/180","v":1.57},null,"Акапулько 5173 голубой, 235 см","плиссе","Акапулько 5173 голубой, 235 см","Зеленый"]
[null,{"$f":"IF(C6>1500,\"ВНИМАНИЕ!!!Максимальная высота 1500 мм\",0)","v":0},null,null,null,null,null,null,null,null,null,null,null,null,null,null,"betta",{"$f":"34/TAN(R6)","v":2.7075116749588547E-2},"Кронштейн подоконный","Акварель 1608 св.серый, 235см","плиссе","Акварель 1608 св.серый, 235см","Белый"]
[null,"Кронштейн:",{"$f":"'PR2'!C8:D8","v":0},null,null,null,null,null,null,null,null,null,null,null,null,null,null,null,"Кронштейн на штапик","Акварель 2259 св.бежевый, 235см","плиссе","Акварель 2259 св.бежевый, 235см","Белый"]
[null,null,null,null,null,null,null,null,null,null,null,null,null,null,null,null,null,null,null,"Батик 1608 серый 235см","плиссе","Батик 1608 серый 235см","Белый"]
[null,"кол-во:",{"$f":"'PR2'!C10","v":0},"шт.","Размеры:",null,{"$f":"'PR2'!H10","v":0},null,null,null,null,null,null,null,null,null,null,null,0,"Батик 2261 бежевый 200 см","плиссе","Батик 2261 бежевый 200 см","Белый"]
[null,0,null,null,null,null,null,null,null,null,null,null,null,null,null,null,null,null,"плиссе","Джакарта 1881 черно-коричневый, 235см","плиссе","Джакарта 1881 черно-коричневый, 235см","Черный"]
[null,null,null,null,null,null,null,null,null,null,null,null,null,null,null,null,null,null,"гофре","Джакарта 2872 коричневый 235 см","плиссе","Джакарта 2872 коричневый 235 см","Коричневый"]
[null,null,null,null,null,null,null,null,null,null,null,null,null,null,null,null,null,null,0,"Исфахан 1608 св.серый, 235см","плиссе","Исфахан 1608 св.серый, 235см","Белый"]
["Наименование",null,"Кол-во м.п.","Кол-во шт.","Цена","Стоимость",null,null,null,null,null,null,null,null,null,null,null,"Потолочный/подоконный","Исфахан 2746 св.коричневый, 235см","плиссе","Исфахан 2746 св.коричневый, 235см","Песочный"]
["Профиль подвижный R, белый",null,{"$f":"IF(AND(C4>0,C6>0,C10>0,G10=\"изделия\"),(C4-7)*0.001,IF(AND(C4>0,C6>0,C10>0,G10=\"проема\"),(C4-11)*0.001,0))","v":0},{"$f":"C10*2","v":0},null,{"$f":"C15*D15*E15","v":0},null,null,null,null,null,null,null,null,null,null,null,"Пластиковый","Исфахан 2872 коричневый 235 см","плиссе","Исфахан 2872 коричневый 235 см","Коричневый"]
["Лента 16x0.18, 0225",null,{"$f":"IF(AND(C4>0,C6>0,C10>0,G10=\"изделия\"),(C4-58)*0.001,IF(AND(C4>0,C6>0,C10>0,G10=\"проема\"),(C4-62)*0.001,0))","v":0},{"$f":"C10*2","v":0},null,{"$f":"C16*D16*E16","v":0},null,null,null,null,null,null,null,null,null,null,null,null,"Исфахан 4200 розовый, 235см","плиссе","Исфахан 4200 розовый, 235см","Розовый"]
["Полоса пластиковая самоклеящаяся 16мм, прозрачная",null,{"$f":"IF(AND(C4>0,C6>0,C10>0),C15+0.004,0)","v":0},{"$f":"C10*2","v":0},null,{"$f":"C17*D17*E17","v":0},null,null,null,null,null,null,null,null,null,null,null,null,"Исфахан 2406 бежевый, 235см","плиссе","Исфахан 2406 бежевый, 235см","Песочный"]
["Крышка д/проф подвижного R, белая",null,null,{"$f":"IF(AND(C4>0,C6>0,C10>0),C10*4,0)","v":0},null,{"$f":"D18*E18","v":0},null,null,null,null,null,null,null,null,null,null,null,null,"Йорк 0225 белый, 235см","плиссе","Йорк 0225 белый, 235см","Белый"]
["Суппорт R, белый",null,null,{"$f":"IF(AND(C4>199,C4<500),C10*2*2,IF(AND(C4>499,C4<900),C10*3*2,IF(AND(C4>899,C4<1201),C10*4*2,0)))","v":0},null,{"$f":"D19*E19","v":0},null,null,null,null,null,null,null,null,null,null,null,null,"Йорк 2406 бежевый, 235см","плиссе","Йорк 2406 бежевый, 235см","Бежевый"]
["Пружина 0,5х40",null,null,{"$f":"IF(AND(C4>199,C4<280),0,IF(AND(C4>279,C4<500),C10*2,IF(AND(C4>499,C4<1201),C10*2,0)))","v":0},null,{"$f":"D20*E20","v":0},null,null,null,null,null,null,null,null,null,null,null,null,"Йорк 4858 черный/роза, 235см","плиссе","Йорк 4858 черный/роза, 235см","Лиловый"]
["Саморез, 2.9x6,5 DIN 7981 остроконечный",null,null,{"$f":"IF(AND(C4>199,C4<280),0,IF(AND(C4>279,C4<500),C10*2,IF(AND(C4>499,C4<1201),C10*2,0)))","v":0},null,{"$f":"D21*E21","v":0},null,null,null,null,null,null,null,null,null,null,null,null,"Капри 0225 белый, 235-240см","плиссе","Капри 0225 белый, 235-240см","Белый"]
["Шнур 0,8мм, белый new",null,{"$f":"IF(AND(C4>199,C4<500),((C4*2)+C6+300)*0.001,IF(AND(C4>499,C4<900),(C4+C6+300)*0.001,IF(AND(C4>899,C4<1201),(C4+C6+300)*0.001,0)))","v":0},{"$f":"IF(C4<=500,C10,IF(C4>500,C10*2,0))","v":0},null,{"$f":"C22*D22*E22","v":0},null,null,null,null,null,null,null,null,null,null,null,null,"Капри 1608 серый, 235-240см","плиссе","Капри 1608 серый, 235-240см","Серый"]
["Шнур 0,8мм, белый new",null,{"$f":"IF(AND(C4>199,C4<500),(C4+C6+300)*0.001,IF(AND(C4>499,C4<900),(C4+C6+300)*0.001,IF(AND(C4>899,C4<1201),(C4+C6+300)*0.001,0)))","v":0},{"$f":"IF(C23>0,C10*2,0)","v":0},null,{"$f":"C23*D23*E23","v":0},null,null,null,null,null,null,null,null,null,null,null,null,"Капри 2549 кремовый , 230 см","плиссе","Капри 2549 кремовый , 230 см","Бежевый"]
["Пластина для ручки R, белая",null,null,{"$f":"IF(C4<801,2*C10,IF(C4>800,4*C10,0))","v":0},null,{"$f":"D24*E24","v":0},null,null,null,null,null,null,null,null,null,null,null,null,"Капри 3209 желтый, 235-240см","плиссе","Капри 3209 желтый, 235-240см","Песочный"]
["Ручка R, белая",null,null,{"$f":"IF(C4<801,2*C10,IF(C4>800,4*C10,0))","v":0},null,{"$f":"D25*E25","v":0},null,null,null,null,null,null,null,null,null,null,null,null,"Капри 4831 лаванда, 235-240см","плиссе","Капри 4831 лаванда, 235-240см","Лиловый"]
["Саморез, 2.9x6,5 DIN 7981 остроконечный",null,null,{"$f":"IF(C4<801,2*C10,IF(C4>800,4*C10,0))","v":0},null,{"$f":"D26*E26","v":0},null,null,null,null,null,null,null,null,null,null,null,null,"Капри 5102 голубой, 235-240см","плиссе","Капри 5102 голубой, 235-240см","Св.синий"]
["Опора кронштейна подоконного R, белая",null,null,{"$f":"C10*4","v":0},null,0,null,null,null,null,null,null,null,null,null,null,null,null,"Капри Дотс 0225 белый 240 см","плиссе","Капри Дотс 0225 белый 240 см","Белый"]
["Кронштейн подоконный R, белый",null,null,{"$f":"C10*4","v":0},null,0,null,null,null,null,null,null,null,null,null,null,null,null,"Капри Дотс 4803 лиловый 240 см","плиссе","Капри Дотс 4803 лиловый 240 см","Лиловый"]
["Саморез, 2.9x6,5 DIN 7981 остроконечный",null,null,{"$f":"C10*8","v":0},null,0,null,null,null,null,null,null,null,null,null,null,null,null,"Капри Дотс 5102 голубой 240 см","плиссе","Капри Дотс 5102 голубой 240 см","Св.зеленый"]
["Кронштейн пластиковый R, белый",null,null,{"$f":"IF(C8=\"Пластиковый\",4*C10,0)","v":0},null,0,null,null,null,null,null,null,null,null,null,null,null,null,"Кент 0225 белый, 235см","плиссе","Кент 0225 белый, 235см","Белый"]
["Крышка кронштейна пластикового R, белая",null,null,{"$f":"IF(C8=\"Пластиковый\",4*C10,0)","v":0},null,0,null,null,null,null,null,null,null,null,null,null,null,null,"Кент 1881 черный, 235см","плиссе","Кент 1881 черный, 235см","Черный"]
["Саморез, 2.9х9.5 мм DIN7981 ZN",null,null,{"$f":"IF(C8=\"Пластиковый\",4*C10*2,0)","v":0},null,0,null,null,null,null,null,null,null,null,null,null,null,null,"Кент 2406 бежевый, 235см","плиссе","Кент 2406 бежевый, 235см","Бежевый"]
[null,null,null,null,"Всего:",{"$f":"SUM(F12:F32)","v":0},null,null,null,null,null,null,null,null,null,null,null,null,"Космо 0225 белый, 205см","плиссе","Космо 0225 белый, 205см","Белый"]
[null,null,null,null,null,null,null,null,null,null,null,null,null,null,null,null,null,null,"Космо 1608 серебристо-серый, 205см","плиссе","Космо 1608 серебристо-серый, 205см","Белый"]
[null,null,null,null,null,null,null,null,null,null,null,null,null,null,null,null,null,null,"Космо 3210 желтый, 205см","плиссе","Космо 3210 желтый, 205см","Песочный"]
[]
[null,null,null,null,null,null,null,null,null,null,null,null,null,null,null,null,null,null,null,"Космо 3499 оранжевый, 205см","плиссе","Космо 3499 оранжевый, 205см","Оранжевый"]
[null,null,null,null,null,null,null,null,null,null,null,null,null,null,null,null,null,null,null,"Краш 0225 белый, 225см","плиссе","Краш 0225 белый, 225см","Белый"]
[null,null,null,null,null,null,null,null,null,null,null,null,null,null,null,null,null,null,null,"Краш 5501 светло-зеленый, 225см","плиссе","Краш 5501 светло-зеленый, 225см","Св.зеленый"]